PAYMENT DATE,DEPARTMENT,SUPPLIER NAME,PAY GROUP,ACCOUNT DESCRIPTION,NET AMOUNT
04-NOV-2022,Corporate Resources (CR) (P),Digital ID Ltd,TRADE SUPPLIER,4301-Protective Clothing & Uniforms,"12,194.70"
04-NOV-2022,Environment & Transport (P),Centrebus Holdings Ltd T/A Hinckley Bus,TRADE SUPPLIER,3124-Other Transport Costs,"3,641.22"
14-NOV-2022,Adults & Communities (P),BABA SAWAN LODGE LTD&&SSARO6451,S/S HOMES,5502-Residential,"1,845.00"
14-NOV-2022,Adults & Communities (P),BABA SAWAN LODGE LTD&&SSARO6451,S/S HOMES,5502-Residential,"2,460.00"
14-NOV-2022,Adults & Communities (P),LOXLEY LODGE CARE HOME LTD&&SSARO3405,S/S HOMES,5502-Residential,"6,235.71"
15-NOV-2022,Adults & Communities (P),Sterling K Ltd,TRADE SUPPLIER,4109-Materials,"1,758.18"
18-NOV-2022,Adults & Communities (P),ADJUVO CARE & SUPPORT LTD&&SUPL6474,SUPPORTED LIVING,5506-Supported Living,753.19
22-NOV-2022,Corporate Resources (CR) (P),Modality Systems Ltd,TRADE SUPPLIER,4603-IT Software Licenses/Subscription,"265,591.20"
24-NOV-2022,Balance Sheet Cost Centres (P),REDACTED PERSONAL DATA,TRADE INDIVIDUAL,9642-Reserved Debtors - Non Public Sector,"2,250.00"
25-NOV-2022,Capital - In Year Spend (P),REDACTED PERSONAL DATA,TRADE SUPPLIER,941D-L&B - Building Costs,"25,044.00"
29-NOV-2022,C&FS (P),Childrens Sensory Therapy Ltd,TRADE SUPPLIER,5443-Agency & Contracted Services,"2,803.90"
01-NOV-2022,Adults & Communities (P),REDACTED PERSONAL DATA,GENERAL,5411-Private Contractors - General,982.54
04-NOV-2022,Environment & Transport (P),REDACTED PERSONAL DATA,NON TRADE,3303-Taxi Hire,"2,499.00"
29-NOV-2022,Corporate Resources (CR) (P),Dartington Hall Trust,NON TRADE,1703-Training Expenses,"12,750.00"
29-NOV-2022,Corporate Resources (CR) (P),Dartington Hall Trust,NON TRADE,1703-Training Expenses,917.00
01-NOV-2022,Environment & Transport (P),AC Environmental Consulting Ltd,TRADE SUPPLIER,4532-Other Services,"1,875.00"
01-NOV-2022,Environment & Transport (P),Aggregate Industries UK Ltd,SUBCONTRACTOR,4109-Materials,513.92
01-NOV-2022,C&FS (P),REDACTED PERSONAL DATA,GENERAL,4532-Other Services,"1,000.00"
01-NOV-2022,C&FS (P),REDACTED PERSONAL DATA,TRADE INDIVIDUAL,5443-Agency & Contracted Services,800.00
01-NOV-2022,C&FS (P),All Saints CE Primary School Sapcote (Inspiring Primaries Academy Trust),GENERAL,5325-External SEN Providers Top Up Fee,"5,851.94"
01-NOV-2022,Environment & Transport (P),Allscreens Nationwide Ltd,TRADE SUPPLIER,3102-Vehicle & Plant Repairs & Maintenance,"2,350.00"
01-NOV-2022,C&FS (P),Anstey Martin High Academy,GENERAL,5325-External SEN Providers Top Up Fee,"2,684.87"
01-NOV-2022,C&FS (P),Asfordby Captains Close Primary School Academy T/A Discovery Schools Academies Trust,GENERAL,5325-External SEN Providers Top Up Fee,"3,794.82"
01-NOV-2022,C&FS (P),Asfordby Captains Close Primary School Academy T/A Discovery Schools Academies Trust,GENERAL,5325-External SEN Providers Top Up Fee,"16,258.00"
01-NOV-2022,C&FS (P),Asfordby Hill Primary School Academy,GENERAL,4908-Grants,807.00
01-NOV-2022,C&FS (P),Asfordby Hill Primary School Academy,GENERAL,5325-External SEN Providers Top Up Fee,722.98
01-NOV-2022,C&FS (P),Ashby Hill Top Primary School Academy,GENERAL,5325-External SEN Providers Top Up Fee,576.74
01-NOV-2022,C&FS (P),Ashby School (LIFE Multi Academy Trust),GENERAL,5325-External SEN Providers Top Up Fee,"14,772.28"
01-NOV-2022,C&FS (P),Ashby Willesley Primary School Academy,GENERAL,5325-External SEN Providers Top Up Fee,"4,031.02"
01-NOV-2022,C&FS (P),Baca Charity,TRADE SUPPLIER,5411-Private Contractors - General,"2,232.50"
01-NOV-2022,C&FS (P),Baca Charity,TRADE SUPPLIER,5411-Private Contractors - General,"2,837.36"
01-NOV-2022,C&FS (P),Baca Charity,TRADE SUPPLIER,5411-Private Contractors - General,"2,837.36"
01-NOV-2022,C&FS (P),Baca Charity,TRADE SUPPLIER,5411-Private Contractors - General,"2,837.36"
01-NOV-2022,C&FS (P),Baca Charity,TRADE SUPPLIER,5411-Private Contractors - General,"2,837.36"
01-NOV-2022,C&FS (P),Barlestone CE Primary School Academy,GENERAL,5325-External SEN Providers Top Up Fee,879.08
01-NOV-2022,C&FS (P),Barwell CE Academy,GENERAL,5325-External SEN Providers Top Up Fee,"1,992.32"
01-NOV-2022,C&FS (P),Battling Brook Primary School Academy,GENERAL,5325-External SEN Providers Top Up Fee,"6,883.65"
01-NOV-2022,C&FS (P),Beacon Academy,GENERAL,6109-SEN Maintained Sch Top Up Fee,"1,560.00"
01-NOV-2022,C&FS (P),Beacon Academy,GENERAL,5325-External SEN Providers Top Up Fee,"7,774.51"
01-NOV-2022,C&FS (P),Beacon Academy,GENERAL,5325-External SEN Providers Top Up Fee,"16,671.00"
01-NOV-2022,C&FS (P),Beacon Academy,GENERAL,5324-External SEN Providers Place Fee,"2,500.00"
01-NOV-2022,C&FS (P),Beauchamp Academy,GENERAL,5325-External SEN Providers Top Up Fee,"1,162.51"
01-NOV-2022,C&FS (P),Beauchamp Academy,GENERAL,5325-External SEN Providers Top Up Fee,"7,164.86"
01-NOV-2022,C&FS (P),Birkett House School Academy,GENERAL,6109-SEN Maintained Sch Top Up Fee,"3,120.00"
01-NOV-2022,C&FS (P),Blaby Stokes CE Primary School (Academy),GENERAL,5325-External SEN Providers Top Up Fee,"1,363.40"
01-NOV-2022,C&FS (P),Blaby Stokes CE Primary School (Academy),GENERAL,6109-SEN Maintained Sch Top Up Fee,"1,373.00"
01-NOV-2022,C&FS (P),Blackfordby St Margarets CE Primary School (Academy),GENERAL,5325-External SEN Providers Top Up Fee,"1,068.04"
01-NOV-2022,C&FS (P),Bosworth Academy (Life Multi Academy Trust),GENERAL,5325-External SEN Providers Top Up Fee,"10,161.93"
01-NOV-2022,C&FS (P),Bottesford CE Primary School Academy,GENERAL,6101-Support Services,"2,221.97"
01-NOV-2022,C&FS (P),Bottesford CE Primary School Academy,GENERAL,5325-External SEN Providers Top Up Fee,"4,177.03"
01-NOV-2022,C&FS (P),Bradgate Education Partnership Seagrave Village Primary School,GENERAL,5325-External SEN Providers Top Up Fee,"1,602.06"
01-NOV-2022,C&FS (P),Bradgate Education Partnership T/A Gaddesby Primary School,GENERAL,5325-External SEN Providers Top Up Fee,973.56
01-NOV-2022,C&FS (P),Bradgate Education Partnership T/A Great Dalby Primary School,GENERAL,5325-External SEN Providers Top Up Fee,"3,048.02"
01-NOV-2022,C&FS (P),Bradgate Education Partnership T/A Highgate Primary School,GENERAL,5325-External SEN Providers Top Up Fee,"1,455.98"
01-NOV-2022,C&FS (P),Brocks Hill Primary School Academy,GENERAL,5325-External SEN Providers Top Up Fee,"3,487.56"
01-NOV-2022,C&FS (P),Brookvale Groby Learning Trust (Groby Community College),GENERAL,5325-External SEN Providers Top Up Fee,"14,400.38"
01-NOV-2022,C&FS (P),Broom Leys Primary School,GENERAL,5325-External SEN Providers Top Up Fee,"5,104.41"
01-NOV-2022,C&FS (P),Broomfield Primary School (Academy),GENERAL,5325-External SEN Providers Top Up Fee,"1,413.10"
01-NOV-2022,C&FS (P),Brownlow School Academy,GENERAL,5325-External SEN Providers Top Up Fee,"4,834.94"
01-NOV-2022,C&FS (P),CASTLE LANE DAY NURSERY&&EYRS1393,GENERAL,4532-Other Services,"1,000.00"
01-NOV-2022,C&FS (P),Castle Rock High Academy,GENERAL,5325-External SEN Providers Top Up Fee,"11,948.01"
01-NOV-2022,C&FS (P),Cedars Academy Lionheart Academies Trust,GENERAL,5324-External SEN Providers Place Fee,"7,083.33"
01-NOV-2022,C&FS (P),Cedars Academy Lionheart Academies Trust,GENERAL,5325-External SEN Providers Top Up Fee,"2,667.00"
01-NOV-2022,C&FS (P),Cedars Academy Lionheart Academies Trust,GENERAL,5325-External SEN Providers Top Up Fee,"7,710.79"
01-NOV-2022,C&FS (P),Cedars Academy Lionheart Academies Trust,GENERAL,5325-External SEN Providers Top Up Fee,"2,489.66"
01-NOV-2022,C&FS (P),Charnwood Arts Therapy Service Ltd,TRADE SUPPLIER,5445-Adoption Support,"1,826.13"
01-NOV-2022,C&FS (P),Childrens Sensory Therapy Ltd,TRADE SUPPLIER,5443-Agency & Contracted Services,"2,803.90"
01-NOV-2022,C&FS (P),Christ Church & St Peters CE Primary School Academy,GENERAL,5325-External SEN Providers Top Up Fee,"9,841.00"
01-NOV-2022,C&FS (P),Christ Church & St Peters CE Primary School Academy,GENERAL,5325-External SEN Providers Top Up Fee,"4,021.58"
01-NOV-2022,C&FS (P),Church Hill CE Junior School,GENERAL,5325-External SEN Providers Top Up Fee,"1,096.80"
01-NOV-2022,C&FS (P),Church Hill Infant School Academy,GENERAL,5325-External SEN Providers Top Up Fee,"1,507.58"
01-NOV-2022,C&FS (P),Church Langton Primary School (Academy),GENERAL,5325-External SEN Providers Top Up Fee,"2,500.03"
01-NOV-2022,C&FS (P),Claybrooke Primary School Academy,GENERAL,5325-External SEN Providers Top Up Fee,"1,053.66"
01-NOV-2022,C&FS (P),Cobden Primary School Academy,GENERAL,5325-External SEN Providers Top Up Fee,"3,109.64"
01-NOV-2022,C&FS (P),Community Inclusive Trust,GENERAL,5325-External SEN Providers Top Up Fee,"105,289.00"
01-NOV-2022,Adults & Communities (P),Compass Computer Consultants Ltd,TRADE SUPPLIER,4604-IT Equipment Repairs & Maintenance,956.57
01-NOV-2022,C&FS (P),Countesthorpe Leysland Community College (Life Multi Academy Trust),GENERAL,5325-External SEN Providers Top Up Fee,"6,999.47"
01-NOV-2022,C&FS (P),Countesthorpe Leysland Community College (Life Multi Academy Trust),GENERAL,6101-Support Services,"1,839.58"
01-NOV-2022,C&FS (P),Cygnet Healthcare,TRADE SUPPLIER,5411-Private Contractors - General,"3,420.00"
01-NOV-2022,C&FS (P),David Ross Education Trust Re Charnwood College,GENERAL,5325-External SEN Providers Top Up Fee,"4,535.44"
01-NOV-2022,C&FS (P),De Lisle College (St Thomas Aquinas Catholic Multi Academy Trust),GENERAL,5325-External SEN Providers Top Up Fee,"8,597.67"
01-NOV-2022,Environment & Transport (P),Denham Procurement & Sourcing Solutions Ltd,TRADE SUPPLIER,4109-Materials,"7,848.52"
01-NOV-2022,Balance Sheet Cost Centres (P),Department For Work & Pensions,GENERAL,9321-Expenditure,678.00
01-NOV-2022,C&FS (P),Direct Healthcare Group,TRADE SUPPLIER,4102-General Equipment - Purchase & Repairs,"2,299.28"
01-NOV-2022,C&FS (P),Direct Healthcare Group,TRADE SUPPLIER,4102-General Equipment - Purchase & Repairs,"1,361.14"
01-NOV-2022,Adults & Communities (P),Direct Healthcare Group,TRADE SUPPLIER,4102-General Equipment - Purchase & Repairs,"2,880.00"
01-NOV-2022,Adults & Communities (P),Direct Healthcare Group,TRADE SUPPLIER,4102-General Equipment - Purchase & Repairs,"1,640.00"
01-NOV-2022,C&FS (P),Direct Healthcare Group,TRADE SUPPLIER,4102-General Equipment - Purchase & Repairs,"2,883.39"
01-NOV-2022,C&FS (P),Dorothy Goodman School Academy,GENERAL,5325-External SEN Providers Top Up Fee,"113,819.00"
01-NOV-2022,C&FS (P),East Midlands Education Trust T/A Castle Donington College,GENERAL,5325-External SEN Providers Top Up Fee,"5,143.25"
01-NOV-2022,C&FS (P),East Midlands Education Trust T/A Castle Donington College,GENERAL,6101-Support Services,"3,214.11"
01-NOV-2022,C&FS (P),East Midlands Education Trust T/A Limehurst Academy,GENERAL,5325-External SEN Providers Top Up Fee,"3,788.44"
01-NOV-2022,C&FS (P),Eastfield Primary School Academy,GENERAL,5325-External SEN Providers Top Up Fee,"4,024.39"
01-NOV-2022,C&FS (P),Embrace Multi Academy Trust T/A Arnesby Church of England Primary School (ARN),GENERAL,5325-External SEN Providers Top Up Fee,"2,325.04"
01-NOV-2022,C&FS (P),Embrace Multi Academy Trust T/A Brockington College Academy (BRO),GENERAL,5325-External SEN Providers Top Up Fee,"14,806.23"
01-NOV-2022,C&FS (P),Embrace Multi Academy Trust T/A Croft C of E Primary School (CRO),GENERAL,5325-External SEN Providers Top Up Fee,"2,679.96"
01-NOV-2022,C&FS (P),Embrace Multi Academy Trust T/A Huncote Community Primary School Academy Trust (HUN),GENERAL,5325-External SEN Providers Top Up Fee,"2,429.38"
01-NOV-2022,C&FS (P),Embrace Multi Academy Trust T/A Manorfield Church of England Primary School (MAN),GENERAL,5325-External SEN Providers Top Up Fee,"2,386.66"
01-NOV-2022,C&FS (P),Embrace Multi Academy Trust T/A Sherrier Church of England Primary School (SHE),GENERAL,5325-External SEN Providers Top Up Fee,"3,516.32"
01-NOV-2022,C&FS (P),Embrace Multi Academy Trust T/A Whetstone St Peters CE Primary School (STP),GENERAL,5325-External SEN Providers Top Up Fee,"1,257.00"
01-NOV-2022,C&FS (P),Enderby Danemill Primary School T/A Discovery Schools Academies Trust Ltd,GENERAL,6101-Support Services,"7,654.15"
01-NOV-2022,C&FS (P),Enderby Danemill Primary School T/A Discovery Schools Academies Trust Ltd,GENERAL,5325-External SEN Providers Top Up Fee,"14,907.39"
01-NOV-2022,Capital - In Year Spend (P),Enderby Danemill Primary School T/A Discovery Schools Academies Trust Ltd,NON TRADE,941D-L&B - Building Costs,"6,800.00"
01-NOV-2022,C&FS (P),Fairfield Community Primary School Academy,GENERAL,5325-External SEN Providers Top Up Fee,"1,507.58"
01-NOV-2022,C&FS (P),Farndon Fields Academy Ltd T/A Discovery Schools Academy Trust,GENERAL,5325-External SEN Providers Top Up Fee,"4,982.30"
01-NOV-2022,Environment & Transport (P),Forest Driveways,SUBCONTRACTOR,4901-Other Expenditure,"6,111.50"
01-NOV-2022,C&FS (P),Forest Way School Academy Trust,GENERAL,5325-External SEN Providers Top Up Fee,"17,811.00"
01-NOV-2022,C&FS (P),Fossebrook Primary School T/A Discovery Schools Academies Trust,GENERAL,5325-External SEN Providers Top Up Fee,"1,445.96"
01-NOV-2022,C&FS (P),Frisby CE Primary School Academy,GENERAL,5325-External SEN Providers Top Up Fee,"1,162.52"
01-NOV-2022,C&FS (P),Futures Trust (Hinckley Academy & John Cleveland Sixth Form Centre),GENERAL,5325-External SEN Providers Top Up Fee,"10,455.22"
01-NOV-2022,C&FS (P),Gain Healthcare Ltd,TRADE SUPPLIER,5451-LCT/LAC (Not Fostered),"1,572.50"
01-NOV-2022,C&FS (P),Gain Healthcare Ltd,TRADE SUPPLIER,5411-Private Contractors - General,"1,400.00"
01-NOV-2022,C&FS (P),Gartree High School Academy,GENERAL,5325-External SEN Providers Top Up Fee,"10,567.78"
01-NOV-2022,C&FS (P),Gilmorton Chandler CE Aided Primary School Academy,GENERAL,5325-External SEN Providers Top Up Fee,"3,227.93"
01-NOV-2022,C&FS (P),Glen Hills Primary School Academy,GENERAL,5325-External SEN Providers Top Up Fee,"2,304.08"
01-NOV-2022,C&FS (P),Glen Hills Primary School Academy,GENERAL,4908-Grants,807.00
01-NOV-2022,C&FS (P),Glenfield Primary School Academy,GENERAL,5324-External SEN Providers Place Fee,"1,000.00"
01-NOV-2022,C&FS (P),Glenfield Primary School Academy,GENERAL,5325-External SEN Providers Top Up Fee,"2,637.24"
01-NOV-2022,C&FS (P),Glenfield Primary School Academy,GENERAL,5325-External SEN Providers Top Up Fee,"5,995.00"
01-NOV-2022,C&FS (P),Glenmere Primary School Academy,GENERAL,5325-External SEN Providers Top Up Fee,897.96
01-NOV-2022,C&FS (P),Great Bowden Academy,GENERAL,5325-External SEN Providers Top Up Fee,973.56
01-NOV-2022,C&FS (P),Greystoke Primary School T/A Discovery Schools Academies Trust,GENERAL,5325-External SEN Providers Top Up Fee,"4,759.35"
01-NOV-2022,C&FS (P),Hall Orchard CE Primary School Academy,GENERAL,5325-External SEN Providers Top Up Fee,"3,502.35"
01-NOV-2022,C&FS (P),Hallam Fields Primary School,GENERAL,5325-External SEN Providers Top Up Fee,"4,493.98"
01-NOV-2022,Environment & Transport (P),Hanson Quarry Products Europe Ltd T/A Hanson Contracting,TRADE SUPPLIER,5411-Private Contractors - General,"695,195.32"
01-NOV-2022,C&FS (P),Hastings High School Academy,GENERAL,5325-External SEN Providers Top Up Fee,"11,884.85"
01-NOV-2022,C&FS (P),Heathfield Academy,GENERAL,5325-External SEN Providers Top Up Fee,"4,915.42"
01-NOV-2022,C&FS (P),HERMITAGE DAY NURSERY LTD&&EYRS1535,GENERAL,4908-Grants,675.00
01-NOV-2022,Balance Sheet Cost Centres (P),Hewitt Robins International Ltd,NON TRADE,9722-Reserved Creditors - Non Public Sector,"19,687.50"
01-NOV-2022,C&FS (P),Highcliffe Primary School Academy,GENERAL,5325-External SEN Providers Top Up Fee,"8,345.91"
01-NOV-2022,C&FS (P),Hinckley Parks Primary School (Owls Academy Trust),GENERAL,5325-External SEN Providers Top Up Fee,"12,803.00"
01-NOV-2022,C&FS (P),Hinckley Parks Primary School (Owls Academy Trust),GENERAL,4908-Grants,"2,421.00"
01-NOV-2022,C&FS (P),Hinckley Parks Primary School (Owls Academy Trust),GENERAL,5325-External SEN Providers Top Up Fee,"6,032.13"
01-NOV-2022,Balance Sheet Cost Centres (P),REDACTED PERSONAL DATA,TRADE SUPPLIER,9321-Expenditure,"50,000.00"
01-NOV-2022,C&FS (P),Humphrey Perkins School Academy,GENERAL,5325-External SEN Providers Top Up Fee,"5,128.51"
01-NOV-2022,C&FS (P),Ibstock Community College Academy,GENERAL,5325-External SEN Providers Top Up Fee,"8,250.25"
01-NOV-2022,Corporate Resources (CR) (P),Innotech Digital & Display,TRADE SUPPLIER,4401-Printing,"1,431.84"
01-NOV-2022,C&FS (P),IPAT St Marys CE Primary School Bitteswell (Inspiring Academy Trust),GENERAL,5325-External SEN Providers Top Up Fee,"1,785.99"
01-NOV-2022,C&FS (P),Ivanhoe College,GENERAL,5325-External SEN Providers Top Up Fee,"3,361.02"
01-NOV-2022,Adults & Communities (P),REDACTED PERSONAL DATA,NON TRADE,8403-Non Res/Managed Income - Client Income,"2,224.75"
01-NOV-2022,Corporate Resources (CR) (P),John Dwyer Bakery Ltd,TRADE SUPPLIER,4504-Provisions Purchases,770.14
01-NOV-2022,C&FS (P),REDACTED PERSONAL DATA,GENERAL,4908-Grants,995.00
01-NOV-2022,C&FS (P),REDACTED PERSONAL DATA,GENERAL,5325-External SEN Providers Top Up Fee,"14,784.25"
01-NOV-2022,Corporate Resources (CR) (P),John OConner Ground Maintenance Ltd,TRADE SUPPLIER,2501-Grounds Maintenance,"68,314.76"
01-NOV-2022,C&FS (P),John Wycliffe Primary School (Inspiring Primaries Academy Trust),GENERAL,5325-External SEN Providers Top Up Fee,"2,273.28"
01-NOV-2022,Environment & Transport (P),REDACTED PERSONAL DATA,TRADE SUPPLIER,4507-Consultants & Specialists,"1,230.00"
01-NOV-2022,C&FS (P),Kibworth CE Primary School Academy T/A Discovery Schools Academy Trust,GENERAL,4908-Grants,"1,614.00"
01-NOV-2022,C&FS (P),Kibworth CE Primary School Academy T/A Discovery Schools Academy Trust,GENERAL,5325-External SEN Providers Top Up Fee,"5,382.92"
01-NOV-2022,C&FS (P),Kingsway Primary School (Life Multi Academy Trust),GENERAL,5325-External SEN Providers Top Up Fee,"9,148.00"
01-NOV-2022,C&FS (P),Kingsway Primary School (Life Multi Academy Trust),GENERAL,5325-External SEN Providers Top Up Fee,"1,318.62"
01-NOV-2022,C&FS (P),Kirby Muxloe Primary School Academy,GENERAL,5325-External SEN Providers Top Up Fee,"2,497.58"
01-NOV-2022,C&FS (P),Lady Jane Grey Academy,GENERAL,5325-External SEN Providers Top Up Fee,"3,128.53"
01-NOV-2022,C&FS (P),Langmoor Primary School,GENERAL,5325-External SEN Providers Top Up Fee,865.11
01-NOV-2022,C&FS (P),Launde Primary School Academy Trust T/A Launde Primary School,GENERAL,5325-External SEN Providers Top Up Fee,"1,852.64"
01-NOV-2022,C&FS (P),LCC Ashby De La Zouch CE Primary School A/C,GENERAL,4908-Grants,"4,842.00"
01-NOV-2022,C&FS (P),LCC Buckminster CP School A/C,GENERAL,4908-Grants,807.00
01-NOV-2022,C&FS (P),LCC Burbage CE Infants School A/C,GENERAL,4908-Grants,807.00
01-NOV-2022,Balance Sheet Cost Centres (P),LCC Carer Direct Payments A/C,OTHER LOCAL AUTHORITIES,9668-Cash - Floats,667.37
01-NOV-2022,Balance Sheet Cost Centres (P),LCC CHILDREN'S AND FAMILY SERVICE,OTHER LOCAL AUTHORITIES,9668-Cash - Floats,"2,282.23"
01-NOV-2022,Balance Sheet Cost Centres (P),LCC Customer Direct Payments A/C,OTHER LOCAL AUTHORITIES,9668-Cash - Floats,591.88
01-NOV-2022,C&FS (P),LCC Hallaton CE School A/C,GENERAL,4908-Grants,"4,842.00"
01-NOV-2022,C&FS (P),LCC Ibstock CJ School A/C,GENERAL,4908-Grants,807.00
01-NOV-2022,C&FS (P),LCC Iveshead School,GENERAL,4908-Grants,"1,990.00"
01-NOV-2022,C&FS (P),LCC Little Bowden CP School A/C,GENERAL,4908-Grants,"1,614.00"
01-NOV-2022,C&FS (P),LCC Oadby Woodland Grange Primary School A/C,GENERAL,5325-External SEN Providers Top Up Fee,"5,590.78"
01-NOV-2022,C&FS (P),LCC Oadby Woodland Grange Primary School A/C,GENERAL,6109-SEN Maintained Sch Top Up Fee,"1,040.00"
01-NOV-2022,C&FS (P),LCC Sheepy Magna CE School A/C,GENERAL,4908-Grants,"1,614.00"
01-NOV-2022,C&FS (P),LCC Woodhouse Eaves St Pauls CE Primary School A/C,GENERAL,4908-Grants,807.00
01-NOV-2022,C&FS (P),LCC Wymeswold CE School A/C,GENERAL,4908-Grants,807.00
01-NOV-2022,C&FS (P),Learn Academies Trust Husbands Bosworth CE Primary School,GENERAL,4908-Grants,807.00
01-NOV-2022,C&FS (P),Learn Academies Trust Husbands Bosworth CE Primary School,GENERAL,5325-External SEN Providers Top Up Fee,"1,947.12"
01-NOV-2022,C&FS (P),Learn Academies Trust T/A Red Hill Field Primary School,GENERAL,5325-External SEN Providers Top Up Fee,"4,144.82"
01-NOV-2022,C&FS (P),Learn Academies Trust T/A South Kilworth CE Primary School,GENERAL,5325-External SEN Providers Top Up Fee,994.10
01-NOV-2022,C&FS (P),Learn Academy Trust,GENERAL,4908-Grants,"1,614.00"
01-NOV-2022,C&FS (P),Learn Academy Trust,GENERAL,4908-Grants,"3,228.00"
01-NOV-2022,C&FS (P),Learn Academy Trust,GENERAL,4908-Grants,"2,421.00"
01-NOV-2022,C&FS (P),Learn Academy Trust,GENERAL,4908-Grants,"3,228.00"
01-NOV-2022,C&FS (P),LEARN ACADEMY TRUST ST ANDREWS PRIMARY SCHOOL&&EYRS1386,GENERAL,5325-External SEN Providers Top Up Fee,973.56
01-NOV-2022,C&FS (P),LITTLE EXPLORERS PLAYGROUP&&EYRS1728,GENERAL,4532-Other Services,"1,000.00"
01-NOV-2022,C&FS (P),Little Hill Primary School Academy,GENERAL,5325-External SEN Providers Top Up Fee,"2,656.15"
01-NOV-2022,Environment & Transport (P),LOROS Enterprises Ltd,TRADE SUPPLIER,5314-Voluntary Associations Other,667.75
01-NOV-2022,C&FS (P),Loughborough CE Primary School Academy,GENERAL,5325-External SEN Providers Top Up Fee,"2,134.02"
01-NOV-2022,C&FS (P),Loughborough Holywell Primary Academy,GENERAL,6109-SEN Maintained Sch Top Up Fee,"1,040.00"
01-NOV-2022,C&FS (P),Loughborough Holywell Primary Academy,GENERAL,5325-External SEN Providers Top Up Fee,"3,927.10"
01-NOV-2022,C&FS (P),Lutterworth College Academy,GENERAL,5325-External SEN Providers Top Up Fee,"13,205.00"
01-NOV-2022,C&FS (P),Lutterworth High School Academy,GENERAL,5325-External SEN Providers Top Up Fee,"11,186.42"
01-NOV-2022,Environment & Transport (P),M Bennett Ltd,SUBCONTRACTOR,3301-Vehicle & Plant Hire,"1,497.25"
01-NOV-2022,Environment & Transport (P),M Bennett Ltd,SUBCONTRACTOR,5411-Private Contractors - General,"1,293.00"
01-NOV-2022,Capital - In Year Spend (P),Maplewell School,NON TRADE,941D-L&B - Building Costs,"65,000.00"
01-NOV-2022,C&FS (P),Market Bosworth High School Academy,GENERAL,5325-External SEN Providers Top Up Fee,"6,436.96"
01-NOV-2022,C&FS (P),Market Harborough Church Of England Academy,GENERAL,5325-External SEN Providers Top Up Fee,"2,514.00"
01-NOV-2022,C&FS (P),Mead Educational Trust T/A Kibworth Mead Academy,GENERAL,5325-External SEN Providers Top Up Fee,"8,289.58"
01-NOV-2022,C&FS (P),Meadow Community Primary School,GENERAL,5325-External SEN Providers Top Up Fee,"8,166.40"
01-NOV-2022,C&FS (P),Meadowdale Primary School Academy,GENERAL,5325-External SEN Providers Top Up Fee,"7,381.29"
01-NOV-2022,C&FS (P),Measham C of E Primary School Academy Trust,GENERAL,5325-External SEN Providers Top Up Fee,"1,569.20"
01-NOV-2022,C&FS (P),Melton Mowbray Grove CP School Academy,GENERAL,5325-External SEN Providers Top Up Fee,"4,573.46"
01-NOV-2022,C&FS (P),Melton Vale Sixth Form College,GENERAL,5325-External SEN Providers Top Up Fee,"2,814.68"
01-NOV-2022,C&FS (P),Mercenfeld Primary School Academy,GENERAL,5325-External SEN Providers Top Up Fee,"4,486.53"
01-NOV-2022,C&FS (P),Merton Primary Academy,GENERAL,5325-External SEN Providers Top Up Fee,"2,136.08"
01-NOV-2022,C&FS (P),Millfield LEAD Academy,GENERAL,5325-External SEN Providers Top Up Fee,"2,542.76"
01-NOV-2022,C&FS (P),MINI ADVENTURES MARKET HARBOROUGH LTD &&EYRS2570210,GENERAL,4532-Other Services,"2,000.00"
01-NOV-2022,Environment & Transport (P),MJ Dexter Plant Hire,SUBCONTRACTOR,5411-Private Contractors - General,"1,640.00"
01-NOV-2022,C&FS (P),Mountfields Lodge School Academy,GENERAL,5325-External SEN Providers Top Up Fee,"3,414.86"
01-NOV-2022,C&FS (P),Mowbray Education Trust Ltd (Sherard Primary School),GENERAL,5325-External SEN Providers Top Up Fee,"12,179.00"
01-NOV-2022,C&FS (P),Mowbray Education Trust Ltd (Sherard Primary School),GENERAL,5325-External SEN Providers Top Up Fee,"8,277.30"
01-NOV-2022,C&FS (P),Newbridge High School Academy Trust,GENERAL,5325-External SEN Providers Top Up Fee,"8,181.14"
01-NOV-2022,C&FS (P),NHS Leicester Leicestershire & Rutland ICB,TRADE SUPPLIER,8229-Health Contributions,"53,250.00"
01-NOV-2022,C&FS (P),Oak Multi Academy Trust T/A Brookside Primary School,GENERAL,5325-External SEN Providers Top Up Fee,"9,228.00"
01-NOV-2022,C&FS (P),Oak Multi Academy Trust T/A Brookside Primary School,GENERAL,5325-External SEN Providers Top Up Fee,"1,852.64"
01-NOV-2022,C&FS (P),Oak Multi Academy Trust T/A Manor High School,GENERAL,5325-External SEN Providers Top Up Fee,"6,334.41"
01-NOV-2022,C&FS (P),Old Dalby CE Primary School Academy,GENERAL,6109-SEN Maintained Sch Top Up Fee,"1,373.00"
01-NOV-2022,C&FS (P),Old Mill Primary School (Academy),GENERAL,5325-External SEN Providers Top Up Fee,"2,750.61"
01-NOV-2022,C&FS (P),Outwoods Edge Primary School Academy,GENERAL,5325-External SEN Providers Top Up Fee,"7,139.54"
01-NOV-2022,C&FS (P),Outwoods Edge Primary School Academy,GENERAL,4908-Grants,807.00
01-NOV-2022,C&FS (P),OWLS Academy Trust - Fernvale Primary School,GENERAL,5325-External SEN Providers Top Up Fee,879.08
01-NOV-2022,C&FS (P),Packington CE Primary School,GENERAL,4908-Grants,807.00
01-NOV-2022,C&FS (P),Parkland Primary School T/A Discovery Schools Academies Trust,GENERAL,5325-External SEN Providers Top Up Fee,"4,139.88"
01-NOV-2022,C&FS (P),Pastures Primary School Academy,GENERAL,5325-External SEN Providers Top Up Fee,"2,670.10"
01-NOV-2022,Environment & Transport (P),Pearce Recruitment Services Ltd T/A Accept Recruitment,TRADE SUPPLIER,5443-Agency & Contracted Services,"2,555.18"
01-NOV-2022,Environment & Transport (P),Pearce Recruitment Services Ltd T/A Accept Recruitment,TRADE SUPPLIER,5443-Agency & Contracted Services,"2,083.21"
01-NOV-2022,Environment & Transport (P),Pearce Recruitment Services Ltd T/A Accept Recruitment,TRADE SUPPLIER,5443-Agency & Contracted Services,"2,783.04"
01-NOV-2022,Environment & Transport (P),Pearce Recruitment Services Ltd T/A Accept Recruitment,TRADE SUPPLIER,5443-Agency & Contracted Services,"1,877.05"
01-NOV-2022,Environment & Transport (P),Pearce Recruitment Services Ltd T/A Accept Recruitment,TRADE SUPPLIER,5443-Agency & Contracted Services,"2,484.66"
01-NOV-2022,C&FS (P),Platform Up Ltd,TRADE SUPPLIER,5411-Private Contractors - General,"1,443.40"
01-NOV-2022,C&FS (P),Platform Up Ltd,TRADE SUPPLIER,5411-Private Contractors - General,"1,463.40"
01-NOV-2022,C&FS (P),Platform Up Ltd,TRADE SUPPLIER,5411-Private Contractors - General,"1,443.40"
01-NOV-2022,C&FS (P),Platform Up Ltd,TRADE SUPPLIER,5411-Private Contractors - General,"1,603.40"
01-NOV-2022,Corporate Resources (CR) (P),Playdale Playgrounds Ltd,SUBCONTRACTOR,2101-R&M Buildings,629.64
01-NOV-2022,C&FS (P),Priory Federation Of Academies Trust,GENERAL,5325-External SEN Providers Top Up Fee,"5,903.35"
01-NOV-2022,Balance Sheet Cost Centres (P),Prudential Assurance Company Ltd,TRADE SUPPLIER,9729-Suspense (Current Liability),"1,200.00"
01-NOV-2022,Balance Sheet Cost Centres (P),Prudential Assurance Company Ltd,TRADE SUPPLIER,9729-Suspense (Current Liability),"4,345.54"
01-NOV-2022,Balance Sheet Cost Centres (P),Prudential Assurance Company Ltd,TRADE SUPPLIER,9729-Suspense (Current Liability),"2,836.43"
01-NOV-2022,Balance Sheet Cost Centres (P),Prudential Assurance Company Ltd,TRADE SUPPLIER,9729-Suspense (Current Liability),"2,143.70"
01-NOV-2022,C&FS (P),Purple Heart Healthcare Agency,TRADE SUPPLIER,5429-Community/Domiciliary,"2,222.00"
01-NOV-2022,C&FS (P),Queniborough CE Primary School Academy,GENERAL,6109-SEN Maintained Sch Top Up Fee,"1,040.00"
01-NOV-2022,C&FS (P),Queniborough CE Primary School Academy,GENERAL,5325-External SEN Providers Top Up Fee,"1,696.54"
01-NOV-2022,C&FS (P),Ratby Primary School Academy,GENERAL,5325-External SEN Providers Top Up Fee,"3,610.80"
01-NOV-2022,C&FS (P),Rawlins Academy,GENERAL,5325-External SEN Providers Top Up Fee,"24,695.00"
01-NOV-2022,C&FS (P),Rawlins Academy,GENERAL,5324-External SEN Providers Place Fee,"3,000.00"
01-NOV-2022,C&FS (P),Rawlins Academy,GENERAL,5325-External SEN Providers Top Up Fee,"13,424.47"
01-NOV-2022,C&FS (P),Rawlins Academy,GENERAL,5325-External SEN Providers Top Up Fee,"14,719.56"
01-NOV-2022,C&FS (P),Redlands Community Primary School Academy T/A Discovery Schools Academy Trust,GENERAL,5325-External SEN Providers Top Up Fee,"3,859.32"
01-NOV-2022,C&FS (P),Redmoor High School Academy Trust,GENERAL,5325-External SEN Providers Top Up Fee,"11,834.63"
01-NOV-2022,C&FS (P),Rendell Primary School Academy,GENERAL,5325-External SEN Providers Top Up Fee,"1,947.12"
01-NOV-2022,C&FS (P),Ridgeway Primary Academy,GENERAL,5325-External SEN Providers Top Up Fee,"6,011.42"
01-NOV-2022,C&FS (P),Rise Multi Academy Trust,GENERAL,5325-External SEN Providers Top Up Fee,"5,315.14"
01-NOV-2022,C&FS (P),Riverside Commuity Primary School Academy,GENERAL,5325-External SEN Providers Top Up Fee,"7,632.38"
01-NOV-2022,C&FS (P),Riverside Commuity Primary School Academy,GENERAL,6109-SEN Maintained Sch Top Up Fee,"1,040.00"
01-NOV-2022,C&FS (P),Robert Bakewell Community School Academy,GENERAL,5325-External SEN Providers Top Up Fee,"5,040.32"
01-NOV-2022,C&FS (P),Robert Smyth Academy T/A Tudor Grange Academies Trust,GENERAL,5325-External SEN Providers Top Up Fee,"6,776.77"
01-NOV-2022,Environment & Transport (P),Roberts Coaches Ltd,TRADE SUPPLIER,5428-Minimum Cost Contracts,"12,428.06"
01-NOV-2022,Environment & Transport (P),Roberts Coaches Ltd,TRADE SUPPLIER,5428-Minimum Cost Contracts,"13,112.06"
01-NOV-2022,Environment & Transport (P),Roberts Coaches Ltd,TRADE SUPPLIER,5428-Minimum Cost Contracts,"13,986.06"
01-NOV-2022,Environment & Transport (P),Roberts Coaches Ltd,TRADE SUPPLIER,5428-Minimum Cost Contracts,"12,124.06"
01-NOV-2022,Environment & Transport (P),Roberts Coaches Ltd,TRADE SUPPLIER,5428-Minimum Cost Contracts,"13,726.06"
01-NOV-2022,C&FS (P),Rothley CE Primary School Academy,GENERAL,5325-External SEN Providers Top Up Fee,"5,037.86"
01-NOV-2022,C&FS (P),Roundhill Academy,GENERAL,5325-External SEN Providers Top Up Fee,"3,261.61"
01-NOV-2022,Adults & Communities (P),S&W Mobility Services Ltd,TRADE SUPPLIER,5411-Private Contractors - General,982.00
01-NOV-2022,Schools Revenue Cost Centres (P),REDACTED PERSONAL DATA,TRADE INDIVIDUAL,4102-General Equipment - Purchase & Repairs,"1,125.00"
01-NOV-2022,C&FS (P),Sharnford CE Primary School (Academy),GENERAL,5325-External SEN Providers Top Up Fee,"1,602.06"
01-NOV-2022,C&FS (P),Somerby Primary School Academy,GENERAL,5325-External SEN Providers Top Up Fee,"1,224.14"
01-NOV-2022,C&FS (P),South Charnwood High School Academy,GENERAL,4908-Grants,"1,990.00"
01-NOV-2022,C&FS (P),South Charnwood High School Academy,GENERAL,5325-External SEN Providers Top Up Fee,"9,509.60"
01-NOV-2022,C&FS (P),South Wigston High School Academy,GENERAL,5325-External SEN Providers Top Up Fee,"3,261.61"
01-NOV-2022,C&FS (P),Spencer Academy T/A Long Field Academy,GENERAL,5325-External SEN Providers Top Up Fee,"9,060.21"
01-NOV-2022,C&FS (P),St Margarets CE Primary School (Inspiring Primaries Academy Trust),GENERAL,5325-External SEN Providers Top Up Fee,"2,653.68"
01-NOV-2022,C&FS (P),St Marys CE Primary School Academy,GENERAL,5325-External SEN Providers Top Up Fee,"3,268.60"
01-NOV-2022,C&FS (P),St Marys RC Primary School Academy,GENERAL,5325-External SEN Providers Top Up Fee,"2,386.66"
01-NOV-2022,C&FS (P),St Michael & All Angels C of E Primary School Academy,GENERAL,5325-External SEN Providers Top Up Fee,"1,351.48"
01-NOV-2022,C&FS (P),St Peters C.E. Primary Academy,GENERAL,5325-External SEN Providers Top Up Fee,"10,847.47"
01-NOV-2022,C&FS (P),St Peters C.E. Primary Academy,GENERAL,5325-External SEN Providers Top Up Fee,"29,360.50"
01-NOV-2022,C&FS (P),St Peters C.E. Primary Academy,GENERAL,4908-Grants,"1,614.00"
01-NOV-2022,C&FS (P),St Simon & St Jude CE Primary School,GENERAL,5325-External SEN Providers Top Up Fee,"1,080.38"
01-NOV-2022,C&FS (P),St Thomas Aquinas Catholic Multi Academy Trust T/A Bishop Ellis Catholic Academy,GENERAL,6109-SEN Maintained Sch Top Up Fee,"4,418.39"
01-NOV-2022,C&FS (P),St Thomas Aquinas Catholic Multi Academy Trust T/A Holy Cross School A Catholic Voluntary Academy,GENERAL,6101-Support Services,"3,461.35"
01-NOV-2022,C&FS (P),St Thomas Aquinas Catholic Multi Academy Trust T/A Holy Cross School A Catholic Voluntary Academy,GENERAL,5325-External SEN Providers Top Up Fee,"3,888.83"
01-NOV-2022,C&FS (P),St Thomas Aquinas Catholic Multi Academy Trust T/A Sacred Heart Catholic Voluntary Academy,GENERAL,5325-External SEN Providers Top Up Fee,784.60
01-NOV-2022,C&FS (P),St Thomas Aquinas Catholic Multi Academy Trust T/A Saint Martins Catholic Voluntary Academy,GENERAL,5325-External SEN Providers Top Up Fee,"9,346.94"
01-NOV-2022,C&FS (P),St Thomas Aquinas Catholic Multi Academy Trust T/A Saint Peters Catholic Primary School A Voluntary Academy,GENERAL,5325-External SEN Providers Top Up Fee,"3,582.04"
01-NOV-2022,C&FS (P),St Thomas Aquinas Catholic Multi Academy Trust T/A Saint Winefrides Catholic Voluntary Academy,GENERAL,5325-External SEN Providers Top Up Fee,"1,663.68"
01-NOV-2022,C&FS (P),St Thomas Aquinas Catholic Multi Academy Trust T/A St Charles Catholic Primary School,GENERAL,5325-External SEN Providers Top Up Fee,"1,252.90"
01-NOV-2022,C&FS (P),St Thomas Aquinas Catholic Multi Academy Trust T/A St Clares Primary School A Catholic Voluntary Academy,GENERAL,5325-External SEN Providers Top Up Fee,"1,169.20"
01-NOV-2022,C&FS (P),St Thomas Aquinas Catholic Multi Academy Trust T/A St Francis Catholic Primary School,GENERAL,5325-External SEN Providers Top Up Fee,"4,600.78"
01-NOV-2022,C&FS (P),St Thomas Aquinas Catholic Multi Academy Trust T/A St Josephs Catholic Voluntary Academy,GENERAL,5325-External SEN Providers Top Up Fee,"1,602.06"
01-NOV-2022,C&FS (P),St Thomas Aquinas Catholic Multi Academy Trust T/A St Peters Catholic Voluntary Academy,GENERAL,5325-External SEN Providers Top Up Fee,"1,885.50"
01-NOV-2022,C&FS (P),Stephenson Studio School Trust,GENERAL,5325-External SEN Providers Top Up Fee,"3,327.33"
01-NOV-2022,C&FS (P),Stonebow Primary School Academy,GENERAL,5325-External SEN Providers Top Up Fee,"3,545.68"
01-NOV-2022,C&FS (P),Success Academy Trust T/A Cosby Primary School,GENERAL,5325-External SEN Providers Top Up Fee,"1,744.19"
01-NOV-2022,C&FS (P),Success Academy Trust T/A Hallbrook Primary School,GENERAL,5325-External SEN Providers Top Up Fee,"3,389.99"
01-NOV-2022,C&FS (P),Success Academy Trust T/A Richmond Primary School,GENERAL,5325-External SEN Providers Top Up Fee,"7,282.08"
01-NOV-2022,C&FS (P),Swannington CE Primary School Academy SPS (Oval Learning Trust ),GENERAL,5325-External SEN Providers Top Up Fee,"1,413.10"
01-NOV-2022,C&FS (P),Swinford C of E Primary School,GENERAL,5325-External SEN Providers Top Up Fee,722.98
01-NOV-2022,C&FS (P),Symphony Learning Trust T/A Newcroft Primary Academy,GENERAL,5325-External SEN Providers Top Up Fee,"4,652.44"
01-NOV-2022,C&FS (P),Symphony Learning Trust T/A Thornton Primary School,GENERAL,5325-External SEN Providers Top Up Fee,"4,552.98"
01-NOV-2022,C&FS (P),Symphony Learning Trust T/A Thornton Primary School,GENERAL,6101-Support Services,896.94
01-NOV-2022,Corporate Resources (CR) (P),Tanwood Construction Ltd,SUBCONTRACTOR,2112-Programmed Work,"49,462.00"
01-NOV-2022,C&FS (P),Thomas Estley Community College Academy,GENERAL,5325-External SEN Providers Top Up Fee,"7,411.33"
01-NOV-2022,C&FS (P),Thomas Estley Community College Academy,GENERAL,5325-External SEN Providers Top Up Fee,"7,454.00"
01-NOV-2022,C&FS (P),Thomas Estley Community College Academy,GENERAL,5324-External SEN Providers Place Fee,"3,666.67"
01-NOV-2022,Environment & Transport (P),Thomas Telford Ltd,TRADE SUPPLIER,4507-Consultants & Specialists,"1,700.00"
01-NOV-2022,Environment & Transport (P),Thomas Telford Ltd,TRADE SUPPLIER,4507-Consultants & Specialists,"2,090.00"
01-NOV-2022,C&FS (P),Thringstone Primary School Academy,GENERAL,5325-External SEN Providers Top Up Fee,"3,266.76"
01-NOV-2022,C&FS (P),Thringstone Primary School Academy,GENERAL,4908-Grants,807.00
01-NOV-2022,C&FS (P),Thrussington CE Primary School Academy,GENERAL,5325-External SEN Providers Top Up Fee,722.98
01-NOV-2022,C&FS (P),Thurnby St Lukes CE Primary School,GENERAL,5325-External SEN Providers Top Up Fee,"1,318.62"
01-NOV-2022,C&FS (P),Townlands CE Primary Academy,GENERAL,5325-External SEN Providers Top Up Fee,"2,509.90"
01-NOV-2022,C&FS (P),Transforming Lives Company,TRADE SUPPLIER,5411-Private Contractors - General,"4,364.18"
01-NOV-2022,C&FS (P),Ullesthorpe CE Primary School (Academy),GENERAL,5325-External SEN Providers Top Up Fee,"1,223.97"
01-NOV-2022,C&FS (P),Vines Multi Academy Trust T/A All Saints C of E Primary School,GENERAL,5325-External SEN Providers Top Up Fee,"22,246.00"
01-NOV-2022,C&FS (P),Vines Multi Academy Trust T/A All Saints C of E Primary School,GENERAL,6101-Support Services,"8,380.93"
01-NOV-2022,C&FS (P),Vines Multi Academy Trust T/A All Saints C of E Primary School,GENERAL,5325-External SEN Providers Top Up Fee,"8,270.99"
01-NOV-2022,C&FS (P),Vines Multi Academy Trust T/A Houghton on the Hill C of E Primary School,GENERAL,5325-External SEN Providers Top Up Fee,"2,041.60"
01-NOV-2022,C&FS (P),Welland Park Community College Academy,GENERAL,5325-External SEN Providers Top Up Fee,"9,017.49"
01-NOV-2022,C&FS (P),Wigston Academy Trust,GENERAL,5325-External SEN Providers Top Up Fee,"10,225.03"
01-NOV-2022,C&FS (P),Wigston Academy Trust,GENERAL,5325-External SEN Providers Top Up Fee,"18,511.00"
01-NOV-2022,Capital - In Year Spend (P),Willmott Dixon Construction Ltd,TRADE SUPPLIER,941D-L&B - Building Costs,"228,913.37"
01-NOV-2022,C&FS (P),Winstanley School Life (Multi Academy Trust),GENERAL,5325-External SEN Providers Top Up Fee,"24,297.00"
01-NOV-2022,C&FS (P),Winstanley School Life (Multi Academy Trust),GENERAL,5325-External SEN Providers Top Up Fee,"5,590.75"
01-NOV-2022,C&FS (P),Witherley C E Primary School,GENERAL,4908-Grants,"1,614.00"
01-NOV-2022,Environment & Transport (P),WJ South Ltd,SUBCONTRACTOR,5411-Private Contractors - General,668.60
01-NOV-2022,Environment & Transport (P),WJ South Ltd,SUBCONTRACTOR,5411-Private Contractors - General,"1,098.25"
01-NOV-2022,Environment & Transport (P),WJ South Ltd,SUBCONTRACTOR,5411-Private Contractors - General,"1,825.57"
01-NOV-2022,Environment & Transport (P),WJ South Ltd,SUBCONTRACTOR,5411-Private Contractors - General,"3,730.42"
01-NOV-2022,Environment & Transport (P),WJ South Ltd,SUBCONTRACTOR,4901-Other Expenditure,875.04
01-NOV-2022,Environment & Transport (P),WJ South Ltd,SUBCONTRACTOR,4901-Other Expenditure,"1,263.73"
01-NOV-2022,Environment & Transport (P),WJ South Ltd,SUBCONTRACTOR,4109-Materials,551.20
01-NOV-2022,Environment & Transport (P),WJ South Ltd,SUBCONTRACTOR,5411-Private Contractors - General,"8,151.47"
01-NOV-2022,Environment & Transport (P),WJ South Ltd,SUBCONTRACTOR,4109-Materials,"5,000.76"
01-NOV-2022,Environment & Transport (P),WJ South Ltd,SUBCONTRACTOR,5411-Private Contractors - General,741.58
01-NOV-2022,C&FS (P),Woodbrook Vale School Academy,GENERAL,5325-External SEN Providers Top Up Fee,"13,216.09"
01-NOV-2022,C&FS (P),Woolden Hill Primary School Academy T/A Discovery Schools Academy Trust,GENERAL,5325-External SEN Providers Top Up Fee,"1,706.40"
01-NOV-2022,C&FS (P),Wreake Valley Academy,GENERAL,6101-Support Services,"4,305.51"
01-NOV-2022,C&FS (P),Wreake Valley Academy,GENERAL,5325-External SEN Providers Top Up Fee,"18,675.00"
01-NOV-2022,C&FS (P),Wreake Valley Academy,GENERAL,5325-External SEN Providers Top Up Fee,"7,324.25"
02-NOV-2022,C&FS (P),Adullam Homes Housing Association Ltd     1,TRADE SUPPLIER,5443-Agency & Contracted Services,"4,986.77"
02-NOV-2022,C&FS (P),Adullam Homes Housing Association Ltd     1,TRADE SUPPLIER,5451-LCT/LAC (Not Fostered),"4,986.77"
02-NOV-2022,C&FS (P),Adullam Homes Housing Association Ltd     1,TRADE SUPPLIER,5451-LCT/LAC (Not Fostered),"3,098.27"
02-NOV-2022,C&FS (P),Adullam Homes Housing Association Ltd     1,TRADE SUPPLIER,5451-LCT/LAC (Not Fostered),"3,098.27"
02-NOV-2022,Adults & Communities (P),Advocacy People,TRADE SUPPLIER,5411-Private Contractors - General,"1,296.96"
02-NOV-2022,Corporate Resources (CR) (P),AG Barr Plc,TRADE SUPPLIER,4504-Provisions Purchases,"7,107.36"
02-NOV-2022,Environment & Transport (P),REDACTED PERSONAL DATA,TRADE SUPPLIER,3303-Taxi Hire,"3,916.44"
02-NOV-2022,C&FS (P),ASD Learning (Midlands) Ltd,TRADE SUPPLIER,5323-External SEN Providers Independent Sch,"16,371.66"
02-NOV-2022,C&FS (P),Ash Field Academy,NON TRADE,5212-OLEA Recoupment,"1,341.75"
02-NOV-2022,C&FS (P),Ash Field Academy,NON TRADE,5212-OLEA Recoupment,"3,276.50"
02-NOV-2022,Schools Revenue Cost Centres (P),Ashby Hastings Primary School,NON TRADE,4901-Other Expenditure,"9,250.00"
02-NOV-2022,Adults & Communities (P),Askews & Holts Library Services Ltd,TRADE SUPPLIER,4111-Books & Audio Visual,727.40
02-NOV-2022,Adults & Communities (P),Bakewell & District Historical Society,NON TRADE,5314-Voluntary Associations Other,"4,870.00"
02-NOV-2022,C&FS (P),Brooke Priory School Ltd,TRADE SUPPLIER,5323-External SEN Providers Independent Sch,"3,842.50"
02-NOV-2022,C&FS (P),Burton On The Wolds Primary School,TRADE SUPPLIER,4507-Consultants & Specialists,"1,000.00"
02-NOV-2022,Environment & Transport (P),REDACTED PERSONAL DATA,NON TRADE,3303-Taxi Hire,"2,280.00"
02-NOV-2022,Environment & Transport (P),REDACTED PERSONAL DATA,NON TRADE,3303-Taxi Hire,"1,375.00"
02-NOV-2022,Corporate Resources (CR) (P),CCS Media Ltd,TRADE SUPPLIER,4601-IT Equipment Hardware,"13,494.94"
02-NOV-2022,Environment & Transport (P),Certas Energy UK Ltd,TRADE SUPPLIER,3104-Petrol / Oil / Types / Spares,"13,891.00"
02-NOV-2022,Environment & Transport (P),Charnwood Borough Council,TRADE SUPPLIER,5211-Other Local Authorities,910.82
02-NOV-2022,Environment & Transport (P),Charnwood Borough Council,TRADE SUPPLIER,5211-Other Local Authorities,778.40
02-NOV-2022,C&FS (P),Child Psychology Service,TRADE SUPPLIER,5445-Adoption Support,"2,444.08"
02-NOV-2022,Environment & Transport (P),REDACTED PERSONAL DATA,TRADE INDIVIDUAL,3113-Home to Sch Trans Contract Buses Sec,"1,221.00"
02-NOV-2022,Environment & Transport (P),Coalville Cabs Ltd,TRADE SUPPLIER,3303-Taxi Hire,"1,650.60"
02-NOV-2022,Environment & Transport (P),Coalville Cabs Ltd,TRADE SUPPLIER,3303-Taxi Hire,"1,806.00"
02-NOV-2022,Environment & Transport (P),Coalville Cabs Ltd,TRADE SUPPLIER,3303-Taxi Hire,"1,986.45"
02-NOV-2022,Environment & Transport (P),Coalville Cabs Ltd,TRADE SUPPLIER,3303-Taxi Hire,"2,826.54"
02-NOV-2022,Environment & Transport (P),Coalville Cabs Ltd,TRADE SUPPLIER,3303-Taxi Hire,"1,221.40"
02-NOV-2022,Environment & Transport (P),Coalville Cabs Ltd,TRADE SUPPLIER,3303-Taxi Hire,619.20
02-NOV-2022,Environment & Transport (P),Coalville Cabs Ltd,TRADE SUPPLIER,3112-Home to Sch Trans Contract Buses Prim,"1,656.69"
02-NOV-2022,Environment & Transport (P),Coalville Cabs Ltd,TRADE SUPPLIER,3303-Taxi Hire,"1,699.68"
02-NOV-2022,Environment & Transport (P),Coalville Cabs Ltd,TRADE SUPPLIER,3303-Taxi Hire,"2,242.50"
02-NOV-2022,Environment & Transport (P),Coalville Cabs Ltd,TRADE SUPPLIER,3113-Home to Sch Trans Contract Buses Sec,660.10
02-NOV-2022,Environment & Transport (P),Coalville Cabs Ltd,TRADE SUPPLIER,3201-Pooled Transport Recharge Inhouse,"1,620.00"
02-NOV-2022,Environment & Transport (P),Coalville Cabs Ltd,TRADE SUPPLIER,3201-Pooled Transport Recharge Inhouse,"1,504.70"
02-NOV-2022,Environment & Transport (P),Coalville Cabs Ltd,TRADE SUPPLIER,3201-Pooled Transport Recharge Inhouse,"1,518.00"
02-NOV-2022,Environment & Transport (P),Coalville Cabs Ltd,TRADE SUPPLIER,3201-Pooled Transport Recharge Inhouse,"1,632.00"
02-NOV-2022,Environment & Transport (P),Coalville Cabs Ltd,TRADE SUPPLIER,3201-Pooled Transport Recharge Inhouse,828.00
02-NOV-2022,Environment & Transport (P),Coalville Cabs Ltd,TRADE SUPPLIER,3201-Pooled Transport Recharge Inhouse,"3,129.84"
02-NOV-2022,Environment & Transport (P),Coalville Cabs Ltd,TRADE SUPPLIER,3201-Pooled Transport Recharge Inhouse,"2,386.02"
02-NOV-2022,Environment & Transport (P),Coalville Cabs Ltd,TRADE SUPPLIER,3201-Pooled Transport Recharge Inhouse,"1,638.20"
02-NOV-2022,Environment & Transport (P),Coalville Cabs Ltd,TRADE SUPPLIER,3201-Pooled Transport Recharge Inhouse,"1,583.55"
02-NOV-2022,Environment & Transport (P),Coalville Cabs Ltd,TRADE SUPPLIER,3201-Pooled Transport Recharge Inhouse,666.08
02-NOV-2022,Environment & Transport (P),Coalville Cabs Ltd,TRADE SUPPLIER,3201-Pooled Transport Recharge Inhouse,717.60
02-NOV-2022,Environment & Transport (P),Coalville Cabs Ltd,TRADE SUPPLIER,3303-Taxi Hire,"2,294.25"
02-NOV-2022,Environment & Transport (P),Coalville Cabs Ltd,TRADE SUPPLIER,3303-Taxi Hire,"1,775.00"
02-NOV-2022,Environment & Transport (P),Coalville Cabs Ltd,TRADE SUPPLIER,3303-Taxi Hire,"2,683.59"
02-NOV-2022,Environment & Transport (P),Coalville Cabs Ltd,TRADE SUPPLIER,3303-Taxi Hire,"1,871.85"
02-NOV-2022,Environment & Transport (P),Coalville Cabs Ltd,TRADE SUPPLIER,3303-Taxi Hire,"3,057.39"
02-NOV-2022,Environment & Transport (P),Coalville Cabs Ltd,TRADE SUPPLIER,3303-Taxi Hire,"2,637.90"
02-NOV-2022,Environment & Transport (P),Coalville Cabs Ltd,TRADE SUPPLIER,3303-Taxi Hire,"1,207.50"
02-NOV-2022,Environment & Transport (P),Coalville Cabs Ltd,TRADE SUPPLIER,3303-Taxi Hire,"2,439.84"
02-NOV-2022,Environment & Transport (P),Coalville Cabs Ltd,TRADE SUPPLIER,3303-Taxi Hire,945.48
02-NOV-2022,Environment & Transport (P),Coalville Cabs Ltd,TRADE SUPPLIER,3303-Taxi Hire,"2,125.20"
02-NOV-2022,Environment & Transport (P),Coalville Cabs Ltd,TRADE SUPPLIER,3303-Taxi Hire,"3,397.02"
02-NOV-2022,Environment & Transport (P),Coalville Cabs Ltd,TRADE SUPPLIER,3303-Taxi Hire,"3,019.59"
02-NOV-2022,Environment & Transport (P),Coalville Cabs Ltd,TRADE SUPPLIER,3303-Taxi Hire,"2,141.30"
02-NOV-2022,Environment & Transport (P),Coalville Cabs Ltd,TRADE SUPPLIER,3303-Taxi Hire,"2,550.24"
02-NOV-2022,Environment & Transport (P),Coalville Cabs Ltd,TRADE SUPPLIER,3303-Taxi Hire,"1,136.20"
02-NOV-2022,Environment & Transport (P),Coalville Cabs Ltd,TRADE SUPPLIER,3303-Taxi Hire,"2,318.40"
02-NOV-2022,Environment & Transport (P),Coalville Cabs Ltd,TRADE SUPPLIER,3303-Taxi Hire,928.80
02-NOV-2022,Environment & Transport (P),Coalville Cabs Ltd,TRADE SUPPLIER,3303-Taxi Hire,"2,512.75"
02-NOV-2022,Environment & Transport (P),Coalville Cabs Ltd,TRADE SUPPLIER,3303-Taxi Hire,"2,883.51"
02-NOV-2022,Environment & Transport (P),Coalville Cabs Ltd,TRADE SUPPLIER,3303-Taxi Hire,"1,130.91"
02-NOV-2022,Environment & Transport (P),Coalville Cabs Ltd,TRADE SUPPLIER,3303-Taxi Hire,"1,958.55"
02-NOV-2022,Environment & Transport (P),Coalville Cabs Ltd,TRADE SUPPLIER,3303-Taxi Hire,"2,859.36"
02-NOV-2022,Environment & Transport (P),Coalville Cabs Ltd,TRADE SUPPLIER,3201-Pooled Transport Recharge Inhouse,956.00
02-NOV-2022,Environment & Transport (P),Coalville Cabs Ltd,TRADE SUPPLIER,3201-Pooled Transport Recharge Inhouse,"1,870.00"
02-NOV-2022,Environment & Transport (P),Coalville Cabs Ltd,TRADE SUPPLIER,3201-Pooled Transport Recharge Inhouse,"1,123.32"
02-NOV-2022,Environment & Transport (P),Coalville Cabs Ltd,TRADE SUPPLIER,3201-Pooled Transport Recharge Inhouse,"1,113.20"
02-NOV-2022,Environment & Transport (P),Coalville Cabs Ltd,TRADE SUPPLIER,3303-Taxi Hire,807.90
02-NOV-2022,Environment & Transport (P),Coalville Cabs Ltd,TRADE SUPPLIER,3303-Taxi Hire,"1,065.93"
02-NOV-2022,Environment & Transport (P),Coalville Cabs Ltd,TRADE SUPPLIER,3303-Taxi Hire,"2,406.95"
02-NOV-2022,Environment & Transport (P),Coalville Cabs Ltd,TRADE SUPPLIER,3113-Home to Sch Trans Contract Buses Sec,"1,008.00"
02-NOV-2022,Environment & Transport (P),Coalville Cabs Ltd,TRADE SUPPLIER,3112-Home to Sch Trans Contract Buses Prim,912.00
02-NOV-2022,Environment & Transport (P),Coalville Cabs Ltd,TRADE SUPPLIER,3303-Taxi Hire,"1,712.08"
02-NOV-2022,Environment & Transport (P),Coalville Cabs Ltd,TRADE SUPPLIER,3303-Taxi Hire,"2,465.94"
02-NOV-2022,Environment & Transport (P),Coalville Cabs Ltd,TRADE SUPPLIER,3303-Taxi Hire,"2,171.40"
02-NOV-2022,Environment & Transport (P),Coalville Cabs Ltd,TRADE SUPPLIER,3303-Taxi Hire,880.00
02-NOV-2022,Environment & Transport (P),Coalville Cabs Ltd,TRADE SUPPLIER,3303-Taxi Hire,"2,265.27"
02-NOV-2022,Environment & Transport (P),Coalville Cabs Ltd,TRADE SUPPLIER,3112-Home to Sch Trans Contract Buses Prim,"2,047.92"
02-NOV-2022,Environment & Transport (P),Coalville Cabs Ltd,TRADE SUPPLIER,3303-Taxi Hire,"1,458.20"
02-NOV-2022,Environment & Transport (P),Coalville Cabs Ltd,TRADE SUPPLIER,3303-Taxi Hire,"1,801.59"
02-NOV-2022,Environment & Transport (P),Coalville Cabs Ltd,TRADE SUPPLIER,3303-Taxi Hire,"1,671.60"
02-NOV-2022,Environment & Transport (P),Coalville Cabs Ltd,TRADE SUPPLIER,3303-Taxi Hire,"2,888.34"
02-NOV-2022,Chief Executives (P),Cornerstone Barristers,TRADE SUPPLIER,4905-Legal Expenses,"1,750.00"
02-NOV-2022,Corporate Resources (CR) (P),DCC Interactive Ltd T/A DCC-i,TRADE SUPPLIER,1703-Training Expenses,"1,650.00"
02-NOV-2022,C&FS (P),REDACTED PERSONAL DATA,TRADE SUPPLIER,5445-Adoption Support,"2,070.00"
02-NOV-2022,C&FS (P),Diversity Social Care Ltd,TRADE SUPPLIER,5429-Community/Domiciliary,760.00
02-NOV-2022,C&FS (P),Diversity Social Care Ltd,TRADE SUPPLIER,5429-Community/Domiciliary,656.00
02-NOV-2022,Environment & Transport (P),Edge Public Solutions Ltd,TRADE SUPPLIER,1201-Agency Costs,"4,950.00"
02-NOV-2022,Environment & Transport (P),Edge Public Solutions Ltd,TRADE SUPPLIER,1201-Agency Costs,"14,500.00"
02-NOV-2022,Environment & Transport (P),Enterprise Flex E Rent,TRADE SUPPLIER,3301-Vehicle & Plant Hire,616.00
02-NOV-2022,Environment & Transport (P),Enterprise Flex E Rent,TRADE SUPPLIER,3301-Vehicle & Plant Hire,"1,166.00"
02-NOV-2022,Environment & Transport (P),Enterprise Flex E Rent,TRADE SUPPLIER,3301-Vehicle & Plant Hire,567.60
02-NOV-2022,Environment & Transport (P),Enterprise Flex E Rent,TRADE SUPPLIER,3301-Vehicle & Plant Hire,"1,317.50"
02-NOV-2022,Environment & Transport (P),Enterprise Flex E Rent,TRADE SUPPLIER,3301-Vehicle & Plant Hire,"1,708.20"
02-NOV-2022,Environment & Transport (P),Enterprise Flex E Rent,TRADE SUPPLIER,3301-Vehicle & Plant Hire,"1,016.60"
02-NOV-2022,Environment & Transport (P),Enterprise Flex E Rent,TRADE SUPPLIER,3301-Vehicle & Plant Hire,"4,175.60"
02-NOV-2022,Capital - In Year Spend (P),Eurovia Infrastructure Ltd,TRADE SUPPLIER,944A-Infr - Infrastructure Exp,"509,247.43"
02-NOV-2022,Capital - In Year Spend (P),Eurovia Infrastructure Ltd,TRADE SUPPLIER,944A-Infr - Infrastructure Exp,"535,819.24"
02-NOV-2022,C&FS (P),Evington Valley Primary School,OTHER LOCAL AUTHORITIES,5212-OLEA Recoupment,"2,195.00"
02-NOV-2022,Environment & Transport (P),Exterior Lighting Solutions (UK) Ltd,TRADE SUPPLIER,4901-Other Expenditure,"2,142.70"
02-NOV-2022,Environment & Transport (P),REDACTED PERSONAL DATA,NON TRADE,3112-Home to Sch Trans Contract Buses Prim,555.20
02-NOV-2022,Environment & Transport (P),REDACTED PERSONAL DATA,NON TRADE,3303-Taxi Hire,"2,035.65"
02-NOV-2022,C&FS (P),Favour Health Ltd,TRADE SUPPLIER,5411-Private Contractors - General,824.80
02-NOV-2022,C&FS (P),Favour Health Ltd,TRADE SUPPLIER,5451-LCT/LAC (Not Fostered),"3,633.08"
02-NOV-2022,C&FS (P),Favour Health Ltd,TRADE SUPPLIER,5451-LCT/LAC (Not Fostered),"3,633.24"
02-NOV-2022,C&FS (P),Favour Health Ltd,TRADE SUPPLIER,5451-LCT/LAC (Not Fostered),"3,633.24"
02-NOV-2022,C&FS (P),Favour Health Ltd,TRADE SUPPLIER,5451-LCT/LAC (Not Fostered),"3,979.66"
02-NOV-2022,C&FS (P),Favour Health Ltd,TRADE SUPPLIER,5451-LCT/LAC (Not Fostered),"6,750.99"
02-NOV-2022,C&FS (P),Favour Health Ltd,TRADE SUPPLIER,5411-Private Contractors - General,"3,979.66"
02-NOV-2022,C&FS (P),Favour Health Ltd,TRADE SUPPLIER,5411-Private Contractors - General,824.80
02-NOV-2022,C&FS (P),Favour Health Ltd,TRADE SUPPLIER,5451-LCT/LAC (Not Fostered),"6,750.99"
02-NOV-2022,C&FS (P),Favour Health Ltd,TRADE SUPPLIER,5451-LCT/LAC (Not Fostered),"3,633.08"
02-NOV-2022,C&FS (P),Favour Health Ltd,TRADE SUPPLIER,5411-Private Contractors - General,824.80
02-NOV-2022,C&FS (P),Favour Health Ltd,TRADE SUPPLIER,5451-LCT/LAC (Not Fostered),"3,633.08"
02-NOV-2022,C&FS (P),Favour Health Ltd,TRADE SUPPLIER,5451-LCT/LAC (Not Fostered),"3,633.24"
02-NOV-2022,C&FS (P),Favour Health Ltd,TRADE SUPPLIER,5451-LCT/LAC (Not Fostered),"3,633.24"
02-NOV-2022,C&FS (P),Favour Health Ltd,TRADE SUPPLIER,5451-LCT/LAC (Not Fostered),"3,633.08"
02-NOV-2022,C&FS (P),Favour Health Ltd,TRADE SUPPLIER,5451-LCT/LAC (Not Fostered),"3,633.24"
02-NOV-2022,C&FS (P),Favour Health Ltd,TRADE SUPPLIER,5411-Private Contractors - General,824.80
02-NOV-2022,C&FS (P),First Class Tailored Solutions Ltd,TRADE SUPPLIER,5323-External SEN Providers Independent Sch,"1,197.00"
02-NOV-2022,C&FS (P),First Response (First Aid) Ltd,TRADE SUPPLIER,5443-Agency & Contracted Services,620.00
02-NOV-2022,Environment & Transport (P),Ford & Slater of Leicester,TRADE SUPPLIER,3102-Vehicle & Plant Repairs & Maintenance,"1,395.00"
02-NOV-2022,C&FS (P),Gain Healthcare Ltd,TRADE SUPPLIER,5411-Private Contractors - General,"1,400.00"
02-NOV-2022,C&FS (P),Gain Healthcare Ltd,TRADE SUPPLIER,5451-LCT/LAC (Not Fostered),"1,572.50"
02-NOV-2022,Environment & Transport (P),Generation Cabs Ltd,TRADE SUPPLIER,3303-Taxi Hire,"1,287.00"
02-NOV-2022,Environment & Transport (P),Generation Cabs Ltd,TRADE SUPPLIER,3303-Taxi Hire,"2,572.50"
02-NOV-2022,Environment & Transport (P),Generation Cabs Ltd,TRADE SUPPLIER,3303-Taxi Hire,"3,885.00"
02-NOV-2022,Environment & Transport (P),Generation Cabs Ltd,TRADE SUPPLIER,3303-Taxi Hire,840.00
02-NOV-2022,Environment & Transport (P),Generation Cabs Ltd,TRADE SUPPLIER,3303-Taxi Hire,"3,147.90"
02-NOV-2022,Environment & Transport (P),Generation Cabs Ltd,TRADE SUPPLIER,3303-Taxi Hire,784.00
02-NOV-2022,Environment & Transport (P),Generation Cabs Ltd,TRADE SUPPLIER,3303-Taxi Hire,"2,719.50"
02-NOV-2022,Environment & Transport (P),Generation Cabs Ltd,TRADE SUPPLIER,3303-Taxi Hire,"1,890.00"
02-NOV-2022,Environment & Transport (P),Generation Cabs Ltd,TRADE SUPPLIER,3303-Taxi Hire,"1,659.00"
02-NOV-2022,Environment & Transport (P),Generation Cabs Ltd,TRADE SUPPLIER,3303-Taxi Hire,"2,667.00"
02-NOV-2022,C&FS (P),Glebelands Primary School,OTHER LOCAL AUTHORITIES,5212-OLEA Recoupment,"1,453.00"
02-NOV-2022,C&FS (P),Glebelands Primary School,OTHER LOCAL AUTHORITIES,5212-OLEA Recoupment,"2,966.00"
02-NOV-2022,Environment & Transport (P),REDACTED PERSONAL DATA,NON TRADE,3303-Taxi Hire,"1,435.00"
02-NOV-2022,Environment & Transport (P),REDACTED PERSONAL DATA,NON TRADE,3201-Pooled Transport Recharge Inhouse,"1,020.00"
02-NOV-2022,Environment & Transport (P),REDACTED PERSONAL DATA,NON TRADE,3201-Pooled Transport Recharge Inhouse,516.51
02-NOV-2022,Environment & Transport (P),REDACTED PERSONAL DATA,NON TRADE,3201-Pooled Transport Recharge Inhouse,970.00
02-NOV-2022,Environment & Transport (P),GVN Cabs Ltd,TRADE SUPPLIER,3303-Taxi Hire,"3,773.91"
02-NOV-2022,Environment & Transport (P),GVN Cabs Ltd,TRADE SUPPLIER,3303-Taxi Hire,"2,943.13"
02-NOV-2022,Environment & Transport (P),GVN Cabs Ltd,TRADE SUPPLIER,3303-Taxi Hire,"2,618.46"
02-NOV-2022,Environment & Transport (P),GVN Cabs Ltd,TRADE SUPPLIER,3113-Home to Sch Trans Contract Buses Sec,"2,471.91"
02-NOV-2022,Environment & Transport (P),GVN Cabs Ltd,TRADE SUPPLIER,3303-Taxi Hire,"2,517.40"
02-NOV-2022,Environment & Transport (P),GVN Cabs Ltd,TRADE SUPPLIER,3303-Taxi Hire,"3,190.53"
02-NOV-2022,Environment & Transport (P),GVN Cabs Ltd,TRADE SUPPLIER,3303-Taxi Hire,"2,977.59"
02-NOV-2022,Environment & Transport (P),GVN Cabs Ltd,TRADE SUPPLIER,3303-Taxi Hire,"2,454.05"
02-NOV-2022,Environment & Transport (P),GVN Cabs Ltd,TRADE SUPPLIER,3303-Taxi Hire,"2,703.33"
02-NOV-2022,Environment & Transport (P),GVN Cabs Ltd,TRADE SUPPLIER,3303-Taxi Hire,"2,520.00"
02-NOV-2022,Environment & Transport (P),Her Majestys Courts & Tribunals Service,NON TRADE,4909-Subscriptions,"5,000.00"
02-NOV-2022,Capital - In Year Spend (P),Insight Direct (UK) Ltd,TRADE SUPPLIER,943C-VPE - Equipment (Furniture/ IT) Exp,"24,164.84"
02-NOV-2022,C&FS (P),REDACTED PERSONAL DATA,TRADE INDIVIDUAL,5323-External SEN Providers Independent Sch,930.24
02-NOV-2022,Adults & Communities (P),REDACTED PERSONAL DATA,TRADE INDIVIDUAL,4901-Other Expenditure,564.75
02-NOV-2022,C&FS (P),Jordan Xavier Ltd,TRADE SUPPLIER,5451-LCT/LAC (Not Fostered),"2,258.57"
02-NOV-2022,C&FS (P),Jordan Xavier Ltd,TRADE SUPPLIER,5411-Private Contractors - General,552.86
02-NOV-2022,C&FS (P),Jordan Xavier Ltd,TRADE SUPPLIER,5451-LCT/LAC (Not Fostered),"2,721.43"
02-NOV-2022,C&FS (P),Jordan Xavier Ltd,TRADE SUPPLIER,5451-LCT/LAC (Not Fostered),"5,528.57"
02-NOV-2022,Environment & Transport (P),REDACTED PERSONAL DATA,TRADE INDIVIDUAL,3113-Home to Sch Trans Contract Buses Sec,"2,730.00"
02-NOV-2022,C&FS (P),Key2 Futures Ltd,TRADE SUPPLIER,5411-Private Contractors - General,"2,914.20"
02-NOV-2022,C&FS (P),Key2 Futures Ltd,TRADE SUPPLIER,5411-Private Contractors - General,"2,914.20"
02-NOV-2022,C&FS (P),Key2 Futures Ltd,TRADE SUPPLIER,5451-LCT/LAC (Not Fostered),"2,515.80"
02-NOV-2022,C&FS (P),Key2 Futures Ltd,TRADE SUPPLIER,5451-LCT/LAC (Not Fostered),"2,075.80"
02-NOV-2022,C&FS (P),Key2 Futures Ltd,TRADE SUPPLIER,5411-Private Contractors - General,"2,515.80"
02-NOV-2022,C&FS (P),Key2 Futures Ltd,TRADE SUPPLIER,5451-LCT/LAC (Not Fostered),"1,915.80"
02-NOV-2022,C&FS (P),Key2 Futures Ltd,TRADE SUPPLIER,5451-LCT/LAC (Not Fostered),"1,450.47"
02-NOV-2022,C&FS (P),Key2 Futures Ltd,TRADE SUPPLIER,5411-Private Contractors - General,"1,915.80"
02-NOV-2022,C&FS (P),Keyham Lodge School,NON TRADE,5212-OLEA Recoupment,"44,010.42"
02-NOV-2022,Schools Revenue Cost Centres (P),LCC Castle Donington Orchard CP School A/C,GENERAL,4524-Transfers to Schools,"223,603.96"
02-NOV-2022,Chief Executives (P),LCCDA Management Co operative Ltd,TRADE SUPPLIER,5315-Voluntary Associations Support Services,"5,000.00"
02-NOV-2022,C&FS (P),Leaders in Care,FACTOR,1201-Agency Costs,"1,302.40"
02-NOV-2022,C&FS (P),Loughborough Schools Foundation T/A Loughborough Amherst Preparatory School,NON TRADE,4908-Grants,"5,081.70"
02-NOV-2022,Environment & Transport (P),Master Cabs Leicester Ltd,TRADE SUPPLIER,3303-Taxi Hire,"1,552.50"
02-NOV-2022,Environment & Transport (P),Master Cabs Leicester Ltd,TRADE SUPPLIER,3113-Home to Sch Trans Contract Buses Sec,"1,679.00"
02-NOV-2022,Environment & Transport (P),Master Cabs Leicester Ltd,TRADE SUPPLIER,3303-Taxi Hire,"2,432.00"
02-NOV-2022,Environment & Transport (P),Master Cabs Leicester Ltd,TRADE SUPPLIER,3303-Taxi Hire,"2,883.65"
02-NOV-2022,Environment & Transport (P),Master Cabs Leicester Ltd,TRADE SUPPLIER,3303-Taxi Hire,"1,255.50"
02-NOV-2022,Environment & Transport (P),Master Cabs Leicester Ltd,TRADE SUPPLIER,3303-Taxi Hire,"1,957.50"
02-NOV-2022,Environment & Transport (P),Master Cabs Leicester Ltd,TRADE SUPPLIER,3303-Taxi Hire,"3,172.50"
02-NOV-2022,Environment & Transport (P),Master Cabs Leicester Ltd,TRADE SUPPLIER,3115-Home to Sch Trans Contract Buses FE,"1,580.00"
02-NOV-2022,Environment & Transport (P),Master Cabs Leicester Ltd,TRADE SUPPLIER,3201-Pooled Transport Recharge Inhouse,"1,738.00"
02-NOV-2022,Environment & Transport (P),Master Cabs Leicester Ltd,TRADE SUPPLIER,3303-Taxi Hire,"1,365.00"
02-NOV-2022,Environment & Transport (P),Master Cabs Leicester Ltd,TRADE SUPPLIER,3303-Taxi Hire,"4,025.00"
02-NOV-2022,Environment & Transport (P),Master Cabs Leicester Ltd,TRADE SUPPLIER,3303-Taxi Hire,"3,021.00"
02-NOV-2022,Environment & Transport (P),Master Cabs Leicester Ltd,TRADE SUPPLIER,3303-Taxi Hire,"2,935.95"
02-NOV-2022,Environment & Transport (P),Master Cabs Leicester Ltd,TRADE SUPPLIER,3303-Taxi Hire,"3,611.00"
02-NOV-2022,Environment & Transport (P),Master Cabs Leicester Ltd,TRADE SUPPLIER,3303-Taxi Hire,"3,721.40"
02-NOV-2022,Environment & Transport (P),Master Cabs Leicester Ltd,TRADE SUPPLIER,3303-Taxi Hire,"3,726.00"
02-NOV-2022,Environment & Transport (P),Master Cabs Leicester Ltd,TRADE SUPPLIER,3112-Home to Sch Trans Contract Buses Prim,"1,127.00"
02-NOV-2022,Environment & Transport (P),Master Cabs Leicester Ltd,TRADE SUPPLIER,3303-Taxi Hire,"2,197.50"
02-NOV-2022,Environment & Transport (P),Master Cabs Leicester Ltd,TRADE SUPPLIER,3201-Pooled Transport Recharge Inhouse,"1,683.00"
02-NOV-2022,Environment & Transport (P),Master Cabs Leicester Ltd,TRADE SUPPLIER,3201-Pooled Transport Recharge Inhouse,"3,115.36"
02-NOV-2022,C&FS (P),REDACTED PERSONAL DATA,GENERAL,5642-Foster Parents Fostering Allowances,"2,400.00"
02-NOV-2022,Environment & Transport (P),REDACTED PERSONAL DATA,TRADE SUPPLIER,3113-Home to Sch Trans Contract Buses Sec,"4,350.78"
02-NOV-2022,C&FS (P),Millgate School,OTHER LOCAL AUTHORITIES,5212-OLEA Recoupment,"101,763.75"
02-NOV-2022,C&FS (P),Narborough Hotel Ltd T/A Heritage Hotel,TRADE SUPPLIER,4902-Hospitality,"1,525.00"
02-NOV-2022,Environment & Transport (P),ND Brown Ltd,TRADE SUPPLIER,3301-Vehicle & Plant Hire,"2,132.90"
02-NOV-2022,Chief Executives (P),New Street Chambers,TRADE SUPPLIER,4507-Consultants & Specialists,900.00
02-NOV-2022,C&FS (P),Nisai Virtual Academy Ltd,TRADE SUPPLIER,5323-External SEN Providers Independent Sch,"33,500.00"
02-NOV-2022,C&FS (P),NSPCC Registered Charity,NON TRADE,2321-Rent & Room Hire,937.50
02-NOV-2022,Environment & Transport (P),REDACTED PERSONAL DATA,NON TRADE,3303-Taxi Hire,"2,415.00"
02-NOV-2022,Environment & Transport (P),Planters (Leicester) Ltd,SUBCONTRACTOR,3301-Vehicle & Plant Hire,"1,780.44"
02-NOV-2022,Environment & Transport (P),Planters (Leicester) Ltd,SUBCONTRACTOR,4901-Other Expenditure,878.50
02-NOV-2022,Environment & Transport (P),Planters (Leicester) Ltd,SUBCONTRACTOR,3301-Vehicle & Plant Hire,"1,487.40"
02-NOV-2022,Adults & Communities (P),Premier Mobility (UK) Ltd,SUBCONTRACTOR,4102-General Equipment - Purchase & Repairs,800.00
02-NOV-2022,Corporate Resources (CR) (P),Premier Paper Group Ltd,TRADE SUPPLIER,4405-Stationery,731.80
02-NOV-2022,Environment & Transport (P),Premier Taxis Leicester Ltd,TRADE SUPPLIER,3201-Pooled Transport Recharge Inhouse,504.00
02-NOV-2022,Environment & Transport (P),Premier Taxis Leicester Ltd,TRADE SUPPLIER,3201-Pooled Transport Recharge Inhouse,720.00
02-NOV-2022,Environment & Transport (P),Premier Taxis Leicester Ltd,TRADE SUPPLIER,3201-Pooled Transport Recharge Inhouse,710.00
02-NOV-2022,Environment & Transport (P),Premier Taxis Leicester Ltd,TRADE SUPPLIER,3201-Pooled Transport Recharge Inhouse,588.00
02-NOV-2022,Environment & Transport (P),Premier Taxis Leicester Ltd,TRADE SUPPLIER,3303-Taxi Hire,"1,933.15"
02-NOV-2022,Environment & Transport (P),Premier Taxis Leicester Ltd,TRADE SUPPLIER,3303-Taxi Hire,"2,585.52"
02-NOV-2022,Environment & Transport (P),Premier Taxis Leicester Ltd,TRADE SUPPLIER,3303-Taxi Hire,"1,980.30"
02-NOV-2022,Environment & Transport (P),Premier Taxis Leicester Ltd,TRADE SUPPLIER,3303-Taxi Hire,"2,366.70"
02-NOV-2022,Environment & Transport (P),Premier Taxis Leicester Ltd,TRADE SUPPLIER,3303-Taxi Hire,848.16
02-NOV-2022,Environment & Transport (P),Premier Taxis Leicester Ltd,TRADE SUPPLIER,3303-Taxi Hire,"2,688.00"
02-NOV-2022,Environment & Transport (P),Premier Taxis Leicester Ltd,TRADE SUPPLIER,3112-Home to Sch Trans Contract Buses Prim,"1,285.00"
02-NOV-2022,Environment & Transport (P),Premier Taxis Leicester Ltd,TRADE SUPPLIER,3303-Taxi Hire,"1,386.00"
02-NOV-2022,Environment & Transport (P),Premier Taxis Leicester Ltd,TRADE SUPPLIER,3303-Taxi Hire,"1,386.00"
02-NOV-2022,Environment & Transport (P),Premier Taxis Leicester Ltd,TRADE SUPPLIER,3303-Taxi Hire,995.00
02-NOV-2022,Environment & Transport (P),Premier Taxis Leicester Ltd,TRADE SUPPLIER,3113-Home to Sch Trans Contract Buses Sec,"1,280.96"
02-NOV-2022,Environment & Transport (P),Premier Taxis Leicester Ltd,TRADE SUPPLIER,3113-Home to Sch Trans Contract Buses Sec,"1,470.00"
02-NOV-2022,Environment & Transport (P),Premier Taxis Leicester Ltd,TRADE SUPPLIER,3201-Pooled Transport Recharge Inhouse,896.00
02-NOV-2022,Environment & Transport (P),Premier Taxis Leicester Ltd,TRADE SUPPLIER,3201-Pooled Transport Recharge Inhouse,748.00
02-NOV-2022,Environment & Transport (P),Premier Taxis Leicester Ltd,TRADE SUPPLIER,3201-Pooled Transport Recharge Inhouse,"1,216.00"
02-NOV-2022,Environment & Transport (P),Premier Taxis Leicester Ltd,TRADE SUPPLIER,3303-Taxi Hire,"2,152.80"
02-NOV-2022,Environment & Transport (P),Premier Taxis Leicester Ltd,TRADE SUPPLIER,3303-Taxi Hire,"1,564.80"
02-NOV-2022,Environment & Transport (P),Premier Taxis Leicester Ltd,TRADE SUPPLIER,3303-Taxi Hire,526.50
02-NOV-2022,Environment & Transport (P),Premier Taxis Leicester Ltd,TRADE SUPPLIER,3303-Taxi Hire,"2,180.43"
02-NOV-2022,Environment & Transport (P),Premier Taxis Leicester Ltd,TRADE SUPPLIER,3303-Taxi Hire,"2,801.40"
02-NOV-2022,Environment & Transport (P),Premier Taxis Leicester Ltd,TRADE SUPPLIER,3303-Taxi Hire,"2,337.00"
02-NOV-2022,Environment & Transport (P),Premier Taxis Leicester Ltd,TRADE SUPPLIER,3303-Taxi Hire,"2,829.00"
02-NOV-2022,Environment & Transport (P),Premier Taxis Leicester Ltd,TRADE SUPPLIER,3303-Taxi Hire,"2,125.20"
02-NOV-2022,Environment & Transport (P),Premier Taxis Leicester Ltd,TRADE SUPPLIER,3303-Taxi Hire,"2,008.23"
02-NOV-2022,Environment & Transport (P),Premier Taxis Leicester Ltd,TRADE SUPPLIER,3303-Taxi Hire,"2,704.80"
02-NOV-2022,Environment & Transport (P),Premier Taxis Leicester Ltd,TRADE SUPPLIER,3303-Taxi Hire,"2,058.00"
02-NOV-2022,Environment & Transport (P),Premier Taxis Leicester Ltd,TRADE SUPPLIER,3303-Taxi Hire,"1,829.65"
02-NOV-2022,Environment & Transport (P),Premier Taxis Leicester Ltd,TRADE SUPPLIER,3303-Taxi Hire,"1,062.60"
02-NOV-2022,Environment & Transport (P),Premier Taxis Leicester Ltd,TRADE SUPPLIER,3303-Taxi Hire,"1,630.15"
02-NOV-2022,Environment & Transport (P),Premier Taxis Leicester Ltd,TRADE SUPPLIER,3303-Taxi Hire,"2,566.20"
02-NOV-2022,Environment & Transport (P),Premier Taxis Leicester Ltd,TRADE SUPPLIER,3303-Taxi Hire,"4,202.10"
02-NOV-2022,Environment & Transport (P),Premier Taxis Leicester Ltd,TRADE SUPPLIER,3303-Taxi Hire,"3,864.00"
02-NOV-2022,Environment & Transport (P),Premier Taxis Leicester Ltd,TRADE SUPPLIER,3303-Taxi Hire,"1,694.00"
02-NOV-2022,Environment & Transport (P),Premier Taxis Leicester Ltd,TRADE SUPPLIER,3303-Taxi Hire,"2,704.80"
02-NOV-2022,Environment & Transport (P),Premier Taxis Leicester Ltd,TRADE SUPPLIER,3303-Taxi Hire,"3,101.07"
02-NOV-2022,Environment & Transport (P),Premier Taxis Leicester Ltd,TRADE SUPPLIER,3303-Taxi Hire,"2,318.40"
02-NOV-2022,Environment & Transport (P),Premier Taxis Leicester Ltd,TRADE SUPPLIER,3303-Taxi Hire,"2,704.80"
02-NOV-2022,Environment & Transport (P),Premier Taxis Leicester Ltd,TRADE SUPPLIER,3303-Taxi Hire,"2,511.60"
02-NOV-2022,Environment & Transport (P),Premier Taxis Leicester Ltd,TRADE SUPPLIER,3303-Taxi Hire,"1,623.70"
02-NOV-2022,Environment & Transport (P),Premier Taxis Leicester Ltd,TRADE SUPPLIER,3201-Pooled Transport Recharge Inhouse,"3,066.00"
02-NOV-2022,Environment & Transport (P),Premier Taxis Leicester Ltd,TRADE SUPPLIER,3303-Taxi Hire,"1,560.00"
02-NOV-2022,Environment & Transport (P),Premier Taxis Leicester Ltd,TRADE SUPPLIER,3303-Taxi Hire,"2,076.90"
02-NOV-2022,Environment & Transport (P),Premier Taxis Leicester Ltd,TRADE SUPPLIER,3303-Taxi Hire,"2,871.60"
02-NOV-2022,Environment & Transport (P),Premier Taxis Leicester Ltd,TRADE SUPPLIER,3303-Taxi Hire,"2,574.00"
02-NOV-2022,Environment & Transport (P),Premier Taxis Leicester Ltd,TRADE SUPPLIER,3303-Taxi Hire,"2,448.60"
02-NOV-2022,Environment & Transport (P),Premier Taxis Leicester Ltd,TRADE SUPPLIER,3303-Taxi Hire,"2,470.00"
02-NOV-2022,Environment & Transport (P),Premier Taxis Leicester Ltd,TRADE SUPPLIER,3303-Taxi Hire,963.30
02-NOV-2022,Environment & Transport (P),Premier Taxis Leicester Ltd,TRADE SUPPLIER,3303-Taxi Hire,"2,125.20"
02-NOV-2022,Environment & Transport (P),Premier Taxis Leicester Ltd,TRADE SUPPLIER,3112-Home to Sch Trans Contract Buses Prim,"1,029.00"
02-NOV-2022,Environment & Transport (P),Premier Taxis Leicester Ltd,TRADE SUPPLIER,3113-Home to Sch Trans Contract Buses Sec,576.00
02-NOV-2022,Environment & Transport (P),Premier Taxis Leicester Ltd,TRADE SUPPLIER,3113-Home to Sch Trans Contract Buses Sec,"1,674.00"
02-NOV-2022,Environment & Transport (P),Premier Taxis Leicester Ltd,TRADE SUPPLIER,3113-Home to Sch Trans Contract Buses Sec,"2,816.00"
02-NOV-2022,Environment & Transport (P),Premier Taxis Leicester Ltd,TRADE SUPPLIER,3112-Home to Sch Trans Contract Buses Prim,"1,596.00"
02-NOV-2022,Environment & Transport (P),Premier Taxis Leicester Ltd,TRADE SUPPLIER,3113-Home to Sch Trans Contract Buses Sec,"2,255.40"
02-NOV-2022,Environment & Transport (P),Premier Taxis Leicester Ltd,TRADE SUPPLIER,3113-Home to Sch Trans Contract Buses Sec,"1,932.00"
02-NOV-2022,Environment & Transport (P),Premier Taxis Leicester Ltd,TRADE SUPPLIER,3113-Home to Sch Trans Contract Buses Sec,"1,239.00"
02-NOV-2022,Environment & Transport (P),Premier Taxis Leicester Ltd,TRADE SUPPLIER,3303-Taxi Hire,"1,642.20"
02-NOV-2022,Environment & Transport (P),Premier Taxis Leicester Ltd,TRADE SUPPLIER,3303-Taxi Hire,"2,814.00"
02-NOV-2022,Environment & Transport (P),Premier Taxis Leicester Ltd,TRADE SUPPLIER,3303-Taxi Hire,"2,186.64"
02-NOV-2022,Environment & Transport (P),Premier Taxis Leicester Ltd,TRADE SUPPLIER,3303-Taxi Hire,"2,562.00"
02-NOV-2022,Environment & Transport (P),Premier Taxis Leicester Ltd,TRADE SUPPLIER,3303-Taxi Hire,"1,714.65"
02-NOV-2022,Environment & Transport (P),Premier Taxis Leicester Ltd,TRADE SUPPLIER,3303-Taxi Hire,"3,444.00"
02-NOV-2022,Environment & Transport (P),Premier Taxis Leicester Ltd,TRADE SUPPLIER,3303-Taxi Hire,"2,537.64"
02-NOV-2022,Environment & Transport (P),Premier Taxis Leicester Ltd,TRADE SUPPLIER,3303-Taxi Hire,"2,888.00"
02-NOV-2022,Environment & Transport (P),Premier Taxis Leicester Ltd,TRADE SUPPLIER,3303-Taxi Hire,"3,111.06"
02-NOV-2022,Environment & Transport (P),Premier Taxis Leicester Ltd,TRADE SUPPLIER,3303-Taxi Hire,"2,448.00"
02-NOV-2022,Environment & Transport (P),Premier Taxis Leicester Ltd,TRADE SUPPLIER,3303-Taxi Hire,"2,280.00"
02-NOV-2022,Environment & Transport (P),Premier Taxis Leicester Ltd,TRADE SUPPLIER,3303-Taxi Hire,"2,268.00"
02-NOV-2022,Environment & Transport (P),Premier Taxis Leicester Ltd,TRADE SUPPLIER,3303-Taxi Hire,"1,802.00"
02-NOV-2022,Environment & Transport (P),Premier Taxis Leicester Ltd,TRADE SUPPLIER,3303-Taxi Hire,"1,806.00"
02-NOV-2022,Environment & Transport (P),Premier Taxis Leicester Ltd,TRADE SUPPLIER,3303-Taxi Hire,"2,436.00"
02-NOV-2022,Environment & Transport (P),Premier Taxis Leicester Ltd,TRADE SUPPLIER,3303-Taxi Hire,"2,672.88"
02-NOV-2022,Environment & Transport (P),Premier Taxis Leicester Ltd,TRADE SUPPLIER,3303-Taxi Hire,"3,108.00"
02-NOV-2022,Environment & Transport (P),Premier Taxis Leicester Ltd,TRADE SUPPLIER,3303-Taxi Hire,"3,830.40"
02-NOV-2022,Environment & Transport (P),Premier Taxis Leicester Ltd,TRADE SUPPLIER,3303-Taxi Hire,816.00
02-NOV-2022,Environment & Transport (P),Premier Taxis Leicester Ltd,TRADE SUPPLIER,3303-Taxi Hire,"1,220.00"
02-NOV-2022,Environment & Transport (P),Premier Taxis Leicester Ltd,TRADE SUPPLIER,3303-Taxi Hire,"2,688.00"
02-NOV-2022,Environment & Transport (P),Premier Taxis Leicester Ltd,TRADE SUPPLIER,3303-Taxi Hire,"2,438.00"
02-NOV-2022,Environment & Transport (P),Premier Taxis Leicester Ltd,TRADE SUPPLIER,3303-Taxi Hire,"2,436.00"
02-NOV-2022,Environment & Transport (P),Premier Taxis Leicester Ltd,TRADE SUPPLIER,3303-Taxi Hire,"2,184.00"
02-NOV-2022,Environment & Transport (P),Premier Taxis Leicester Ltd,TRADE SUPPLIER,3303-Taxi Hire,"2,994.60"
02-NOV-2022,Environment & Transport (P),Premier Taxis Leicester Ltd,TRADE SUPPLIER,3303-Taxi Hire,"2,867.34"
02-NOV-2022,Environment & Transport (P),Premier Taxis Leicester Ltd,TRADE SUPPLIER,3303-Taxi Hire,"1,732.80"
02-NOV-2022,Environment & Transport (P),Premier Taxis Leicester Ltd,TRADE SUPPLIER,3303-Taxi Hire,814.00
02-NOV-2022,Environment & Transport (P),Premier Taxis Leicester Ltd,TRADE SUPPLIER,3303-Taxi Hire,"3,734.64"
02-NOV-2022,Environment & Transport (P),Premier Taxis Leicester Ltd,TRADE SUPPLIER,3303-Taxi Hire,"2,076.90"
02-NOV-2022,Environment & Transport (P),Premier Taxis Leicester Ltd,TRADE SUPPLIER,3303-Taxi Hire,"2,814.00"
02-NOV-2022,Environment & Transport (P),Premier Taxis Leicester Ltd,TRADE SUPPLIER,3303-Taxi Hire,"3,236.10"
02-NOV-2022,Environment & Transport (P),Premier Taxis Leicester Ltd,TRADE SUPPLIER,3303-Taxi Hire,"2,898.00"
02-NOV-2022,Environment & Transport (P),Premier Taxis Leicester Ltd,TRADE SUPPLIER,3303-Taxi Hire,"3,003.00"
02-NOV-2022,Environment & Transport (P),Premier Taxis Leicester Ltd,TRADE SUPPLIER,3303-Taxi Hire,"1,308.00"
02-NOV-2022,Environment & Transport (P),Premier Taxis Leicester Ltd,TRADE SUPPLIER,3303-Taxi Hire,"1,260.00"
02-NOV-2022,Environment & Transport (P),Premier Taxis Leicester Ltd,TRADE SUPPLIER,3303-Taxi Hire,"1,232.00"
02-NOV-2022,Environment & Transport (P),Premier Taxis Leicester Ltd,TRADE SUPPLIER,3201-Pooled Transport Recharge Inhouse,"2,016.00"
02-NOV-2022,Environment & Transport (P),Premier Taxis Leicester Ltd,TRADE SUPPLIER,3201-Pooled Transport Recharge Inhouse,"1,708.00"
02-NOV-2022,Environment & Transport (P),Premier Taxis Leicester Ltd,TRADE SUPPLIER,3303-Taxi Hire,"1,647.00"
02-NOV-2022,Environment & Transport (P),Premier Taxis Leicester Ltd,TRADE SUPPLIER,3303-Taxi Hire,"2,736.00"
02-NOV-2022,Environment & Transport (P),Premier Taxis Leicester Ltd,TRADE SUPPLIER,3201-Pooled Transport Recharge Inhouse,"2,768.00"
02-NOV-2022,Environment & Transport (P),Premier Taxis Leicester Ltd,TRADE SUPPLIER,3201-Pooled Transport Recharge Inhouse,957.60
02-NOV-2022,Environment & Transport (P),Premier Taxis Leicester Ltd,TRADE SUPPLIER,3303-Taxi Hire,"2,125.20"
02-NOV-2022,Environment & Transport (P),Premier Taxis Leicester Ltd,TRADE SUPPLIER,3303-Taxi Hire,"3,038.00"
02-NOV-2022,Environment & Transport (P),Premier Taxis Leicester Ltd,TRADE SUPPLIER,3303-Taxi Hire,"2,562.00"
02-NOV-2022,Environment & Transport (P),Premier Taxis Leicester Ltd,TRADE SUPPLIER,3303-Taxi Hire,"1,520.00"
02-NOV-2022,Environment & Transport (P),Premier Taxis Leicester Ltd,TRADE SUPPLIER,3303-Taxi Hire,"1,806.00"
02-NOV-2022,Environment & Transport (P),Premier Taxis Leicester Ltd,TRADE SUPPLIER,3303-Taxi Hire,"2,268.00"
02-NOV-2022,Environment & Transport (P),Premier Taxis Leicester Ltd,TRADE SUPPLIER,3303-Taxi Hire,"2,366.70"
02-NOV-2022,Environment & Transport (P),Premier Taxis Leicester Ltd,TRADE SUPPLIER,3303-Taxi Hire,"2,263.20"
02-NOV-2022,Environment & Transport (P),Premier Taxis Leicester Ltd,TRADE SUPPLIER,3303-Taxi Hire,"2,847.60"
02-NOV-2022,Environment & Transport (P),Premier Taxis Leicester Ltd,TRADE SUPPLIER,3303-Taxi Hire,"3,032.40"
02-NOV-2022,Environment & Transport (P),Premier Taxis Leicester Ltd,TRADE SUPPLIER,3303-Taxi Hire,"2,489.76"
02-NOV-2022,Environment & Transport (P),Premier Taxis Leicester Ltd,TRADE SUPPLIER,3303-Taxi Hire,"2,856.00"
02-NOV-2022,Environment & Transport (P),Premier Taxis Leicester Ltd,TRADE SUPPLIER,3303-Taxi Hire,"2,419.00"
02-NOV-2022,Environment & Transport (P),Premier Taxis Leicester Ltd,TRADE SUPPLIER,3303-Taxi Hire,"1,782.00"
02-NOV-2022,Environment & Transport (P),Premier Taxis Leicester Ltd,TRADE SUPPLIER,3303-Taxi Hire,"2,100.00"
02-NOV-2022,Environment & Transport (P),Premier Taxis Leicester Ltd,TRADE SUPPLIER,3303-Taxi Hire,"1,244.76"
02-NOV-2022,Environment & Transport (P),Premier Taxis Leicester Ltd,TRADE SUPPLIER,3303-Taxi Hire,"3,150.00"
02-NOV-2022,Environment & Transport (P),Premier Taxis Leicester Ltd,TRADE SUPPLIER,3303-Taxi Hire,"2,310.00"
02-NOV-2022,Environment & Transport (P),Premier Taxis Leicester Ltd,TRADE SUPPLIER,3303-Taxi Hire,"2,511.60"
02-NOV-2022,Environment & Transport (P),Premier Taxis Leicester Ltd,TRADE SUPPLIER,3303-Taxi Hire,"2,727.90"
02-NOV-2022,Environment & Transport (P),Premier Taxis Leicester Ltd,TRADE SUPPLIER,3303-Taxi Hire,"3,583.66"
02-NOV-2022,Environment & Transport (P),Premier Taxis Leicester Ltd,TRADE SUPPLIER,3303-Taxi Hire,"2,074.60"
02-NOV-2022,Environment & Transport (P),Premier Taxis Leicester Ltd,TRADE SUPPLIER,3303-Taxi Hire,"2,657.76"
02-NOV-2022,Environment & Transport (P),Premier Taxis Leicester Ltd,TRADE SUPPLIER,3303-Taxi Hire,"1,472.84"
02-NOV-2022,Environment & Transport (P),Premier Taxis Leicester Ltd,TRADE SUPPLIER,3303-Taxi Hire,"2,994.60"
02-NOV-2022,Environment & Transport (P),Premier Taxis Leicester Ltd,TRADE SUPPLIER,3303-Taxi Hire,"2,732.90"
02-NOV-2022,Environment & Transport (P),Premier Taxis Leicester Ltd,TRADE SUPPLIER,3303-Taxi Hire,"1,642.20"
02-NOV-2022,Environment & Transport (P),Premier Taxis Leicester Ltd,TRADE SUPPLIER,3303-Taxi Hire,"1,911.78"
02-NOV-2022,Environment & Transport (P),Premier Taxis Leicester Ltd,TRADE SUPPLIER,3201-Pooled Transport Recharge Inhouse,782.04
02-NOV-2022,Environment & Transport (P),Premier Taxis Leicester Ltd,TRADE SUPPLIER,3201-Pooled Transport Recharge Inhouse,"1,600.00"
02-NOV-2022,Environment & Transport (P),Premier Taxis Leicester Ltd,TRADE SUPPLIER,3201-Pooled Transport Recharge Inhouse,"2,872.80"
02-NOV-2022,Environment & Transport (P),Premier Taxis Leicester Ltd,TRADE SUPPLIER,3201-Pooled Transport Recharge Inhouse,"2,106.72"
02-NOV-2022,Environment & Transport (P),Premier Taxis Leicester Ltd,TRADE SUPPLIER,3201-Pooled Transport Recharge Inhouse,931.50
02-NOV-2022,Environment & Transport (P),Premier Taxis Leicester Ltd,TRADE SUPPLIER,3201-Pooled Transport Recharge Inhouse,"1,030.40"
02-NOV-2022,Environment & Transport (P),Premier Taxis Leicester Ltd,TRADE SUPPLIER,3201-Pooled Transport Recharge Inhouse,"2,170.44"
02-NOV-2022,Environment & Transport (P),Premier Taxis Leicester Ltd,TRADE SUPPLIER,3201-Pooled Transport Recharge Inhouse,986.00
02-NOV-2022,Environment & Transport (P),Premier Taxis Leicester Ltd,TRADE SUPPLIER,3201-Pooled Transport Recharge Inhouse,"1,352.40"
02-NOV-2022,Environment & Transport (P),Premier Taxis Leicester Ltd,TRADE SUPPLIER,3201-Pooled Transport Recharge Inhouse,941.85
02-NOV-2022,Environment & Transport (P),Premier Taxis Leicester Ltd,TRADE SUPPLIER,3201-Pooled Transport Recharge Inhouse,592.20
02-NOV-2022,Environment & Transport (P),Premier Taxis Leicester Ltd,TRADE SUPPLIER,3303-Taxi Hire,"2,974.86"
02-NOV-2022,Environment & Transport (P),Premier Taxis Leicester Ltd,TRADE SUPPLIER,3303-Taxi Hire,"1,368.00"
02-NOV-2022,Environment & Transport (P),Premier Taxis Leicester Ltd,TRADE SUPPLIER,3303-Taxi Hire,"2,511.60"
02-NOV-2022,C&FS (P),Premium Care Solutions Ltd,TRADE SUPPLIER,5429-Community/Domiciliary,"1,647.39"
02-NOV-2022,C&FS (P),Premium Care Solutions Ltd,TRADE SUPPLIER,5429-Community/Domiciliary,"1,619.28"
02-NOV-2022,C&FS (P),Purple Heart Healthcare Agency,TRADE SUPPLIER,5429-Community/Domiciliary,"6,163.00"
02-NOV-2022,C&FS (P),Purple Heart Healthcare Agency,TRADE SUPPLIER,5429-Community/Domiciliary,"6,797.00"
02-NOV-2022,C&FS (P),REDACTED PERSONAL DATA,NON TRADE,4507-Consultants & Specialists,600.00
02-NOV-2022,Environment & Transport (P),Site Welding Services,TRADE SUPPLIER,2101-R&M Buildings,"3,357.00"
02-NOV-2022,Adults & Communities (P),Social Care & Education Ltd,TRADE SUPPLIER,1201-Agency Costs,"1,691.50"
02-NOV-2022,Adults & Communities (P),Social Care & Education Ltd,TRADE SUPPLIER,1101-Salaries,"1,691.50"
02-NOV-2022,Adults & Communities (P),Social Care & Education Ltd,TRADE SUPPLIER,1201-Agency Costs,"2,533.00"
02-NOV-2022,C&FS (P),Speakeasy Therapy Ltd,TRADE SUPPLIER,4901-Other Expenditure,"4,305.00"
02-NOV-2022,Environment & Transport (P),St John Ambulance,NON TRADE,1703-Training Expenses,915.00
02-NOV-2022,Environment & Transport (P),Stennetts Ltd,TRADE SUPPLIER,3301-Vehicle & Plant Hire,"1,885.00"
02-NOV-2022,Environment & Transport (P),Stennetts Ltd,TRADE SUPPLIER,5411-Private Contractors - General,"1,495.00"
02-NOV-2022,Environment & Transport (P),Stennetts Ltd,TRADE SUPPLIER,5411-Private Contractors - General,"3,146.00"
02-NOV-2022,Corporate Resources (CR) (P),Total Produce,TRADE SUPPLIER,4504-Provisions Purchases,"21,073.70"
02-NOV-2022,C&FS (P),Transforming Lives Company,TRADE SUPPLIER,5411-Private Contractors - General,"4,223.40"
02-NOV-2022,C&FS (P),Transforming Lives Company,TRADE SUPPLIER,5411-Private Contractors - General,"4,223.40"
02-NOV-2022,C&FS (P),Transforming Lives Company,TRADE SUPPLIER,5411-Private Contractors - General,"4,223.40"
02-NOV-2022,Chief Executives (P),Weightmans LLP,TRADE SUPPLIER,4905-Legal Expenses,994.50
02-NOV-2022,C&FS (P),Welfare Call (LAC) Ltd,TRADE SUPPLIER,4602-IT Services,"17,105.40"
02-NOV-2022,Environment & Transport (P),Westbury Industrial Supplies Ltd,TRADE SUPPLIER,4901-Other Expenditure,625.86
02-NOV-2022,Corporate Resources (CR) (P),XMA Ltd,TRADE SUPPLIER,4604-IT Equipment Repairs & Maintenance,"2,258.50"
03-NOV-2022,Environment & Transport (P),Access Hire Nationwide Ltd,TRADE SUPPLIER,3301-Vehicle & Plant Hire,"1,478.57"
03-NOV-2022,Chief Executives (P),Acpas Ltd (Adult & Child Psychological Assessment Service),TRADE SUPPLIER,4905-Legal Expenses,"1,090.21"
03-NOV-2022,Capital - In Year Spend (P),AECOM Infrastructure & Environment UK Ltd,TRADE SUPPLIER,944A-Infr - Infrastructure Exp,"247,748.80"
03-NOV-2022,Environment & Transport (P),Aggregate Industries UK Ltd,SUBCONTRACTOR,4109-Materials,556.26
03-NOV-2022,Environment & Transport (P),Aggregate Industries UK Ltd,SUBCONTRACTOR,4109-Materials,874.00
03-NOV-2022,Environment & Transport (P),Aggregate Industries UK Ltd,SUBCONTRACTOR,4109-Materials,821.25
03-NOV-2022,Environment & Transport (P),Aggregate Industries UK Ltd,SUBCONTRACTOR,4109-Materials,669.60
03-NOV-2022,Environment & Transport (P),Aggregate Industries UK Ltd,SUBCONTRACTOR,4109-Materials,776.36
03-NOV-2022,Environment & Transport (P),Aggregate Industries UK Ltd,SUBCONTRACTOR,4109-Materials,"1,092.81"
03-NOV-2022,Environment & Transport (P),Aggregate Industries UK Ltd,SUBCONTRACTOR,4109-Materials,764.31
03-NOV-2022,Environment & Transport (P),Aggregate Industries UK Ltd,SUBCONTRACTOR,4109-Materials,755.55
03-NOV-2022,Environment & Transport (P),Aggregate Industries UK Ltd,SUBCONTRACTOR,4109-Materials,847.40
03-NOV-2022,Environment & Transport (P),Ali Taxis Ltd,TRADE INDIVIDUAL,3303-Taxi Hire,"1,164.00"
03-NOV-2022,Environment & Transport (P),Ali Taxis Ltd,TRADE INDIVIDUAL,3303-Taxi Hire,966.00
03-NOV-2022,Environment & Transport (P),Ali Taxis Ltd,TRADE INDIVIDUAL,3303-Taxi Hire,"1,402.20"
03-NOV-2022,Environment & Transport (P),Ali Taxis Ltd,TRADE INDIVIDUAL,3303-Taxi Hire,"3,666.18"
03-NOV-2022,Environment & Transport (P),Ali Taxis Ltd,TRADE INDIVIDUAL,3303-Taxi Hire,"2,859.78"
03-NOV-2022,Environment & Transport (P),Ali Taxis Ltd,TRADE INDIVIDUAL,3201-Pooled Transport Recharge Inhouse,"3,122.87"
03-NOV-2022,Environment & Transport (P),Ali Taxis Ltd,TRADE INDIVIDUAL,3303-Taxi Hire,"2,691.00"
03-NOV-2022,Environment & Transport (P),Ali Taxis Ltd,TRADE INDIVIDUAL,3303-Taxi Hire,"2,379.30"
03-NOV-2022,C&FS (P),Allied Intergrated Services Ltd,TRADE SUPPLIER,5451-LCT/LAC (Not Fostered),"1,650.50"
03-NOV-2022,Environment & Transport (P),REDACTED PERSONAL DATA,NON TRADE,3303-Taxi Hire,"2,728.95"
03-NOV-2022,C&FS (P),Anew Young People Services Ltd,TRADE SUPPLIER,5451-LCT/LAC (Not Fostered),"2,296.90"
03-NOV-2022,C&FS (P),Anew Young People Services Ltd,TRADE SUPPLIER,5411-Private Contractors - General,"2,253.60"
03-NOV-2022,Adults & Communities (P),Animal Care Services Ltd,TRADE SUPPLIER,5508-Other Support,647.59
03-NOV-2022,Adults & Communities (P),Animal Care Services Ltd,TRADE SUPPLIER,5508-Other Support,652.72
03-NOV-2022,Environment & Transport (P),REDACTED PERSONAL DATA,TRADE SUPPLIER,3303-Taxi Hire,"2,144.15"
03-NOV-2022,Environment & Transport (P),REDACTED PERSONAL DATA,TRADE SUPPLIER,3112-Home to Sch Trans Contract Buses Prim,"1,314.00"
03-NOV-2022,C&FS (P),Baca Charity,TRADE SUPPLIER,5411-Private Contractors - General,"2,837.36"
03-NOV-2022,Environment & Transport (P),Bagnalls Coaches,TRADE SUPPLIER,3113-Home to Sch Trans Contract Buses Sec,"7,036.25"
03-NOV-2022,Environment & Transport (P),REDACTED PERSONAL DATA,TRADE INDIVIDUAL,3303-Taxi Hire,"1,805.16"
03-NOV-2022,Environment & Transport (P),REDACTED PERSONAL DATA,TRADE INDIVIDUAL,3201-Pooled Transport Recharge Inhouse,"1,334.86"
03-NOV-2022,Corporate Resources (CR) (P),BDA Surveying Ltd,TRADE SUPPLIER,4901-Other Expenditure,"1,250.00"
03-NOV-2022,Chief Executives (P),REDACTED PERSONAL DATA,TRADE SUPPLIER,4905-Legal Expenses,"5,175.00"
03-NOV-2022,Environment & Transport (P),REDACTED PERSONAL DATA,TRADE SUPPLIER,3303-Taxi Hire,"1,050.00"
03-NOV-2022,Environment & Transport (P),REDACTED PERSONAL DATA,TRADE SUPPLIER,3113-Home to Sch Trans Contract Buses Sec,"2,058.00"
03-NOV-2022,Environment & Transport (P),Birstall Cabs,TRADE SUPPLIER,3201-Pooled Transport Recharge Inhouse,"1,472.50"
03-NOV-2022,Environment & Transport (P),Birstall Cabs,TRADE SUPPLIER,3303-Taxi Hire,"1,920.03"
03-NOV-2022,Environment & Transport (P),Birstall Cabs,TRADE SUPPLIER,3201-Pooled Transport Recharge Inhouse,"1,944.18"
03-NOV-2022,Environment & Transport (P),Birstall Cabs,TRADE SUPPLIER,3303-Taxi Hire,"2,572.50"
03-NOV-2022,Environment & Transport (P),Birstall Cabs,TRADE SUPPLIER,3303-Taxi Hire,"2,702.07"
03-NOV-2022,Environment & Transport (P),Birstall Cabs,TRADE SUPPLIER,3303-Taxi Hire,"1,711.75"
03-NOV-2022,Environment & Transport (P),Birstall Cabs,TRADE SUPPLIER,3303-Taxi Hire,"3,565.59"
03-NOV-2022,Environment & Transport (P),Birstall Cabs,TRADE SUPPLIER,3203-Pooled Transport Recharge Contractors,"2,246.04"
03-NOV-2022,Environment & Transport (P),Birstall Cabs,TRADE SUPPLIER,3201-Pooled Transport Recharge Inhouse,920.40
03-NOV-2022,Environment & Transport (P),Birstall Cabs,TRADE SUPPLIER,3303-Taxi Hire,"2,629.62"
03-NOV-2022,Environment & Transport (P),Birstall Cabs,TRADE SUPPLIER,3303-Taxi Hire,"2,769.27"
03-NOV-2022,Environment & Transport (P),Birstall Cabs,TRADE SUPPLIER,3303-Taxi Hire,"1,806.00"
03-NOV-2022,Environment & Transport (P),Birstall Cabs,TRADE SUPPLIER,3112-Home to Sch Trans Contract Buses Prim,638.24
03-NOV-2022,Environment & Transport (P),Birstall Cabs,TRADE SUPPLIER,3201-Pooled Transport Recharge Inhouse,"2,255.00"
03-NOV-2022,Environment & Transport (P),Birstall Cabs,TRADE SUPPLIER,3303-Taxi Hire,"2,635.08"
03-NOV-2022,Environment & Transport (P),Birstall Cabs,TRADE SUPPLIER,3303-Taxi Hire,"2,940.00"
03-NOV-2022,Environment & Transport (P),Birstall Cabs,TRADE SUPPLIER,3303-Taxi Hire,"1,912.08"
03-NOV-2022,Environment & Transport (P),Birstall Cars Ltd,TRADE SUPPLIER,3303-Taxi Hire,"2,963.52"
03-NOV-2022,Environment & Transport (P),Birstall Cars Ltd,TRADE SUPPLIER,3201-Pooled Transport Recharge Inhouse,"2,186.52"
03-NOV-2022,Environment & Transport (P),Birstall Cars Ltd,TRADE SUPPLIER,3303-Taxi Hire,"2,368.38"
03-NOV-2022,Environment & Transport (P),Birstall Cars Ltd,TRADE SUPPLIER,3201-Pooled Transport Recharge Inhouse,"1,139.88"
03-NOV-2022,Environment & Transport (P),Birstall Cars Ltd,TRADE SUPPLIER,3303-Taxi Hire,"3,207.12"
03-NOV-2022,Corporate Resources (CR) (P),Brookside Construction (Leicester) Ltd,SUBCONTRACTOR,2101-R&M Buildings,"8,520.00"
03-NOV-2022,Corporate Resources (CR) (P),Browns Of Enderby Ltd,TRADE SUPPLIER,2105-Reactive Maintenance M&E,720.00
03-NOV-2022,Adults & Communities (P),Care2Assess Ltd,TRADE SUPPLIER,5443-Agency & Contracted Services,"11,520.00"
03-NOV-2022,C&FS (P),Carers Direct Homecare Ltd,TRADE SUPPLIER,5429-Community/Domiciliary,"3,094.40"
03-NOV-2022,Chief Executives (P),Central England Cooperative Society Ltd,TRADE SUPPLIER,3124-Other Transport Costs,"4,675.00"
03-NOV-2022,Balance Sheet Cost Centres (P),Certas Energy UK Ltd,TRADE SUPPLIER,9635-Inventories - LHD Fuel Adblue,"1,824.55"
03-NOV-2022,C&FS (P),Childrens Sensory Therapy Ltd,TRADE SUPPLIER,5445-Adoption Support,"2,499.01"
03-NOV-2022,Balance Sheet Cost Centres (P),CID Products LLP,TRADE SUPPLIER,9631-Inventories - General,573.36
03-NOV-2022,Environment & Transport (P),Coalville Cabs Ltd,TRADE SUPPLIER,3113-Home to Sch Trans Contract Buses Sec,"1,625.00"
03-NOV-2022,Environment & Transport (P),Colas Ltd,SUBCONTRACTOR,4901-Other Expenditure,"3,624.30"
03-NOV-2022,Environment & Transport (P),Colas Ltd,SUBCONTRACTOR,3301-Vehicle & Plant Hire,"1,145.30"
03-NOV-2022,Environment & Transport (P),Colas Ltd,SUBCONTRACTOR,3301-Vehicle & Plant Hire,990.07
03-NOV-2022,Environment & Transport (P),Colas Ltd,SUBCONTRACTOR,3301-Vehicle & Plant Hire,"1,145.30"
03-NOV-2022,Environment & Transport (P),Colas Ltd,SUBCONTRACTOR,4901-Other Expenditure,"2,416.20"
03-NOV-2022,Environment & Transport (P),Coltman Brothers Ltd     1,TRADE SUPPLIER,4109-Materials,"1,264.00"
03-NOV-2022,Adults & Communities (P),Compass Computer Consultants Ltd,TRADE SUPPLIER,4604-IT Equipment Repairs & Maintenance,"1,913.03"
03-NOV-2022,C&FS (P),Cornerstones Group Ltd,TRADE SUPPLIER,5622-Transfer Payments Pocket Money,694.92
03-NOV-2022,Environment & Transport (P),Crown Cars (Leic) Ltd,TRADE SUPPLIER,3303-Taxi Hire,"1,270.50"
03-NOV-2022,Environment & Transport (P),Crown Cars (Leic) Ltd,TRADE SUPPLIER,3303-Taxi Hire,"1,379.40"
03-NOV-2022,Environment & Transport (P),Crown Cars (Leic) Ltd,TRADE SUPPLIER,3303-Taxi Hire,"3,257.10"
03-NOV-2022,Environment & Transport (P),Crown Hill Taxis & Care Services Ltd,TRADE SUPPLIER,3303-Taxi Hire,"3,638.00"
03-NOV-2022,Environment & Transport (P),REDACTED PERSONAL DATA,TRADE SUPPLIER,3112-Home to Sch Trans Contract Buses Prim,"3,031.00"
03-NOV-2022,Environment & Transport (P),REDACTED PERSONAL DATA,NON TRADE,3112-Home to Sch Trans Contract Buses Prim,"1,038.40"
03-NOV-2022,Environment & Transport (P),REDACTED PERSONAL DATA,TRADE INDIVIDUAL,3303-Taxi Hire,"1,771.00"
03-NOV-2022,C&FS (P),DFD Care and Support Services Ltd,TRADE SUPPLIER,5622-Transfer Payments Pocket Money,819.92
03-NOV-2022,Environment & Transport (P),Direct Cabs,TRADE SUPPLIER,3303-Taxi Hire,"1,820.00"
03-NOV-2022,Environment & Transport (P),Direct Cabs,TRADE SUPPLIER,3303-Taxi Hire,"1,881.00"
03-NOV-2022,Environment & Transport (P),Direct Cabs,TRADE SUPPLIER,3303-Taxi Hire,"2,394.00"
03-NOV-2022,Environment & Transport (P),Direct Cabs,TRADE SUPPLIER,3303-Taxi Hire,"2,067.56"
03-NOV-2022,Environment & Transport (P),Direct Cabs,TRADE SUPPLIER,3303-Taxi Hire,"1,365.00"
03-NOV-2022,Environment & Transport (P),Direct Cabs,TRADE SUPPLIER,3303-Taxi Hire,"1,569.75"
03-NOV-2022,Environment & Transport (P),Direct Cabs,TRADE SUPPLIER,3303-Taxi Hire,"3,221.40"
03-NOV-2022,Environment & Transport (P),Direct Cabs,TRADE SUPPLIER,3303-Taxi Hire,"1,035.50"
03-NOV-2022,Environment & Transport (P),Drive4it,TRADE SUPPLIER,3113-Home to Sch Trans Contract Buses Sec,"1,994.30"
03-NOV-2022,Corporate Resources (CR) (P),Durable Ltd,TRADE SUPPLIER,2111-Glazing Survey & Fire Risk Ass,950.00
03-NOV-2022,Corporate Resources (CR) (P),Durable Ltd,TRADE SUPPLIER,2111-Glazing Survey & Fire Risk Ass,550.00
03-NOV-2022,Corporate Resources (CR) (P),Durable Ltd,TRADE SUPPLIER,2111-Glazing Survey & Fire Risk Ass,995.00
03-NOV-2022,Corporate Resources (CR) (P),Durable Ltd,TRADE SUPPLIER,2111-Glazing Survey & Fire Risk Ass,550.00
03-NOV-2022,Corporate Resources (CR) (P),Durable Ltd,TRADE SUPPLIER,2111-Glazing Survey & Fire Risk Ass,550.00
03-NOV-2022,Corporate Resources (CR) (P),Durable Ltd,TRADE SUPPLIER,2111-Glazing Survey & Fire Risk Ass,550.00
03-NOV-2022,Central Items (NCS) (P),Eon Energy Solutions Ltd (Highway Lighting),TRADE SUPPLIER,4901-Other Expenditure,642.00
03-NOV-2022,Central Items (NCS) (P),Eon Energy Solutions Ltd (Highway Lighting),TRADE SUPPLIER,4901-Other Expenditure,524.00
03-NOV-2022,Central Items (NCS) (P),Eon Energy Solutions Ltd (Highway Lighting),TRADE SUPPLIER,4901-Other Expenditure,786.00
03-NOV-2022,Central Items (NCS) (P),Eon Energy Solutions Ltd (Highway Lighting),TRADE SUPPLIER,4901-Other Expenditure,524.00
03-NOV-2022,Central Items (NCS) (P),Eon Energy Solutions Ltd (Highway Lighting),TRADE SUPPLIER,4901-Other Expenditure,524.00
03-NOV-2022,Central Items (NCS) (P),Eon Energy Solutions Ltd (Highway Lighting),TRADE SUPPLIER,4901-Other Expenditure,"1,048.00"
03-NOV-2022,Central Items (NCS) (P),Eon Energy Solutions Ltd (Highway Lighting),TRADE SUPPLIER,4901-Other Expenditure,524.00
03-NOV-2022,Environment & Transport (P),Everest Taxis,TRADE SUPPLIER,3303-Taxi Hire,"2,643.60"
03-NOV-2022,Environment & Transport (P),Express Cars,TRADE SUPPLIER,3303-Taxi Hire,"1,856.00"
03-NOV-2022,Balance Sheet Cost Centres (P),Exterior Lighting Solutions (UK) Ltd,TRADE SUPPLIER,9631-Inventories - General,"1,941.82"
03-NOV-2022,Balance Sheet Cost Centres (P),Exterior Lighting Solutions (UK) Ltd,TRADE SUPPLIER,9631-Inventories - General,"10,718.76"
03-NOV-2022,C&FS (P),Farmside Child Day Care Ltd,TRADE SUPPLIER,5626-Transfer Payments Section 23 Grants,856.00
03-NOV-2022,Environment & Transport (P),First4airport,NON TRADE,3303-Taxi Hire,"2,730.00"
03-NOV-2022,Environment & Transport (P),First4airport,NON TRADE,3303-Taxi Hire,"2,584.00"
03-NOV-2022,Environment & Transport (P),First4airport,NON TRADE,3201-Pooled Transport Recharge Inhouse,"2,316.00"
03-NOV-2022,Environment & Transport (P),First4airport,NON TRADE,3303-Taxi Hire,"2,940.00"
03-NOV-2022,Environment & Transport (P),First4airport,NON TRADE,3113-Home to Sch Trans Contract Buses Sec,"1,764.00"
03-NOV-2022,Environment & Transport (P),First4airport,NON TRADE,3303-Taxi Hire,"3,042.90"
03-NOV-2022,Environment & Transport (P),First4airport,NON TRADE,3113-Home to Sch Trans Contract Buses Sec,"3,276.00"
03-NOV-2022,Environment & Transport (P),Ford & Slater of Leicester,TRADE SUPPLIER,3102-Vehicle & Plant Repairs & Maintenance,"1,166.49"
03-NOV-2022,Environment & Transport (P),Ford & Slater of Leicester,TRADE SUPPLIER,3102-Vehicle & Plant Repairs & Maintenance,695.00
03-NOV-2022,Environment & Transport (P),Ford & Slater of Leicester,TRADE SUPPLIER,3102-Vehicle & Plant Repairs & Maintenance,666.84
03-NOV-2022,C&FS (P),Frontline Staffing Ltd,TRADE SUPPLIER,1201-Agency Costs,"1,620.23"
03-NOV-2022,Environment & Transport (P),REDACTED PERSONAL DATA,TRADE INDIVIDUAL,3113-Home to Sch Trans Contract Buses Sec,715.00
03-NOV-2022,Environment & Transport (P),Gap Group Ltd,TRADE SUPPLIER,4901-Other Expenditure,610.00
03-NOV-2022,Environment & Transport (P),REDACTED PERSONAL DATA,TRADE INDIVIDUAL,3113-Home to Sch Trans Contract Buses Sec,"13,604.87"
03-NOV-2022,C&FS (P),GoTo Healthcare Ltd,TRADE SUPPLIER,5451-LCT/LAC (Not Fostered),"1,600.00"
03-NOV-2022,C&FS (P),GoTo Healthcare Ltd,TRADE SUPPLIER,5451-LCT/LAC (Not Fostered),"1,600.00"
03-NOV-2022,C&FS (P),GoTo Healthcare Ltd,TRADE SUPPLIER,5443-Agency & Contracted Services,"1,200.00"
03-NOV-2022,C&FS (P),GoTo Healthcare Ltd,TRADE SUPPLIER,5451-LCT/LAC (Not Fostered),"1,780.00"
03-NOV-2022,C&FS (P),GoTo Healthcare Ltd,TRADE SUPPLIER,5451-LCT/LAC (Not Fostered),"1,960.00"
03-NOV-2022,C&FS (P),GoTo Healthcare Ltd,TRADE SUPPLIER,5443-Agency & Contracted Services,"1,200.00"
03-NOV-2022,C&FS (P),GoTo Healthcare Ltd,TRADE SUPPLIER,5451-LCT/LAC (Not Fostered),"1,200.00"
03-NOV-2022,C&FS (P),GoTo Healthcare Ltd,TRADE SUPPLIER,5451-LCT/LAC (Not Fostered),857.14
03-NOV-2022,C&FS (P),GoTo Healthcare Ltd,TRADE SUPPLIER,5451-LCT/LAC (Not Fostered),"1,600.00"
03-NOV-2022,C&FS (P),GoTo Healthcare Ltd,TRADE SUPPLIER,5451-LCT/LAC (Not Fostered),"1,600.00"
03-NOV-2022,Environment & Transport (P),REDACTED PERSONAL DATA,TRADE INDIVIDUAL,3303-Taxi Hire,"2,572.08"
03-NOV-2022,Environment & Transport (P),REDACTED PERSONAL DATA,TRADE INDIVIDUAL,3303-Taxi Hire,"2,330.05"
03-NOV-2022,Environment & Transport (P),REDACTED PERSONAL DATA,TRADE INDIVIDUAL,3303-Taxi Hire,"3,006.57"
03-NOV-2022,Environment & Transport (P),REDACTED PERSONAL DATA,TRADE INDIVIDUAL,3303-Taxi Hire,"1,633.50"
03-NOV-2022,C&FS (P),Happy Childrens Homes Ltd,TRADE SUPPLIER,5411-Private Contractors - General,"3,000.00"
03-NOV-2022,C&FS (P),Happy Childrens Homes Ltd,TRADE SUPPLIER,5451-LCT/LAC (Not Fostered),750.00
03-NOV-2022,C&FS (P),REDACTED PERSONAL DATA,TRADE INDIVIDUAL,4507-Consultants & Specialists,"1,000.00"
03-NOV-2022,C&FS (P),REDACTED PERSONAL DATA,TRADE INDIVIDUAL,4507-Consultants & Specialists,"1,000.00"
03-NOV-2022,C&FS (P),Help At Home,TRADE SUPPLIER,5429-Community/Domiciliary,607.18
03-NOV-2022,Environment & Transport (P),Highfields Associates Ltd,TRADE SUPPLIER,3303-Taxi Hire,752.04
03-NOV-2022,Environment & Transport (P),Highfields Associates Ltd,TRADE SUPPLIER,3201-Pooled Transport Recharge Inhouse,639.94
03-NOV-2022,Environment & Transport (P),HMB (LEIC) Ltd,TRADE SUPPLIER,3112-Home to Sch Trans Contract Buses Prim,825.00
03-NOV-2022,Environment & Transport (P),HMB (LEIC) Ltd,TRADE SUPPLIER,3303-Taxi Hire,"2,499.00"
03-NOV-2022,Environment & Transport (P),HMB (LEIC) Ltd,TRADE SUPPLIER,3303-Taxi Hire,"3,127.79"
03-NOV-2022,Environment & Transport (P),HMB (LEIC) Ltd,TRADE SUPPLIER,3201-Pooled Transport Recharge Inhouse,539.10
03-NOV-2022,Environment & Transport (P),HMB (LEIC) Ltd,TRADE SUPPLIER,3303-Taxi Hire,"3,140.20"
03-NOV-2022,Environment & Transport (P),HMB (LEIC) Ltd,TRADE SUPPLIER,3203-Pooled Transport Recharge Contractors,"2,551.85"
03-NOV-2022,Environment & Transport (P),HMB (LEIC) Ltd,TRADE SUPPLIER,3201-Pooled Transport Recharge Inhouse,505.75
03-NOV-2022,Environment & Transport (P),HMB (LEIC) Ltd,TRADE SUPPLIER,3303-Taxi Hire,"3,610.32"
03-NOV-2022,Environment & Transport (P),HMB (LEIC) Ltd,TRADE SUPPLIER,3303-Taxi Hire,"2,390.85"
03-NOV-2022,Environment & Transport (P),HMB (LEIC) Ltd,TRADE SUPPLIER,3303-Taxi Hire,"3,076.64"
03-NOV-2022,Environment & Transport (P),HMB (LEIC) Ltd,TRADE SUPPLIER,3303-Taxi Hire,"3,127.32"
03-NOV-2022,Environment & Transport (P),HMB (LEIC) Ltd,TRADE SUPPLIER,3303-Taxi Hire,"1,359.75"
03-NOV-2022,Environment & Transport (P),HMB (LEIC) Ltd,TRADE SUPPLIER,3203-Pooled Transport Recharge Contractors,"3,214.40"
03-NOV-2022,Environment & Transport (P),HMB (LEIC) Ltd,TRADE SUPPLIER,3303-Taxi Hire,"2,559.00"
03-NOV-2022,Environment & Transport (P),HMB (LEIC) Ltd,TRADE SUPPLIER,3201-Pooled Transport Recharge Inhouse,915.36
03-NOV-2022,Environment & Transport (P),Idverde Ltd,TRADE SUPPLIER,5411-Private Contractors - General,600.00
03-NOV-2022,Environment & Transport (P),Idverde Ltd,TRADE SUPPLIER,5411-Private Contractors - General,"40,328.40"
03-NOV-2022,Environment & Transport (P),REDACTED PERSONAL DATA,TRADE INDIVIDUAL,3303-Taxi Hire,526.50
03-NOV-2022,Environment & Transport (P),REDACTED PERSONAL DATA,TRADE INDIVIDUAL,3201-Pooled Transport Recharge Inhouse,"2,106.00"
03-NOV-2022,Environment & Transport (P),REDACTED PERSONAL DATA,TRADE INDIVIDUAL,3303-Taxi Hire,"2,100.00"
03-NOV-2022,Environment & Transport (P),REDACTED PERSONAL DATA,TRADE INDIVIDUAL,3303-Taxi Hire,"1,415.07"
03-NOV-2022,Environment & Transport (P),REDACTED PERSONAL DATA,TRADE INDIVIDUAL,3201-Pooled Transport Recharge Inhouse,"1,276.00"
03-NOV-2022,Environment & Transport (P),REDACTED PERSONAL DATA,TRADE INDIVIDUAL,3303-Taxi Hire,"3,139.50"
03-NOV-2022,Environment & Transport (P),REDACTED PERSONAL DATA,TRADE INDIVIDUAL,3303-Taxi Hire,"2,966.50"
03-NOV-2022,Environment & Transport (P),REDACTED PERSONAL DATA,NON TRADE,3303-Taxi Hire,"2,235.00"
03-NOV-2022,Environment & Transport (P),REDACTED PERSONAL DATA,NON TRADE,3303-Taxi Hire,"3,420.00"
03-NOV-2022,Environment & Transport (P),REDACTED PERSONAL DATA,NON TRADE,3201-Pooled Transport Recharge Inhouse,"1,760.00"
03-NOV-2022,Chief Executives (P),KCH Barristers Ltd,TRADE SUPPLIER,4905-Legal Expenses,650.00
03-NOV-2022,C&FS (P),Key Transitions Ltd,TRADE SUPPLIER,5411-Private Contractors - General,"4,393.31"
03-NOV-2022,Environment & Transport (P),KGN Taxis Ltd,TRADE SUPPLIER,3303-Taxi Hire,720.00
03-NOV-2022,Environment & Transport (P),KGN Taxis Ltd,TRADE SUPPLIER,3303-Taxi Hire,611.80
03-NOV-2022,Environment & Transport (P),KGN Taxis Ltd,TRADE SUPPLIER,3303-Taxi Hire,"1,512.00"
03-NOV-2022,Environment & Transport (P),KGN Taxis Ltd,TRADE SUPPLIER,3303-Taxi Hire,"1,038.40"
03-NOV-2022,C&FS (P),REDACTED PERSONAL DATA,GENERAL,5614-Adoption Allowances,887.14
03-NOV-2022,Corporate Resources (CR) (P),REDACTED PERSONAL DATA,TRADE SUPPLIER,2401-Cleaning Materials,601.40
03-NOV-2022,Environment & Transport (P),Labwaste Ltd T/A Tradebe,TRADE SUPPLIER,5411-Private Contractors - General,"1,125.00"
03-NOV-2022,Corporate Resources (CR) (P),LCC Central Imprest Account,GENERAL,4901-Other Expenditure,"7,674.68"
03-NOV-2022,Adults & Communities (P),LCC Leicestershire South Area Imprest,GENERAL,4901-Other Expenditure,886.04
03-NOV-2022,Chief Executives (P),LCC Loughborough Registrars Imprest A/C,GENERAL,3404-Public Transport - Staff Travelling Exps,750.00
03-NOV-2022,Adults & Communities (P),LCC North West Leics Area Office Imprest A/C,GENERAL,4901-Other Expenditure,"1,130.00"
03-NOV-2022,C&FS (P),Leaders in Care,FACTOR,1201-Agency Costs,"1,628.00"
03-NOV-2022,C&FS (P),Leesha Irwin Art Psychotherapy Ltd,TRADE SUPPLIER,5445-Adoption Support,"1,977.50"
03-NOV-2022,C&FS (P),Leesha Irwin Art Psychotherapy Ltd,TRADE SUPPLIER,5445-Adoption Support,"2,520.00"
03-NOV-2022,Environment & Transport (P),Leicester City Council,OTHER LOCAL AUTHORITIES,4109-Materials,970.73
03-NOV-2022,Environment & Transport (P),Leicester City Council,OTHER LOCAL AUTHORITIES,5411-Private Contractors - General,"1,020.80"
03-NOV-2022,C&FS (P),Leicester YMCA,TRADE SUPPLIER,5411-Private Contractors - General,"8,763.50"
03-NOV-2022,C&FS (P),Leicester YMCA,TRADE SUPPLIER,5411-Private Contractors - General,542.50
03-NOV-2022,C&FS (P),Leicester YMCA,TRADE SUPPLIER,5411-Private Contractors - General,542.50
03-NOV-2022,Chief Executives (P),Lextox,TRADE SUPPLIER,4905-Legal Expenses,833.00
03-NOV-2022,Chief Executives (P),Lextox,TRADE SUPPLIER,4905-Legal Expenses,788.00
03-NOV-2022,Environment & Transport (P),REDACTED PERSONAL DATA,TRADE INDIVIDUAL,3303-Taxi Hire,"4,286.05"
03-NOV-2022,Environment & Transport (P),M&M Cabs Ltd,TRADE SUPPLIER,3201-Pooled Transport Recharge Inhouse,"2,640.00"
03-NOV-2022,Environment & Transport (P),M&M Cabs Ltd,TRADE SUPPLIER,3303-Taxi Hire,"2,052.01"
03-NOV-2022,Environment & Transport (P),REDACTED PERSONAL DATA,TRADE SUPPLIER,3113-Home to Sch Trans Contract Buses Sec,"3,150.00"
03-NOV-2022,Environment & Transport (P),Master Cabs Leicester Ltd,TRADE SUPPLIER,3201-Pooled Transport Recharge Inhouse,"2,849.50"
03-NOV-2022,Environment & Transport (P),Master Cabs Leicester Ltd,TRADE SUPPLIER,3303-Taxi Hire,"2,236.00"
03-NOV-2022,Corporate Resources (CR) (P),REDACTED PERSONAL DATA,TRADE SUPPLIER,1703-Training Expenses,"1,000.00"
03-NOV-2022,Corporate Resources (CR) (P),Melton Mowbray Market,TRADE SUPPLIER,4901-Other Expenditure,"5,187.00"
03-NOV-2022,Environment & Transport (P),Midland Quarry Products Ltd,TRADE SUPPLIER,4109-Materials,554.38
03-NOV-2022,Environment & Transport (P),Mountsorrel Taxis Ltd,TRADE SUPPLIER,3303-Taxi Hire,"2,477.25"
03-NOV-2022,Environment & Transport (P),Murphys Taxis Ltd,FACTOR,3201-Pooled Transport Recharge Inhouse,"1,360.00"
03-NOV-2022,Environment & Transport (P),Nesbit Brothers Ltd,TRADE SUPPLIER,3113-Home to Sch Trans Contract Buses Sec,"21,650.00"
03-NOV-2022,C&FS (P),Next Steps Supported Living Ltd,TRADE SUPPLIER,5411-Private Contractors - General,"3,630.51"
03-NOV-2022,C&FS (P),Next Steps Supported Living Ltd,TRADE SUPPLIER,5411-Private Contractors - General,"3,755.70"
03-NOV-2022,Environment & Transport (P),NMI Taxi Ltd,TRADE SUPPLIER,3201-Pooled Transport Recharge Inhouse,"2,827.00"
03-NOV-2022,Environment & Transport (P),NMI Taxi Ltd,TRADE SUPPLIER,3303-Taxi Hire,"2,916.90"
03-NOV-2022,Environment & Transport (P),NMI Taxi Ltd,TRADE SUPPLIER,3201-Pooled Transport Recharge Inhouse,912.00
03-NOV-2022,Environment & Transport (P),NMI Taxi Ltd,TRADE SUPPLIER,3201-Pooled Transport Recharge Inhouse,"1,953.98"
03-NOV-2022,Environment & Transport (P),NMI Taxi Ltd,TRADE SUPPLIER,3201-Pooled Transport Recharge Inhouse,"2,310.00"
03-NOV-2022,Environment & Transport (P),NMI Taxi Ltd,TRADE SUPPLIER,3201-Pooled Transport Recharge Inhouse,"1,210.00"
03-NOV-2022,Environment & Transport (P),NMI Taxi Ltd,TRADE SUPPLIER,3201-Pooled Transport Recharge Inhouse,"3,495.24"
03-NOV-2022,Environment & Transport (P),NMI Taxi Ltd,TRADE SUPPLIER,3201-Pooled Transport Recharge Inhouse,"4,281.20"
03-NOV-2022,Environment & Transport (P),NMI Taxi Ltd,TRADE SUPPLIER,3201-Pooled Transport Recharge Inhouse,"1,033.50"
03-NOV-2022,Environment & Transport (P),NMI Taxi Ltd,TRADE SUPPLIER,3201-Pooled Transport Recharge Inhouse,594.00
03-NOV-2022,Environment & Transport (P),NMI Taxi Ltd,TRADE SUPPLIER,3303-Taxi Hire,"2,898.00"
03-NOV-2022,Environment & Transport (P),NMI Taxi Ltd,TRADE SUPPLIER,3303-Taxi Hire,"3,234.00"
03-NOV-2022,Environment & Transport (P),NMI Taxi Ltd,TRADE SUPPLIER,3303-Taxi Hire,"1,651.00"
03-NOV-2022,Environment & Transport (P),NMI Taxi Ltd,TRADE SUPPLIER,3112-Home to Sch Trans Contract Buses Prim,"2,097.90"
03-NOV-2022,Environment & Transport (P),NMI Taxi Ltd,TRADE SUPPLIER,3113-Home to Sch Trans Contract Buses Sec,"2,360.75"
03-NOV-2022,Environment & Transport (P),NMI Taxi Ltd,TRADE SUPPLIER,3303-Taxi Hire,"2,159.00"
03-NOV-2022,Environment & Transport (P),NMI Taxi Ltd,TRADE SUPPLIER,3303-Taxi Hire,"2,925.00"
03-NOV-2022,Environment & Transport (P),NMI Taxi Ltd,TRADE SUPPLIER,3303-Taxi Hire,996.45
03-NOV-2022,Environment & Transport (P),NMI Taxi Ltd,TRADE SUPPLIER,3303-Taxi Hire,"1,880.04"
03-NOV-2022,Environment & Transport (P),NMI Taxi Ltd,TRADE SUPPLIER,3303-Taxi Hire,"2,352.90"
03-NOV-2022,Environment & Transport (P),NMI Taxi Ltd,TRADE SUPPLIER,3303-Taxi Hire,"3,213.00"
03-NOV-2022,Environment & Transport (P),NMI Taxi Ltd,TRADE SUPPLIER,3303-Taxi Hire,"3,082.20"
03-NOV-2022,Environment & Transport (P),NMI Taxi Ltd,TRADE SUPPLIER,3303-Taxi Hire,"2,576.00"
03-NOV-2022,Environment & Transport (P),NMI Taxi Ltd,TRADE SUPPLIER,3303-Taxi Hire,"2,889.60"
03-NOV-2022,Environment & Transport (P),NMI Taxi Ltd,TRADE SUPPLIER,3303-Taxi Hire,"3,279.00"
03-NOV-2022,Environment & Transport (P),NMI Taxi Ltd,TRADE SUPPLIER,3303-Taxi Hire,"4,652.55"
03-NOV-2022,Environment & Transport (P),NMI Taxi Ltd,TRADE SUPPLIER,3303-Taxi Hire,"1,760.43"
03-NOV-2022,Environment & Transport (P),NMI Taxi Ltd,TRADE SUPPLIER,3201-Pooled Transport Recharge Inhouse,"3,462.90"
03-NOV-2022,Environment & Transport (P),NMI Taxi Ltd,TRADE SUPPLIER,3201-Pooled Transport Recharge Inhouse,"1,350.00"
03-NOV-2022,Environment & Transport (P),NMI Taxi Ltd,TRADE SUPPLIER,3201-Pooled Transport Recharge Inhouse,980.00
03-NOV-2022,Environment & Transport (P),NMI Taxi Ltd,TRADE SUPPLIER,3303-Taxi Hire,"2,404.00"
03-NOV-2022,Environment & Transport (P),NMI Taxi Ltd,TRADE SUPPLIER,3201-Pooled Transport Recharge Inhouse,"1,196.00"
03-NOV-2022,Environment & Transport (P),NMI Taxi Ltd,TRADE SUPPLIER,3201-Pooled Transport Recharge Inhouse,880.00
03-NOV-2022,Environment & Transport (P),NMI Taxi Ltd,TRADE SUPPLIER,3303-Taxi Hire,"6,132.00"
03-NOV-2022,Environment & Transport (P),NMI Taxi Ltd,TRADE SUPPLIER,3303-Taxi Hire,623.40
03-NOV-2022,Environment & Transport (P),NMI Taxi Ltd,TRADE SUPPLIER,3303-Taxi Hire,620.00
03-NOV-2022,Environment & Transport (P),NMI Taxi Ltd,TRADE SUPPLIER,3303-Taxi Hire,"6,539.50"
03-NOV-2022,Environment & Transport (P),NMI Taxi Ltd,TRADE SUPPLIER,3303-Taxi Hire,"3,171.00"
03-NOV-2022,Environment & Transport (P),NMI Taxi Ltd,TRADE SUPPLIER,3303-Taxi Hire,"2,520.00"
03-NOV-2022,Environment & Transport (P),NMI Taxi Ltd,TRADE SUPPLIER,3303-Taxi Hire,"2,127.50"
03-NOV-2022,Environment & Transport (P),NMI Taxi Ltd,TRADE SUPPLIER,3303-Taxi Hire,"2,958.90"
03-NOV-2022,Environment & Transport (P),NMI Taxi Ltd,TRADE SUPPLIER,3303-Taxi Hire,"3,360.00"
03-NOV-2022,Environment & Transport (P),NMI Taxi Ltd,TRADE SUPPLIER,3303-Taxi Hire,"3,212.00"
03-NOV-2022,Environment & Transport (P),NMI Taxi Ltd,TRADE SUPPLIER,3303-Taxi Hire,"1,983.30"
03-NOV-2022,Environment & Transport (P),NMI Taxi Ltd,TRADE SUPPLIER,3303-Taxi Hire,"2,361.30"
03-NOV-2022,Environment & Transport (P),NMI Taxi Ltd,TRADE SUPPLIER,3303-Taxi Hire,"2,446.30"
03-NOV-2022,Environment & Transport (P),NMI Taxi Ltd,TRADE SUPPLIER,3303-Taxi Hire,"2,591.40"
03-NOV-2022,Environment & Transport (P),NMI Taxi Ltd,TRADE SUPPLIER,3303-Taxi Hire,"1,840.00"
03-NOV-2022,Environment & Transport (P),NMI Taxi Ltd,TRADE SUPPLIER,3303-Taxi Hire,"1,173.00"
03-NOV-2022,Environment & Transport (P),NMI Taxi Ltd,TRADE SUPPLIER,3201-Pooled Transport Recharge Inhouse,"1,942.15"
03-NOV-2022,C&FS (P),NonStop Consulting Ltd,TRADE SUPPLIER,1201-Agency Costs,"1,702.00"
03-NOV-2022,Adults & Communities (P),NonStop Consulting Ltd,TRADE SUPPLIER,1201-Agency Costs,"1,737.75"
03-NOV-2022,C&FS (P),NonStop Consulting Ltd,TRADE SUPPLIER,1201-Agency Costs,"1,665.00"
03-NOV-2022,C&FS (P),NonStop Consulting Ltd,TRADE SUPPLIER,1201-Agency Costs,"1,665.00"
03-NOV-2022,Environment & Transport (P),Norton Taxi Services Ltd,TRADE SUPPLIER,3112-Home to Sch Trans Contract Buses Prim,569.05
03-NOV-2022,Environment & Transport (P),Norton Taxi Services Ltd,TRADE SUPPLIER,3303-Taxi Hire,"4,532.00"
03-NOV-2022,C&FS (P),Oasis Supported Accommodation Ltd,TRADE SUPPLIER,5451-LCT/LAC (Not Fostered),"4,529.08"
03-NOV-2022,Environment & Transport (P),P S TAXIS LTD,TRADE SUPPLIER,3303-Taxi Hire,"2,992.00"
03-NOV-2022,Environment & Transport (P),P S TAXIS LTD,TRADE SUPPLIER,3201-Pooled Transport Recharge Inhouse,920.00
03-NOV-2022,Environment & Transport (P),P S TAXIS LTD,TRADE SUPPLIER,3303-Taxi Hire,"2,793.00"
03-NOV-2022,Environment & Transport (P),P S TAXIS LTD,TRADE SUPPLIER,3203-Pooled Transport Recharge Contractors,"1,606.00"
03-NOV-2022,Environment & Transport (P),P S TAXIS LTD,TRADE SUPPLIER,3201-Pooled Transport Recharge Inhouse,"2,782.00"
03-NOV-2022,Environment & Transport (P),P&R Cars     1,TRADE SUPPLIER,3303-Taxi Hire,"2,089.55"
03-NOV-2022,Environment & Transport (P),Pearce Recruitment Services Ltd T/A Accept Recruitment,TRADE SUPPLIER,5443-Agency & Contracted Services,"2,419.56"
03-NOV-2022,Environment & Transport (P),REDACTED PERSONAL DATA,TRADE SUPPLIER,4109-Materials,"1,374.80"
03-NOV-2022,Environment & Transport (P),Premier Taxis Leicester Ltd,TRADE SUPPLIER,3303-Taxi Hire,668.00
03-NOV-2022,Environment & Transport (P),Premier Taxis Leicester Ltd,TRADE SUPPLIER,3303-Taxi Hire,"1,168.00"
03-NOV-2022,Environment & Transport (P),Premier Taxis Leicester Ltd,TRADE SUPPLIER,3201-Pooled Transport Recharge Inhouse,810.00
03-NOV-2022,Environment & Transport (P),Premier Taxis Leicester Ltd,TRADE SUPPLIER,3203-Pooled Transport Recharge Contractors,"3,234.60"
03-NOV-2022,Environment & Transport (P),Premier Taxis Leicester Ltd,TRADE SUPPLIER,3303-Taxi Hire,995.00
03-NOV-2022,Environment & Transport (P),Premier Taxis Leicester Ltd,TRADE SUPPLIER,3303-Taxi Hire,"2,085.30"
03-NOV-2022,Environment & Transport (P),Premier Taxis Leicester Ltd,TRADE SUPPLIER,3303-Taxi Hire,"1,438.00"
03-NOV-2022,Environment & Transport (P),REDACTED PERSONAL DATA,NON TRADE,3303-Taxi Hire,"1,650.00"
03-NOV-2022,Corporate Resources (CR) (P),Quadient UK Ltd,TRADE SUPPLIER,4607-Postal Services ,539.36
03-NOV-2022,Corporate Resources (CR) (P),Quadient UK Ltd,TRADE SUPPLIER,4607-Postal Services ,"3,064.20"
03-NOV-2022,Environment & Transport (P),Reach Publishing Services Ltd,TRADE SUPPLIER,"4503-Advertising, Publicity & Marketing",529.09
03-NOV-2022,Environment & Transport (P),Reach Publishing Services Ltd,TRADE SUPPLIER,"4503-Advertising, Publicity & Marketing",529.09
03-NOV-2022,Environment & Transport (P),Reach Publishing Services Ltd,TRADE SUPPLIER,"4503-Advertising, Publicity & Marketing",529.09
03-NOV-2022,Environment & Transport (P),Reach Publishing Services Ltd,TRADE SUPPLIER,"4503-Advertising, Publicity & Marketing",587.88
03-NOV-2022,Environment & Transport (P),Reach Publishing Services Ltd,TRADE SUPPLIER,"4503-Advertising, Publicity & Marketing",529.09
03-NOV-2022,Environment & Transport (P),REDACTED PERSONAL DATA,TRADE SUPPLIER,3113-Home to Sch Trans Contract Buses Sec,"5,953.75"
03-NOV-2022,Environment & Transport (P),REDACTED PERSONAL DATA,TRADE INDIVIDUAL,3303-Taxi Hire,"2,478.00"
03-NOV-2022,Environment & Transport (P),REDACTED PERSONAL DATA,TRADE INDIVIDUAL,3303-Taxi Hire,"2,496.00"
03-NOV-2022,Environment & Transport (P),REDACTED PERSONAL DATA,TRADE INDIVIDUAL,3303-Taxi Hire,"2,016.00"
03-NOV-2022,Environment & Transport (P),REDACTED PERSONAL DATA,TRADE INDIVIDUAL,3303-Taxi Hire,924.00
03-NOV-2022,Environment & Transport (P),REDACTED PERSONAL DATA,TRADE INDIVIDUAL,3303-Taxi Hire,638.00
03-NOV-2022,Environment & Transport (P),REDACTED PERSONAL DATA,TRADE INDIVIDUAL,3303-Taxi Hire,"2,226.00"
03-NOV-2022,Environment & Transport (P),RJK Taxi Service,TRADE SUPPLIER,3201-Pooled Transport Recharge Inhouse,"1,692.00"
03-NOV-2022,Environment & Transport (P),Safe Cars,TRADE SUPPLIER,3303-Taxi Hire,"5,940.00"
03-NOV-2022,Environment & Transport (P),Safe Cars,TRADE SUPPLIER,3201-Pooled Transport Recharge Inhouse,920.00
03-NOV-2022,Environment & Transport (P),Safe Cars,TRADE SUPPLIER,3201-Pooled Transport Recharge Inhouse,"1,120.00"
03-NOV-2022,C&FS (P),Safe Haven Accommodation Ltd,TRADE SUPPLIER,5451-LCT/LAC (Not Fostered),786.51
03-NOV-2022,Environment & Transport (P),REDACTED PERSONAL DATA,TRADE INDIVIDUAL,3303-Taxi Hire,"2,547.40"
03-NOV-2022,Environment & Transport (P),REDACTED PERSONAL DATA,TRADE INDIVIDUAL,3303-Taxi Hire,"3,366.51"
03-NOV-2022,C&FS (P),Scalliwags,NON TRADE,5411-Private Contractors - General,560.00
03-NOV-2022,Corporate Resources (CR) (P),Schools Publishing Ltd T/A Primary Times,TRADE SUPPLIER,"4503-Advertising, Publicity & Marketing",580.00
03-NOV-2022,Adults & Communities (P),Social Care & Education Ltd,TRADE SUPPLIER,1201-Agency Costs,"1,708.50"
03-NOV-2022,C&FS (P),Speakeasy Therapy Ltd,TRADE SUPPLIER,4901-Other Expenditure,902.50
03-NOV-2022,Environment & Transport (P),Stanton Taxis,TRADE SUPPLIER,3303-Taxi Hire,"2,875.00"
03-NOV-2022,Environment & Transport (P),Syston & District Volunteer Centre Vehicle A/C,NON TRADE,3201-Pooled Transport Recharge Inhouse,562.08
03-NOV-2022,Capital - In Year Spend (P),Tanwood Construction Ltd,SUBCONTRACTOR,941D-L&B - Building Costs,"135,755.74"
03-NOV-2022,Environment & Transport (P),REDACTED PERSONAL DATA,TRADE SUPPLIER,3303-Taxi Hire,"2,208.00"
03-NOV-2022,Corporate Resources (CR) (P),Tchibo Coffee International Ltd,TRADE SUPPLIER,4504-Provisions Purchases,526.52
03-NOV-2022,Corporate Resources (CR) (P),Tchibo Coffee International Ltd,TRADE SUPPLIER,4504-Provisions Purchases,553.39
03-NOV-2022,Environment & Transport (P),Telensa Ltd,TRADE SUPPLIER,4109-Materials,"1,611.38"
03-NOV-2022,Environment & Transport (P),Telensa Ltd,TRADE SUPPLIER,4901-Other Expenditure,"1,091.58"
03-NOV-2022,Environment & Transport (P),Telensa Ltd,TRADE SUPPLIER,4901-Other Expenditure,"1,964.88"
03-NOV-2022,Environment & Transport (P),Terrys Coaches,TRADE SUPPLIER,3113-Home to Sch Trans Contract Buses Sec,"6,062.00"
03-NOV-2022,Environment & Transport (P),Terrys Coaches,TRADE SUPPLIER,3113-Home to Sch Trans Contract Buses Sec,560.00
03-NOV-2022,Corporate Resources (CR) (P),Thomas Cassie & Sons Leicester Ltd,TRADE SUPPLIER,2106-Reactive Maint Buildings,"1,950.00"
03-NOV-2022,Environment & Transport (P),REDACTED PERSONAL DATA,NON TRADE,3303-Taxi Hire,580.00
03-NOV-2022,C&FS (P),Trevi Women Ltd,TRADE SUPPLIER,5411-Private Contractors - General,"4,285.71"
03-NOV-2022,Corporate Resources (CR) (P),Trustmarque Solutions Ltd,TRADE SUPPLIER,4603-IT Software Licenses/Subscription,"4,545.60"
03-NOV-2022,Environment & Transport (P),UKROEd Ltd,TRADE SUPPLIER,5411-Private Contractors - General,"78,057.00"
03-NOV-2022,Chief Executives (P),REDACTED PERSONAL DATA,TRADE SUPPLIER,4529-Post Mortem Exams,"1,727.20"
03-NOV-2022,C&FS (P),Young London Today,TRADE SUPPLIER,5451-LCT/LAC (Not Fostered),"3,492.60"
03-NOV-2022,Environment & Transport (P),REDACTED PERSONAL DATA,TRADE INDIVIDUAL,3201-Pooled Transport Recharge Inhouse,"2,772.00"
03-NOV-2022,Environment & Transport (P),REDACTED PERSONAL DATA,TRADE INDIVIDUAL,3303-Taxi Hire,"2,336.00"
03-NOV-2022,Corporate Resources (CR) (P),Thornton Hope Consultancy Ltd,TRADE SUPPLIER,4507-Consultants & Specialists,"16,871.00"
04-NOV-2022,Adults & Communities (P),2M HEATH & HOMECARE SERVICES LTD&&ISHC3873,HOME CARE,5505-Homecare,"9,320.13"
04-NOV-2022,Adults & Communities (P),ABUNDANT CARE LIMITED&&ISHC6217,HOME CARE,5505-Homecare,"5,867.47"
04-NOV-2022,Adults & Communities (P),ADA HOMECARE LTD(&&ISHC5852),HOME CARE,5505-Homecare,806.83
04-NOV-2022,Adults & Communities (P),AGE UK LEICESTERSHIRE AND RUTLAND&&CLCD3314,CLC,5504-Day/CLC Services,"3,833.82"
04-NOV-2022,Adults & Communities (P),ALLIANCE SC LTD&&ISHC6700,HOME CARE,5505-Homecare,"2,543.19"
04-NOV-2022,Adults & Communities (P),AMICARE DOMICILIRY CARE SERVICES LTD&&ISHC2524,HOME CARE,5505-Homecare,"9,040.76"
04-NOV-2022,Adults & Communities (P),BLUEWOOD RECRUITMENT LTD&&ISHC3933,HOME CARE,5505-Homecare,"3,493.14"
04-NOV-2022,Adults & Communities (P),BLUEWOOD RECRUITMENT LTD&&ISHC3933,HOME CARE,5505-Homecare,"1,063.13"
04-NOV-2022,Adults & Communities (P),BONNEY CARE AGENCY&&CLCD3326,CLC,5504-Day/CLC Services,"1,067.02"
04-NOV-2022,Adults & Communities (P),BRIGHT INTERGRATED CARE LTD&&ISHC3324,HOME CARE,5505-Homecare,"17,544.61"
04-NOV-2022,Adults & Communities (P),BURBAGE HOMECARE LTD&&ISHCHC455,HOME CARE,5505-Homecare,"5,877.44"
04-NOV-2022,Adults & Communities (P),CARE 4 U (LEICESTERSHIRE) LTD&&ISHC2529,HOME CARE,5505-Homecare,"16,057.50"
04-NOV-2022,Adults & Communities (P),CARE AT HOME (MIDLANDS) LTD&&ISHC2753,HOME CARE,5505-Homecare,"16,191.54"
04-NOV-2022,Adults & Communities (P),CARE STAFFING LTD&&ISHC6650,HOME CARE,5505-Homecare,"5,572.06"
04-NOV-2022,Adults & Communities (P),CARELINK HEALTHCARE PROFESSIONALS LTD&&ISHC3871,HOME CARE,5505-Homecare,"1,618.94"
04-NOV-2022,Adults & Communities (P),CARELINK HEALTHCARE PROFESSIONALS LTD&&ISHC3871,HOME CARE,5505-Homecare,"1,598.69"
04-NOV-2022,Adults & Communities (P),CARELINK HEALTHCARE PROFESSIONALS LTD&&ISHC3871,HOME CARE,5505-Homecare,"22,322.36"
04-NOV-2022,Adults & Communities (P),CARELINK HEALTHCARE PROFESSIONALS LTD&&ISHC3871,HOME CARE,5505-Homecare,"1,608.81"
04-NOV-2022,Adults & Communities (P),CARELINK HEALTHCARE PROFESSIONALS LTD&&ISHC3871,HOME CARE,5505-Homecare,"1,618.94"
04-NOV-2022,Adults & Communities (P),CAREMARK HINCKLEY BOSWORTH & BLABY&&ISHC3015,HOME CARE,5505-Homecare,"15,673.18"
04-NOV-2022,Adults & Communities (P),CARING HANDS DOMICILIARY CARE LTD&&ISHC3229,HOME CARE,5505-Homecare,"16,165.04"
04-NOV-2022,Adults & Communities (P),CARING HANDS LEICESTER LTD&&ISHC3209,HOME CARE,5505-Homecare,"29,037.53"
04-NOV-2022,Adults & Communities (P),CHOICES FOR LIFE (UK)LTD&&CLCD3323,CLC,5504-Day/CLC Services,"14,546.62"
04-NOV-2022,Adults & Communities (P),CITY & COUNTY CARE SERVICES LTD&&ISHCHC486,HOME CARE,5505-Homecare,"5,499.01"
04-NOV-2022,Adults & Communities (P),COMMUNITY CARELINE NORTHWEST LEICESTERSHIRE LTD&&ISHCHC1514,HOME CARE,5505-Homecare,"5,824.80"
04-NOV-2022,Adults & Communities (P),CONTINUITY HEALTHCARE SERVICES LTD&&ISHC6572,HOME CARE,5505-Homecare,637.88
04-NOV-2022,Adults & Communities (P),CONTINUITY HEALTHCARE SERVICES LTD&&ISHC6572,HOME CARE,5505-Homecare,600.08
04-NOV-2022,Adults & Communities (P),CONTINUITY HEALTHCARE SERVICES LTD&&ISHC6572,HOME CARE,5505-Homecare,637.88
04-NOV-2022,Adults & Communities (P),CONTINUITY HEALTHCARE SERVICES LTD&&ISHC6572,HOME CARE,5505-Homecare,"10,812.78"
04-NOV-2022,Adults & Communities (P),CONTINUITY HEALTHCARE SERVICES LTD&&ISHC6572,HOME CARE,5505-Homecare,637.88
04-NOV-2022,Adults & Communities (P),D&H COMMUNITY SUPPORT LTD&&CLCD3309,CLC,5504-Day/CLC Services,"26,039.19"
04-NOV-2022,Adults & Communities (P),DIRECT CARE WORKS LTD&&CLCD3327,CLC,5504-Day/CLC Services,"2,363.51"
04-NOV-2022,Adults & Communities (P),EMSA HOMEHELP LTD T/A BLUEBIRD CARE LEICS&&ISHC3983,HOME CARE,5505-Homecare,"3,313.95"
04-NOV-2022,Adults & Communities (P),ENRYCH&&CLCD3315,CLC,5504-Day/CLC Services,"6,955.57"
04-NOV-2022,Adults & Communities (P),EVERYDAY LIVING CARE LTD&&ISHC6574,HOME CARE,5505-Homecare,"17,773.54"
04-NOV-2022,Adults & Communities (P),EVERYDAY LIVING LIMITED&&CLCD6862,CLC,5504-Day/CLC Services,637.50
04-NOV-2022,Adults & Communities (P),EVOLVING CARE&&ISHC2825,HOME CARE,5505-Homecare,"3,328.25"
04-NOV-2022,Adults & Communities (P),FIRST CHOICE CARE AGENCY LTD&&ISHC3934,HOME CARE,5505-Homecare,"6,435.69"
04-NOV-2022,Adults & Communities (P),FOSSE HEALTHCARE LTD&&&&ISHC3231,HOME CARE,5505-Homecare,"6,870.92"
04-NOV-2022,Adults & Communities (P),FREEDOM ACTIVE LTD&&CLCD3320,CLC,5504-Day/CLC Services,"3,302.66"
04-NOV-2022,Adults & Communities (P),FREEDOM SUPPORT SOLUTIONS LTD&&CLCD4598,CLC,5504-Day/CLC Services,814.47
04-NOV-2022,Adults & Communities (P),FTM DANCE&&CLCD3324,CLC,5504-Day/CLC Services,"2,076.55"
04-NOV-2022,Adults & Communities (P),GLEBE HOUSE (CHARNWOOD) LTD&&CLCD3308,CLC,5504-Day/CLC Services,"8,481.60"
04-NOV-2022,Adults & Communities (P),GP HOMECARE LTD T/A RADIS COMMUNITY CARE&&ISHC5054,HOME CARE,5505-Homecare,"3,575.80"
04-NOV-2022,Adults & Communities (P),HELP AT HOME LTD&&ISHC3234,HOME CARE,5505-Homecare,"25,967.61"
04-NOV-2022,Adults & Communities (P),HELP AT HOME LTD&&ISHC3234,HOME CARE,5505-Homecare,"41,967.42"
04-NOV-2022,Adults & Communities (P),JOHN STORER CHARNWOOD&&CLCD3318,CLC,5504-Day/CLC Services,"1,515.73"
04-NOV-2022,Adults & Communities (P),REDACTED PERSONAL DATA,HOME CARE,5505-Homecare,"17,596.21"
04-NOV-2022,Adults & Communities (P),KEY 2 CARE LTD T/A DERBYSHIRE CARE SERVICES&&ISHC6569,HOME CARE,5505-Homecare,"6,865.19"
04-NOV-2022,Adults & Communities (P),KRIS CARERS LTD&&ISHC3937,HOME CARE,5505-Homecare,"18,308.22"
04-NOV-2022,Adults & Communities (P),LEICESTERSHIRE LEICESTER AND RUTLAND HEADWAY&&CLCD3328,CLC,5504-Day/CLC Services,"1,085.58"
04-NOV-2022,Adults & Communities (P),MARCHA SOLUTIONS LTD T/A BLUEBIRD CARE LOUGHBOROUGH&&ISHC6008,HOME CARE,5505-Homecare,"3,243.14"
04-NOV-2022,Adults & Communities (P),MEADOW BARN VIEW LTD&&CLCD5236,CLC,5504-Day/CLC Services,849.66
04-NOV-2022,Adults & Communities (P),MELTON CARE SERVICES LTD&&ISHC2246,HOME CARE,5505-Homecare,"13,541.07"
04-NOV-2022,Adults & Communities (P),MIDSHIRES CARE LTD T/A HELPING HANDS&&ISHC6596,HOME CARE,5505-Homecare,"1,344.21"
04-NOV-2022,Adults & Communities (P),MIHOMECARE LTD T/A NOBLE LIVE IN CARE&&ISHC6649,HOME CARE,5505-Homecare,"1,118.88"
04-NOV-2022,Adults & Communities (P),MILIFE CARE SERVICE LTD&&ISHC3782,HOME CARE,5505-Homecare,779.63
04-NOV-2022,Adults & Communities (P),MILIFE CARE SERVICE LTD&&ISHC3782,HOME CARE,5505-Homecare,"2,724.04"
04-NOV-2022,Adults & Communities (P),MOBILE CARE SERVICES LTD&&ISHCHC443,HOME CARE,5505-Homecare,"5,082.71"
04-NOV-2022,Adults & Communities (P),MOSAIC SHAPING DISABILITY SERVICES&&CLCD3331,CLC,5504-Day/CLC Services,"1,946.21"
04-NOV-2022,Adults & Communities (P),MURRAY HEALTH CARE SERVICES &&ISHC6255,HOME CARE,5505-Homecare,586.13
04-NOV-2022,Adults & Communities (P),MY HOMECARE HFW LTD&&ISHC6570,HOME CARE,5505-Homecare,"5,250.56"
04-NOV-2022,Adults & Communities (P),MY HOMECARE HFW LTD&&ISHC6570,HOME CARE,5505-Homecare,"5,816.84"
04-NOV-2022,Adults & Communities (P),MY HOMECARE HFW LTD&&ISHC6570,HOME CARE,5505-Homecare,"5,143.52"
04-NOV-2022,Adults & Communities (P),MY HOMECARE HFW LTD&&ISHC6570,HOME CARE,5505-Homecare,"11,562.81"
04-NOV-2022,Adults & Communities (P),MY HOMECARE HFW LTD&&ISHC6570,HOME CARE,5505-Homecare,"5,310.59"
04-NOV-2022,Adults & Communities (P),MY HOMECARE HFW LTD&&ISHC6570,HOME CARE,5505-Homecare,"5,062.52"
04-NOV-2022,Adults & Communities (P),NEW HORIZONS CARE LTD&&ISHC3755,HOME CARE,5505-Homecare,804.94
04-NOV-2022,Adults & Communities (P),PANASHE HOME CARE SERVICES LTD&&ISHC3952,HOME CARE,5505-Homecare,"4,081.58"
04-NOV-2022,Adults & Communities (P),PASSION HEALTHCARE LIMITED&&ISHC2772,HOME CARE,5505-Homecare,"27,750.39"
04-NOV-2022,Adults & Communities (P),PASSION HEALTHCARE LIMITED&&ISHC2772,HOME CARE,5505-Homecare,526.50
04-NOV-2022,Adults & Communities (P),PASSIONATE HOMECARE LTD T/A MY HOMECARE&&ISHC6335,HOME CARE,5505-Homecare,"11,945.29"
04-NOV-2022,Adults & Communities (P),PINEAPPLE SUPPORT SERVICES LTD&&CLCD1673,CLC,5504-Day/CLC Services,"1,265.78"
04-NOV-2022,Adults & Communities (P),POTENSIAL LTD&&CLCD6754,CLC,5504-Day/CLC Services,"6,850.28"
04-NOV-2022,Adults & Communities (P),PRACTICAL CARE SOLUTIONS LTD&&ISHC3327,HOME CARE,5505-Homecare,"24,856.35"
04-NOV-2022,Adults & Communities (P),PRECIOUS HOPE HEALTH & HOME CARE&&ISHC3233,HOME CARE,5505-Homecare,"34,544.88"
04-NOV-2022,Adults & Communities (P),PRECIOUS HOPE HEALTH & HOME CARE&&ISHC3233,HOME CARE,5505-Homecare,629.06
04-NOV-2022,Adults & Communities (P),PRESTIGE NURSING LTD&&ISHC5475,HOME CARE,5505-Homecare,"1,401.00"
04-NOV-2022,Adults & Communities (P),PRO HELP LTD&&ISHC5331,HOME CARE,5505-Homecare,"11,000.88"
04-NOV-2022,Adults & Communities (P),PURE HOMECARE LTD&&ISHC3745,HOME CARE,5505-Homecare,"2,387.81"
04-NOV-2022,Adults & Communities (P),REACT HOMECARE LTD&&ISHC6581,HOME CARE,5505-Homecare,536.63
04-NOV-2022,Adults & Communities (P),REE ENTERPRISE UK LTD&&ISHC6339,HOME CARE,5505-Homecare,"44,120.12"
04-NOV-2022,Adults & Communities (P),REE ENTERPRISE UK LTD&&ISHC6339,HOME CARE,5505-Homecare,516.38
04-NOV-2022,Adults & Communities (P),RKS DOMICILIARY CARE LTD T/A CAREMARK (CHARNWOOD)&&ISHC2618,HOME CARE,5505-Homecare,"8,515.19"
04-NOV-2022,Adults & Communities (P),ROSELEIGH DAYCARE LTD &&CLCD6761,SUPPORTED LIVING,5504-Day/CLC Services,538.48
04-NOV-2022,Adults & Communities (P),SENSE&&CLCD3311,CLC,5504-Day/CLC Services,"3,731.70"
04-NOV-2022,Adults & Communities (P),SHEPSHED CARERS LTD&&ISHCHC405,HOME CARE,5505-Homecare,"6,941.69"
04-NOV-2022,Adults & Communities (P),SOVA HEALTHCARE LEICESTER LTD&&ISHC3195,HOME CARE,5505-Homecare,"3,483.00"
04-NOV-2022,Adults & Communities (P),SOVA HEALTHCARE LEICESTER LTD&&ISHC3195,HOME CARE,5505-Homecare,"3,164.06"
04-NOV-2022,Adults & Communities (P),STORM HOMECARE LTD&&ISHC3169,HOME CARE,5505-Homecare,"9,560.91"
04-NOV-2022,Adults & Communities (P),SUPPORT & CONNECTIONS LTD&&CLCD3316,CLC,5504-Day/CLC Services,"2,427.91"
04-NOV-2022,Adults & Communities (P),SURECARE CHARNWOOD & RUSHCLIFFE&&ISHC6189,HOME CARE,5505-Homecare,"3,858.40"
04-NOV-2022,Adults & Communities (P),T&J TOTAL SERVICES LTD&&CLCD6394,SUPPORTED LIVING,5504-Day/CLC Services,902.00
04-NOV-2022,Adults & Communities (P),TLR HEALTH CARE SERVICES LTD&&ISHC5887,HOME CARE,5505-Homecare,"6,175.83"
04-NOV-2022,Adults & Communities (P),TRINITY TOWERS LTD T/A KARE PLUS&&ISHC5642,HOME CARE,5505-Homecare,"9,796.67"
04-NOV-2022,Adults & Communities (P),UK CARE STAFFING LTD&&ISHC6717,HOME CARE,5505-Homecare,"2,298.62"
04-NOV-2022,Adults & Communities (P),VILLAGE HOMECARE LTD&&ISHC2754,HOME CARE,5505-Homecare,"7,985.23"
04-NOV-2022,Adults & Communities (P),VISTA&&CLCD3329,CLC,5504-Day/CLC Services,"1,046.93"
04-NOV-2022,Adults & Communities (P),VOYAGE 1 LTD T/A VOYAGE CARE&&CLCD3317,CLC,5504-Day/CLC Services,"12,104.11"
04-NOV-2022,Adults & Communities (P),WHM WORK CONNECTIONS LTD&&CLCD3312,CLC,5504-Day/CLC Services,"14,152.24"
04-NOV-2022,Adults & Communities (P),WYVILLE HOMECARE SERVICES LTD&&ISHC6062,HOME CARE,5505-Homecare,"1,134.01"
04-NOV-2022,Adults & Communities (P),XPERIENCE RECRUITMENT LTD MARKETING&&ISH6578,HOME CARE,5505-Homecare,"13,200.09"
04-NOV-2022,Chief Executives (P),1GC Family Law,TRADE SUPPLIER,4905-Legal Expenses,"1,700.00"
04-NOV-2022,Environment & Transport (P),A1 Cars Ashby Ltd,TRADE SUPPLIER,3303-Taxi Hire,"1,048.00"
04-NOV-2022,Environment & Transport (P),A1 Cars Ashby Ltd,TRADE SUPPLIER,3201-Pooled Transport Recharge Inhouse,"1,213.00"
04-NOV-2022,Environment & Transport (P),A1 Cars Ashby Ltd,TRADE SUPPLIER,3303-Taxi Hire,"3,150.00"
04-NOV-2022,Environment & Transport (P),A1 Cars Ashby Ltd,TRADE SUPPLIER,3113-Home to Sch Trans Contract Buses Sec,"1,218.00"
04-NOV-2022,Environment & Transport (P),A1 Cars Ashby Ltd,TRADE SUPPLIER,3113-Home to Sch Trans Contract Buses Sec,"1,189.00"
04-NOV-2022,Environment & Transport (P),A1 Cars Ashby Ltd,TRADE SUPPLIER,3303-Taxi Hire,"2,642.08"
04-NOV-2022,Environment & Transport (P),A1 Cars Ashby Ltd,TRADE SUPPLIER,3303-Taxi Hire,"2,142.00"
04-NOV-2022,Environment & Transport (P),A1 Cars Ashby Ltd,TRADE SUPPLIER,3303-Taxi Hire,"2,574.60"
04-NOV-2022,Environment & Transport (P),A1 Cars Ashby Ltd,TRADE SUPPLIER,3303-Taxi Hire,"4,288.62"
04-NOV-2022,Environment & Transport (P),A1 Cars Ashby Ltd,TRADE SUPPLIER,3303-Taxi Hire,"2,513.70"
04-NOV-2022,Environment & Transport (P),A1 Cars Ashby Ltd,TRADE SUPPLIER,3303-Taxi Hire,"1,277.60"
04-NOV-2022,Environment & Transport (P),A2B Taxis,TRADE SUPPLIER,3303-Taxi Hire,"1,416.00"
04-NOV-2022,Environment & Transport (P),A2B Taxis,TRADE SUPPLIER,3113-Home to Sch Trans Contract Buses Sec,"1,840.00"
04-NOV-2022,Environment & Transport (P),A2B Taxis,TRADE SUPPLIER,3113-Home to Sch Trans Contract Buses Sec,"1,365.00"
04-NOV-2022,Environment & Transport (P),A2B Taxis,TRADE SUPPLIER,3303-Taxi Hire,"1,235.00"
04-NOV-2022,Environment & Transport (P),AA Taxis,TRADE SUPPLIER,3303-Taxi Hire,"2,880.00"
04-NOV-2022,Environment & Transport (P),Access Hire Nationwide Ltd,TRADE SUPPLIER,3301-Vehicle & Plant Hire,"1,386.14"
04-NOV-2022,C&FS (P),REDACTED PERSONAL DATA,GENERAL,5621-Transfer Payments,"2,236.80"
04-NOV-2022,Environment & Transport (P),Aggregate Industries UK Ltd,SUBCONTRACTOR,4109-Materials,896.14
04-NOV-2022,Environment & Transport (P),Aggregate Industries UK Ltd,SUBCONTRACTOR,4109-Materials,769.23
04-NOV-2022,Environment & Transport (P),Aggregate Industries UK Ltd,SUBCONTRACTOR,4109-Materials,"1,039.60"
04-NOV-2022,Environment & Transport (P),Aggregate Industries UK Ltd,SUBCONTRACTOR,4109-Materials,824.60
04-NOV-2022,Environment & Transport (P),Aggregate Industries UK Ltd,SUBCONTRACTOR,4109-Materials,"1,018.90"
04-NOV-2022,Environment & Transport (P),Aggregate Industries UK Ltd,SUBCONTRACTOR,4109-Materials,"1,016.60"
04-NOV-2022,Environment & Transport (P),Aggregate Industries UK Ltd,SUBCONTRACTOR,4109-Materials,978.93
04-NOV-2022,Environment & Transport (P),Aggregate Industries UK Ltd,SUBCONTRACTOR,4109-Materials,779.59
04-NOV-2022,Environment & Transport (P),Aggregate Industries UK Ltd,SUBCONTRACTOR,4109-Materials,"1,178.45"
04-NOV-2022,Environment & Transport (P),Aggregate Industries UK Ltd,SUBCONTRACTOR,4109-Materials,"1,263.92"
04-NOV-2022,Environment & Transport (P),Airports 4 U,TRADE SUPPLIER,3303-Taxi Hire,"2,905.00"
04-NOV-2022,C&FS (P),REDACTED PERSONAL DATA,GENERAL,5621-Transfer Payments,517.21
04-NOV-2022,C&FS (P),REDACTED PERSONAL DATA,GENERAL,5621-Transfer Payments,940.50
04-NOV-2022,C&FS (P),REDACTED PERSONAL DATA,GENERAL,5621-Transfer Payments,"1,847.29"
04-NOV-2022,C&FS (P),REDACTED PERSONAL DATA,GENERAL,5323-External SEN Providers Independent Sch,"3,697.98"
04-NOV-2022,C&FS (P),REDACTED PERSONAL DATA,TRADE INDIVIDUAL,5445-Adoption Support,"2,405.75"
04-NOV-2022,C&FS (P),REDACTED PERSONAL DATA,TRADE INDIVIDUAL,5445-Adoption Support,"2,412.75"
04-NOV-2022,Corporate Resources (CR) (P),Aon UK Ltd,TRADE SUPPLIER,4519-Insurance (non Premises),"10,106.40"
04-NOV-2022,Corporate Resources (CR) (P),Aon UK Ltd,TRADE SUPPLIER,2601-Premises Insurance,"29,712.51"
04-NOV-2022,Corporate Resources (CR) (P),Aon UK Ltd,TRADE SUPPLIER,2601-Premises Insurance,"74,544.19"
04-NOV-2022,Corporate Resources (CR) (P),Aon UK Ltd,TRADE SUPPLIER,2601-Premises Insurance,"12,761.96"
04-NOV-2022,Corporate Resources (CR) (P),Aon UK Ltd,TRADE SUPPLIER,2601-Premises Insurance,"1,133.69"
04-NOV-2022,Corporate Resources (CR) (P),Aon UK Ltd,TRADE SUPPLIER,2601-Premises Insurance,"2,568.43"
04-NOV-2022,Corporate Resources (CR) (P),Aon UK Ltd,TRADE SUPPLIER,2601-Premises Insurance,"3,756.14"
04-NOV-2022,Corporate Resources (CR) (P),Aon UK Ltd,TRADE SUPPLIER,1704-Employee Related Insurance,"37,736.16"
04-NOV-2022,Corporate Resources (CR) (P),Aon UK Ltd,TRADE SUPPLIER,2601-Premises Insurance,"9,250.00"
04-NOV-2022,Corporate Resources (CR) (P),Aon UK Ltd,TRADE SUPPLIER,2601-Premises Insurance,"2,500.00"
04-NOV-2022,Corporate Resources (CR) (P),Aon UK Ltd,TRADE SUPPLIER,2601-Premises Insurance,"7,250.00"
04-NOV-2022,Corporate Resources (CR) (P),Aon UK Ltd,TRADE SUPPLIER,2601-Premises Insurance,"9,950.00"
04-NOV-2022,Corporate Resources (CR) (P),Aon UK Ltd,TRADE SUPPLIER,2601-Premises Insurance,"45,788.71"
04-NOV-2022,Corporate Resources (CR) (P),Aon UK Ltd,TRADE SUPPLIER,2601-Premises Insurance,"579,965.98"
04-NOV-2022,Corporate Resources (CR) (P),Aon UK Ltd,TRADE SUPPLIER,1704-Employee Related Insurance,"131,560.80"
04-NOV-2022,Corporate Resources (CR) (P),Aon UK Ltd,TRADE SUPPLIER,1704-Employee Related Insurance,"1,742.91"
04-NOV-2022,Corporate Resources (CR) (P),Aon UK Ltd,TRADE SUPPLIER,1704-Employee Related Insurance,"88,481.12"
04-NOV-2022,Corporate Resources (CR) (P),Aon UK Ltd,TRADE SUPPLIER,3501-Vehicle Insurance,"376,040.00"
04-NOV-2022,Corporate Resources (CR) (P),Aon UK Ltd,TRADE SUPPLIER,1704-Employee Related Insurance,"39,548.32"
04-NOV-2022,Corporate Resources (CR) (P),Aon UK Ltd,TRADE SUPPLIER,2601-Premises Insurance,"28,908.32"
04-NOV-2022,Corporate Resources (CR) (P),Aon UK Ltd,TRADE SUPPLIER,1704-Employee Related Insurance,"411,753.44"
04-NOV-2022,Schools Revenue Cost Centres (P),Appleby Magna Sir John Moore CP School,GENERAL,6101-Support Services,"10,080.00"
04-NOV-2022,Corporate Resources (CR) (P),Arcelle Consulting,TRADE SUPPLIER,2112-Programmed Work,"1,250.00"
04-NOV-2022,Environment & Transport (P),Arco Ltd,TRADE SUPPLIER,4301-Protective Clothing & Uniforms,"2,886.70"
04-NOV-2022,Environment & Transport (P),ASA Transport Services Ltd,TRADE SUPPLIER,3201-Pooled Transport Recharge Inhouse,"1,012.00"
04-NOV-2022,Environment & Transport (P),ASA Transport Services Ltd,TRADE SUPPLIER,3201-Pooled Transport Recharge Inhouse,"2,016.00"
04-NOV-2022,Environment & Transport (P),ASA Transport Services Ltd,TRADE SUPPLIER,3201-Pooled Transport Recharge Inhouse,"2,112.00"
04-NOV-2022,Environment & Transport (P),ASA Transport Services Ltd,TRADE SUPPLIER,3303-Taxi Hire,"2,268.00"
04-NOV-2022,Environment & Transport (P),ASA Transport Services Ltd,TRADE SUPPLIER,3201-Pooled Transport Recharge Inhouse,848.00
04-NOV-2022,Environment & Transport (P),ASA Transport Services Ltd,TRADE SUPPLIER,3201-Pooled Transport Recharge Inhouse,966.00
04-NOV-2022,Environment & Transport (P),Ashby De La Zouch Town Council,OTHER LOCAL AUTHORITIES,4908-Grants,"2,200.00"
04-NOV-2022,Corporate Resources (CR) (P),Ashwell Maintenance Ltd,TRADE SUPPLIER,2105-Reactive Maintenance M&E,"1,111.95"
04-NOV-2022,Corporate Resources (CR) (P),Ashwell Maintenance Ltd,TRADE SUPPLIER,2105-Reactive Maintenance M&E,510.00
04-NOV-2022,Corporate Resources (CR) (P),Ashwell Maintenance Ltd,TRADE SUPPLIER,2105-Reactive Maintenance M&E,690.60
04-NOV-2022,Capital - In Year Spend (P),Ashwell Maintenance Ltd,TRADE SUPPLIER,941D-L&B - Building Costs,"1,295.00"
04-NOV-2022,Corporate Resources (CR) (P),Ashwell Maintenance Ltd,TRADE SUPPLIER,2105-Reactive Maintenance M&E,861.90
04-NOV-2022,Balance Sheet Cost Centres (P),Barhale Construction Services Ltd,TRADE SUPPLIER,9631-Inventories - General,552.00
04-NOV-2022,Environment & Transport (P),Barrow Upon Soar Community Association,OTHER LOCAL AUTHORITIES,4908-Grants,"3,000.00"
04-NOV-2022,Environment & Transport (P),REDACTED PERSONAL DATA,TRADE INDIVIDUAL,3112-Home to Sch Trans Contract Buses Prim,"1,000.00"
04-NOV-2022,Corporate Resources (CR) (P),BFS Group Ltd T/A Bidfood,TRADE SUPPLIER,4504-Provisions Purchases,808.76
04-NOV-2022,Corporate Resources (CR) (P),BFS Group Ltd T/A Bidfood,TRADE SUPPLIER,4504-Provisions Purchases,688.86
04-NOV-2022,Environment & Transport (P),Biffa Waste Services Ltd,TRADE SUPPLIER,5411-Private Contractors - General,"1,183.78"
04-NOV-2022,Environment & Transport (P),Biffa Waste Services Ltd,TRADE SUPPLIER,5411-Private Contractors - General,"10,611.49"
04-NOV-2022,Environment & Transport (P),Biffa Waste Services Ltd,TRADE SUPPLIER,5411-Private Contractors - General,"1,056.37"
04-NOV-2022,Environment & Transport (P),Biffa Waste Services Ltd,TRADE SUPPLIER,5411-Private Contractors - General,660.90
04-NOV-2022,Adults & Communities (P),Blaby District Council,OTHER LOCAL AUTHORITIES,5211-Other Local Authorities,"28,500.00"
04-NOV-2022,Adults & Communities (P),Blaby District Council,OTHER LOCAL AUTHORITIES,5211-Other Local Authorities,"118,587.75"
04-NOV-2022,C&FS (P),REDACTED PERSONAL DATA,GENERAL,5621-Transfer Payments,"2,438.69"
04-NOV-2022,C&FS (P),REDACTED PERSONAL DATA,GENERAL,5621-Transfer Payments,"1,971.97"
04-NOV-2022,Adults & Communities (P),Carlton Construction Services,SUBCONTRACTOR,5411-Private Contractors - General,"9,250.00"
04-NOV-2022,C&FS (P),REDACTED PERSONAL DATA,TRADE SUPPLIER,5626-Transfer Payments Section 23 Grants,"5,784.61"
04-NOV-2022,Chief Executives (P),Carter Brown The Expert Service Ltd,TRADE SUPPLIER,4507-Consultants & Specialists,"1,227.50"
04-NOV-2022,Corporate Resources (CR) (P),Castle Catering Engineers Ltd,TRADE SUPPLIER,4102-General Equipment - Purchase & Repairs,"1,117.38"
04-NOV-2022,Balance Sheet Cost Centres (P),Certas Energy UK Ltd,TRADE SUPPLIER,9635-Inventories - LHD Fuel Adblue,930.93
04-NOV-2022,C&FS (P),Charnwood Arts Therapy Service Ltd,TRADE SUPPLIER,5411-Private Contractors - General,"1,050.00"
04-NOV-2022,Public Health (P),Charnwood School of Dance,TRADE SUPPLIER,4908-Grants,"1,000.00"
04-NOV-2022,Public Health (P),Charnwood School of Dance,TRADE SUPPLIER,4908-Grants,"1,050.00"
04-NOV-2022,Corporate Resources (CR) (P),REDACTED PERSONAL DATA,TRADE INDIVIDUAL,2101-R&M Buildings,"3,789.75"
04-NOV-2022,Corporate Resources (CR) (P),REDACTED PERSONAL DATA,TRADE INDIVIDUAL,2101-R&M Buildings,"1,200.00"
04-NOV-2022,Balance Sheet Cost Centres (P),CID Products LLP,TRADE SUPPLIER,9631-Inventories - General,538.80
04-NOV-2022,Environment & Transport (P),Colas Ltd,SUBCONTRACTOR,3301-Vehicle & Plant Hire,"1,231.42"
04-NOV-2022,Environment & Transport (P),Colas Ltd,SUBCONTRACTOR,4901-Other Expenditure,"2,416.20"
04-NOV-2022,Adults & Communities (P),Compass Computer Consultants Ltd,TRADE SUPPLIER,4604-IT Equipment Repairs & Maintenance,"1,256.75"
04-NOV-2022,Environment & Transport (P),Confidence Bus & Coach Hire Ltd,TRADE SUPPLIER,3113-Home to Sch Trans Contract Buses Sec,"13,250.47"
04-NOV-2022,C&FS (P),Context To Cognition,TRADE INDIVIDUAL,4507-Consultants & Specialists,960.00
04-NOV-2022,C&FS (P),Context To Cognition,TRADE INDIVIDUAL,5443-Agency & Contracted Services,"1,400.00"
04-NOV-2022,Balance Sheet Cost Centres (P),Crystal Purchasing Ltd T/A ICL UK (Sales) Ltd,TRADE SUPPLIER,9631-Inventories - General,"7,696.08"
04-NOV-2022,Balance Sheet Cost Centres (P),Crystal Purchasing Ltd T/A ICL UK (Sales) Ltd,TRADE SUPPLIER,9631-Inventories - General,"3,119.04"
04-NOV-2022,Balance Sheet Cost Centres (P),Crystal Purchasing Ltd T/A ICL UK (Sales) Ltd,TRADE SUPPLIER,9631-Inventories - General,"13,711.68"
04-NOV-2022,C&FS (P),REDACTED PERSONAL DATA,GENERAL,5621-Transfer Payments,"1,099.62"
04-NOV-2022,Environment & Transport (P),Denham Procurement & Sourcing Solutions Ltd,TRADE SUPPLIER,4109-Materials,"3,010.89"
04-NOV-2022,Adults & Communities (P),Direct Healthcare Group,TRADE SUPPLIER,4102-General Equipment - Purchase & Repairs,"2,297.80"
04-NOV-2022,Chief Executives (P),DK Independent Social Work Ltd,TRADE SUPPLIER,4905-Legal Expenses,"2,610.20"
04-NOV-2022,Chief Executives (P),Dodds Solicitors LLP,TRADE SUPPLIER,4905-Legal Expenses,"3,360.55"
04-NOV-2022,C&FS (P),REDACTED PERSONAL DATA,GENERAL,5621-Transfer Payments,728.01
04-NOV-2022,C&FS (P),REDACTED PERSONAL DATA,GENERAL,5323-External SEN Providers Independent Sch,"1,052.31"
04-NOV-2022,C&FS (P),REDACTED PERSONAL DATA,GENERAL,5621-Transfer Payments,895.78
04-NOV-2022,Environment & Transport (P),Enterprise Flex E Rent,TRADE SUPPLIER,3301-Vehicle & Plant Hire,742.50
04-NOV-2022,Central Items (NCS) (P),Eon Energy Solutions Ltd (Highway Lighting),TRADE SUPPLIER,4901-Other Expenditure,787.00
04-NOV-2022,Central Items (NCS) (P),Eon Energy Solutions Ltd (Highway Lighting),TRADE SUPPLIER,4901-Other Expenditure,786.00
04-NOV-2022,Central Items (NCS) (P),Eon Energy Solutions Ltd (Highway Lighting),TRADE SUPPLIER,4901-Other Expenditure,"2,280.00"
04-NOV-2022,Central Items (NCS) (P),Eon Energy Solutions Ltd (Highway Lighting),TRADE SUPPLIER,4901-Other Expenditure,"1,166.00"
04-NOV-2022,Central Items (NCS) (P),Eon Energy Solutions Ltd (Highway Lighting),TRADE SUPPLIER,4901-Other Expenditure,"2,660.00"
04-NOV-2022,Central Items (NCS) (P),Eon Energy Solutions Ltd (Highway Lighting),TRADE SUPPLIER,4901-Other Expenditure,"1,575.00"
04-NOV-2022,Corporate Resources (CR) (P),ESPO,TRADE SUPPLIER,4101-Furniture,882.00
04-NOV-2022,Balance Sheet Cost Centres (P),Exterior Lighting Solutions (UK) Ltd,TRADE SUPPLIER,9631-Inventories - General,978.00
04-NOV-2022,Balance Sheet Cost Centres (P),Exterior Lighting Solutions (UK) Ltd,TRADE SUPPLIER,9631-Inventories - General,"2,420.00"
04-NOV-2022,Balance Sheet Cost Centres (P),Exterior Lighting Solutions (UK) Ltd,TRADE SUPPLIER,9631-Inventories - General,"3,568.50"
04-NOV-2022,Adults & Communities (P),Fastroi Ltd,TRADE SUPPLIER,4603-IT Software Licenses/Subscription,"10,440.00"
04-NOV-2022,Environment & Transport (P),First Leicester City Bus Ltd,TRADE SUPPLIER,5428-Minimum Cost Contracts,"4,535.70"
04-NOV-2022,Corporate Resources (CR) (P),First Response Training & Consultancy Services Ltd,TRADE SUPPLIER,1703-Training Expenses,705.00
04-NOV-2022,Environment & Transport (P),Ford & Slater of Leicester,TRADE SUPPLIER,3102-Vehicle & Plant Repairs & Maintenance,"1,568.06"
04-NOV-2022,Corporate Resources (CR) (P),REDACTED PERSONAL DATA,TRADE SUPPLIER,1703-Training Expenses,750.00
04-NOV-2022,C&FS (P),FTM Dance CIC (Forward Thinking Movement),TRADE SUPPLIER,5429-Community/Domiciliary,"1,800.00"
04-NOV-2022,Environment & Transport (P),G & G Minibuses Ltd,TRADE SUPPLIER,3113-Home to Sch Trans Contract Buses Sec,"6,137.77"
04-NOV-2022,Environment & Transport (P),G & G Minibuses Ltd,TRADE SUPPLIER,3113-Home to Sch Trans Contract Buses Sec,"6,278.50"
04-NOV-2022,Environment & Transport (P),G & G Minibuses Ltd,TRADE SUPPLIER,3113-Home to Sch Trans Contract Buses Sec,"6,397.57"
04-NOV-2022,Environment & Transport (P),G & G Minibuses Ltd,TRADE SUPPLIER,3112-Home to Sch Trans Contract Buses Prim,"3,718.38"
04-NOV-2022,Corporate Resources (CR) (P),Gallagher Bassett International,TRADE SUPPLIER,1704-Employee Related Insurance,"7,256.00"
04-NOV-2022,Corporate Resources (CR) (P),Gallagher Bassett International,TRADE SUPPLIER,1704-Employee Related Insurance,"1,789.00"
04-NOV-2022,Environment & Transport (P),Go Plant Ltd T/A Go Plant Sweepers,TRADE SUPPLIER,4901-Other Expenditure,542.00
04-NOV-2022,Environment & Transport (P),Go Plant Ltd T/A Go Plant Sweepers,TRADE SUPPLIER,4901-Other Expenditure,605.00
04-NOV-2022,Environment & Transport (P),REDACTED PERSONAL DATA,NON TRADE,3112-Home to Sch Trans Contract Buses Prim,"1,890.00"
04-NOV-2022,Environment & Transport (P),REDACTED PERSONAL DATA,NON TRADE,3303-Taxi Hire,"2,415.00"
04-NOV-2022,Environment & Transport (P),REDACTED PERSONAL DATA,NON TRADE,3112-Home to Sch Trans Contract Buses Prim,"1,995.00"
04-NOV-2022,C&FS (P),REDACTED PERSONAL DATA,GENERAL,5621-Transfer Payments,"1,054.99"
04-NOV-2022,Environment & Transport (P),Harborough District Council,OTHER LOCAL AUTHORITIES,5211-Other Local Authorities,"28,208.00"
04-NOV-2022,Corporate Resources (CR) (P),Harlow Bros Ltd,TRADE SUPPLIER,4109-Materials,500.39
04-NOV-2022,C&FS (P),REDACTED PERSONAL DATA,GENERAL,5621-Transfer Payments,565.97
04-NOV-2022,C&FS (P),REDACTED PERSONAL DATA,GENERAL,5323-External SEN Providers Independent Sch,"1,819.23"
04-NOV-2022,C&FS (P),REDACTED PERSONAL DATA,GENERAL,5621-Transfer Payments,"1,176.55"
04-NOV-2022,Corporate Resources (CR) (P),Healthy Buildings International Ltd,TRADE SUPPLIER,2101-R&M Buildings,"1,100.00"
04-NOV-2022,C&FS (P),Hempsall Consultancies Ltd,TRADE SUPPLIER,4522-Course Fees,566.00
04-NOV-2022,Corporate Resources (CR) (P),REDACTED PERSONAL DATA,TRADE SUPPLIER,4102-General Equipment - Purchase & Repairs,587.84
04-NOV-2022,Environment & Transport (P),Hinckley & Bosworth Borough Council,OTHER LOCAL AUTHORITIES,5211-Other Local Authorities,"5,948.00"
04-NOV-2022,C&FS (P),Ibstock Junior School,TRADE SUPPLIER,4901-Other Expenditure,"1,680.00"
04-NOV-2022,Environment & Transport (P),REDACTED PERSONAL DATA,TRADE INDIVIDUAL,3303-Taxi Hire,"3,332.70"
04-NOV-2022,C&FS (P),REDACTED PERSONAL DATA,GENERAL,5621-Transfer Payments,"3,873.28"
04-NOV-2022,Corporate Resources (CR) (P),REDACTED PERSONAL DATA,GENERAL,4901-Other Expenditure,500.00
04-NOV-2022,C&FS (P),REDACTED PERSONAL DATA,GENERAL,5621-Transfer Payments,756.13
04-NOV-2022,Environment & Transport (P),Japanese Knotweed Ltd,TRADE SUPPLIER,5411-Private Contractors - General,"4,098.00"
04-NOV-2022,Environment & Transport (P),REDACTED PERSONAL DATA,TRADE INDIVIDUAL,3303-Taxi Hire,"1,332.00"
04-NOV-2022,Environment & Transport (P),Jetline Taxis Ltd,TRADE SUPPLIER,3201-Pooled Transport Recharge Inhouse,"2,031.00"
04-NOV-2022,Environment & Transport (P),Jetline Taxis Ltd,TRADE SUPPLIER,3303-Taxi Hire,"2,052.00"
04-NOV-2022,Environment & Transport (P),Jetline Taxis Ltd,TRADE SUPPLIER,3201-Pooled Transport Recharge Inhouse,"2,176.00"
04-NOV-2022,Environment & Transport (P),Jetline Taxis Ltd,TRADE SUPPLIER,3201-Pooled Transport Recharge Inhouse,"2,662.00"
04-NOV-2022,Environment & Transport (P),REDACTED PERSONAL DATA,TRADE SUPPLIER,4507-Consultants & Specialists,626.00
04-NOV-2022,Corporate Resources (CR) (P),Jonstar Sustainable Technologies Ltd,TRADE SUPPLIER,2105-Reactive Maintenance M&E,700.00
04-NOV-2022,Corporate Resources (CR) (P),JR Allen & Sons Ltd,SUBCONTRACTOR,2101-R&M Buildings,"2,590.32"
04-NOV-2022,Corporate Resources (CR) (P),JR Allen & Sons Ltd,SUBCONTRACTOR,2106-Reactive Maint Buildings,"1,387.00"
04-NOV-2022,Environment & Transport (P),REDACTED PERSONAL DATA,NON TRADE,3303-Taxi Hire,"2,571.80"
04-NOV-2022,C&FS (P),REDACTED PERSONAL DATA,GENERAL,5621-Transfer Payments,659.17
04-NOV-2022,Chief Executives (P),KCH Barristers Ltd,TRADE SUPPLIER,4905-Legal Expenses,750.00
04-NOV-2022,Chief Executives (P),KCH Barristers Ltd,TRADE SUPPLIER,4905-Legal Expenses,625.00
04-NOV-2022,Balance Sheet Cost Centres (P),Keyline Civils Specialist Ltd,TRADE SUPPLIER,9631-Inventories - General,531.84
04-NOV-2022,C&FS (P),REDACTED PERSONAL DATA,GENERAL,5621-Transfer Payments,977.67
04-NOV-2022,Environment & Transport (P),L W Cole (Electric) Ltd,TRADE SUPPLIER,2103-Fixtures & Fittings,992.24
04-NOV-2022,C&FS (P),REDACTED PERSONAL DATA,GENERAL,5621-Transfer Payments,767.12
04-NOV-2022,Chief Executives (P),Lawyers In Local Government,TRADE SUPPLIER,4909-Subscriptions,"1,345.00"
04-NOV-2022,Schools Revenue Cost Centres (P),LCC Anstey Latimer CP School A/C,GENERAL,6101-Support Services,"11,247.00"
04-NOV-2022,Schools Revenue Cost Centres (P),LCC Ashby De La Zouch CE Primary School A/C,GENERAL,6101-Support Services,"10,938.00"
04-NOV-2022,Schools Revenue Cost Centres (P),LCC Ashby De La Zouch Woodcote Primary School A/C,GENERAL,6101-Support Services,"10,255.00"
04-NOV-2022,Schools Revenue Cost Centres (P),LCC Barwell CI School A/C,GENERAL,6101-Support Services,"9,981.00"
04-NOV-2022,Schools Revenue Cost Centres (P),LCC Barwell Newlands CP School A/C,GENERAL,6101-Support Services,"10,728.00"
04-NOV-2022,Schools Revenue Cost Centres (P),LCC Belton CE Primary School A/C,GENERAL,6101-Support Services,"9,870.00"
04-NOV-2022,Schools Revenue Cost Centres (P),LCC Billesdon Parochial Primary School A/C,GENERAL,6101-Support Services,"9,748.00"
04-NOV-2022,Schools Revenue Cost Centres (P),LCC Blaby Thistly Meadow Primary School A/C,GENERAL,6101-Support Services,"10,383.00"
04-NOV-2022,Schools Revenue Cost Centres (P),LCC Braunstone Ravenhurst CP School A/C,GENERAL,6101-Support Services,"11,737.00"
04-NOV-2022,Schools Revenue Cost Centres (P),LCC Breedon On The Hill St Hardulphs School A/C,GENERAL,6101-Support Services,"9,619.00"
04-NOV-2022,Schools Revenue Cost Centres (P),LCC Broughton Astley Orchard CE School A/C,GENERAL,6101-Support Services,"10,290.00"
04-NOV-2022,Schools Revenue Cost Centres (P),LCC Buckminster CP School A/C,GENERAL,6101-Support Services,"9,742.00"
04-NOV-2022,Schools Revenue Cost Centres (P),LCC Burbage CE Infants School A/C,GENERAL,6101-Support Services,"10,348.00"
04-NOV-2022,Schools Revenue Cost Centres (P),LCC Burbage County Junior School A/C,GENERAL,6101-Support Services,"11,433.00"
04-NOV-2022,Schools Revenue Cost Centres (P),LCC Burbage Sketchley Hill CP School A/C,GENERAL,6101-Support Services,"11,947.00"
04-NOV-2022,Schools Revenue Cost Centres (P),LCC Burton On The Wolds CP School A/C,GENERAL,6101-Support Services,"10,302.00"
04-NOV-2022,Balance Sheet Cost Centres (P),LCC CHILDREN'S AND FAMILY SERVICE,OTHER LOCAL AUTHORITIES,9668-Cash - Floats,582.50
04-NOV-2022,Schools Revenue Cost Centres (P),LCC Coalville All Saints CE School A/C,GENERAL,6101-Support Services,"10,436.00"
04-NOV-2022,Schools Revenue Cost Centres (P),LCC Coalville Belvoir Dale County School A/C,GENERAL,6101-Support Services,"10,827.00"
04-NOV-2022,Schools Revenue Cost Centres (P),LCC Coalville Warren Hills CP School A/C,GENERAL,6101-Support Services,"10,273.00"
04-NOV-2022,Schools Revenue Cost Centres (P),LCC Congerstone County School A/C,GENERAL,6101-Support Services,"10,290.00"
04-NOV-2022,Schools Revenue Cost Centres (P),LCC Cossington CE School A/C,GENERAL,6101-Support Services,"9,841.00"
04-NOV-2022,Schools Revenue Cost Centres (P),LCC Countesthorpe Greenfields Primary School A/C,GENERAL,6101-Support Services,"12,478.00"
04-NOV-2022,Schools Revenue Cost Centres (P),LCC Diseworth C E Primary School A/C,GENERAL,6101-Support Services,"9,648.00"
04-NOV-2022,Schools Revenue Cost Centres (P),LCC Ellistown CP School A/C,GENERAL,6101-Support Services,"10,348.00"
04-NOV-2022,Schools Revenue Cost Centres (P),LCC Fleckney CE School A/C,GENERAL,6101-Support Services,"11,515.00"
04-NOV-2022,Schools Revenue Cost Centres (P),LCC Foxton County School A/C,GENERAL,6101-Support Services,"9,765.00"
04-NOV-2022,Schools Revenue Cost Centres (P),LCC Glenfield The Hall Primary School A/C,GENERAL,6101-Support Services,"11,428.00"
04-NOV-2022,Schools Revenue Cost Centres (P),LCC Great Glen St Cuthberts CE Primary School A/C,GENERAL,6101-Support Services,"10,914.00"
04-NOV-2022,Schools Revenue Cost Centres (P),LCC Griffydam CP School A/C,GENERAL,6101-Support Services,"9,888.00"
04-NOV-2022,Schools Revenue Cost Centres (P),LCC Groby Elizabeth Woodville County School A/C,GENERAL,6101-Support Services,"10,395.00"
04-NOV-2022,Schools Revenue Cost Centres (P),LCC Groby Martinshaw County School A/C,GENERAL,6101-Support Services,"10,401.00"
04-NOV-2022,Schools Revenue Cost Centres (P),LCC Hallaton CE School A/C,GENERAL,6101-Support Services,"9,748.00"
04-NOV-2022,Schools Revenue Cost Centres (P),LCC Harby CE School A/C,GENERAL,6101-Support Services,"9,748.00"
04-NOV-2022,Schools Revenue Cost Centres (P),LCC Hathern CE Primary School A/C,GENERAL,6101-Support Services,"10,296.00"
04-NOV-2022,Schools Revenue Cost Centres (P),LCC Heather County School A/C,GENERAL,6101-Support Services,"9,893.00"
04-NOV-2022,Schools Revenue Cost Centres (P),LCC Hemington County Primary School A/C,GENERAL,6101-Support Services,"9,578.00"
04-NOV-2022,Schools Revenue Cost Centres (P),LCC Hinckley St Marys C of E Primary School,GENERAL,6101-Support Services,"10,751.00"
04-NOV-2022,Schools Revenue Cost Centres (P),LCC Hinckley Westfield CI School A/C,GENERAL,6101-Support Services,"10,453.00"
04-NOV-2022,Schools Revenue Cost Centres (P),LCC Hinckley Westfield CJ School A/C,GENERAL,6101-Support Services,"11,538.00"
04-NOV-2022,Schools Revenue Cost Centres (P),LCC Hose CE School A/C,GENERAL,6101-Support Services,"9,596.00"
04-NOV-2022,Schools Revenue Cost Centres (P),LCC Hugglescote CP School A/C,GENERAL,6101-Support Services,"11,562.00"
04-NOV-2022,Schools Revenue Cost Centres (P),LCC Ibstock CJ School A/C,GENERAL,6101-Support Services,"11,241.00"
04-NOV-2022,Schools Revenue Cost Centres (P),LCC Ibstock St Denys CE Infants School A/C,GENERAL,6101-Support Services,"10,378.00"
04-NOV-2022,Schools Revenue Cost Centres (P),LCC Kegworth CP School A/C,GENERAL,6101-Support Services,"10,436.00"
04-NOV-2022,Schools Revenue Cost Centres (P),LCC Kilby CE School A/C,GENERAL,6101-Support Services,"9,707.00"
04-NOV-2022,Schools Revenue Cost Centres (P),LCC Little Bowden CP School A/C,GENERAL,6101-Support Services,"11,352.00"
04-NOV-2022,Schools Revenue Cost Centres (P),LCC Long Clawson CE School A/C,GENERAL,6101-Support Services,"9,689.00"
04-NOV-2022,Schools Revenue Cost Centres (P),LCC Long Whatton Primary School A/C,GENERAL,6101-Support Services,"9,835.00"
04-NOV-2022,Schools Revenue Cost Centres (P),LCC Loughborough Ashmount School A/C,GENERAL,6101-Support Services,"9,812.00"
04-NOV-2022,Schools Revenue Cost Centres (P),LCC Loughborough Booth Wood CP School A/C,GENERAL,6101-Support Services,"10,518.00"
04-NOV-2022,Schools Revenue Cost Centres (P),LCC Loughborough Thorpe Acre County Junior School A/C,GENERAL,6101-Support Services,"10,407.00"
04-NOV-2022,Schools Revenue Cost Centres (P),LCC Loughborough Thorpe Acre Infant School A/C,GENERAL,6101-Support Services,"9,870.00"
04-NOV-2022,Schools Revenue Cost Centres (P),LCC Melton Mowbray Birch Wood School A/C,GENERAL,6101-Support Services,"9,695.00"
04-NOV-2022,Adults & Communities (P),LCC Melton Supported Living & Short Breaks Imprest A/C,GENERAL,4504-Provisions Purchases,701.15
04-NOV-2022,Schools Revenue Cost Centres (P),LCC Moira Primary School,GENERAL,6101-Support Services,"10,284.00"
04-NOV-2022,Schools Revenue Cost Centres (P),LCC New Swannington Primary School A/C,GENERAL,6101-Support Services,"10,360.00"
04-NOV-2022,Schools Revenue Cost Centres (P),LCC Newbold Coleorton CE School A/C,GENERAL,6101-Support Services,"9,520.00"
04-NOV-2022,Schools Revenue Cost Centres (P),LCC Newbold Verdon CP School A/C,GENERAL,6101-Support Services,"10,529.00"
04-NOV-2022,Schools Revenue Cost Centres (P),LCC Newton Burgoland CP School A/C,GENERAL,6101-Support Services,"9,713.00"
04-NOV-2022,Schools Revenue Cost Centres (P),LCC Quorn St Bartholomews CE Primary School A/C,GENERAL,6101-Support Services,"12,005.00"
04-NOV-2022,Schools Revenue Cost Centres (P),LCC Scalford CE School A/C,GENERAL,6101-Support Services,"9,718.00"
04-NOV-2022,Schools Revenue Cost Centres (P),LCC Sheepy Magna CE School A/C,GENERAL,6101-Support Services,"9,870.00"
04-NOV-2022,Schools Revenue Cost Centres (P),LCC Shepshed Oxley CP School A/C,GENERAL,6101-Support Services,"10,605.00"
04-NOV-2022,Schools Revenue Cost Centres (P),LCC Shepshed St Botolphs CE Primary School A/C,GENERAL,6101-Support Services,"10,914.00"
04-NOV-2022,Schools Revenue Cost Centres (P),LCC Snarestone CP School A/C,GENERAL,6101-Support Services,"9,689.00"
04-NOV-2022,Schools Revenue Cost Centres (P),LCC Stathern CP School A/C,GENERAL,6101-Support Services,"9,818.00"
04-NOV-2022,Schools Revenue Cost Centres (P),LCC Swithland St Leonards CE School A/C,GENERAL,6101-Support Services,"9,794.00"
04-NOV-2022,Schools Revenue Cost Centres (P),LCC Thurlaston CE Primary School A/C,GENERAL,6101-Support Services,"9,818.00"
04-NOV-2022,Schools Revenue Cost Centres (P),LCC Whetstone Badgerbrook Primary School A/C,GENERAL,6101-Support Services,"11,428.00"
04-NOV-2022,Schools Revenue Cost Centres (P),LCC Whitwick CE Primary School A/C,GENERAL,6101-Support Services,"11,159.00"
04-NOV-2022,Schools Revenue Cost Centres (P),LCC Wigston Thythorn Field CP School A/C,GENERAL,6101-Support Services,"10,337.00"
04-NOV-2022,Schools Revenue Cost Centres (P),LCC Woodhouse Eaves St Pauls CE Primary School A/C,GENERAL,6101-Support Services,"10,372.00"
04-NOV-2022,Schools Revenue Cost Centres (P),LCC Woodstone County School A/C,GENERAL,6101-Support Services,"10,378.00"
04-NOV-2022,Schools Revenue Cost Centres (P),LCC Worthington Primary School A/C,GENERAL,6101-Support Services,"9,724.00"
04-NOV-2022,Schools Revenue Cost Centres (P),LCC Wymeswold CE School A/C,GENERAL,6101-Support Services,"9,899.00"
04-NOV-2022,C&FS (P),Leaders in Care,FACTOR,1201-Agency Costs,"1,628.00"
04-NOV-2022,C&FS (P),REDACTED PERSONAL DATA,GENERAL,5621-Transfer Payments,926.80
04-NOV-2022,Environment & Transport (P),Leicester City Council,OTHER LOCAL AUTHORITIES,5411-Private Contractors - General,"1,907.01"
04-NOV-2022,Environment & Transport (P),Leicester City Council,OTHER LOCAL AUTHORITIES,5411-Private Contractors - General,921.97
04-NOV-2022,Balance Sheet Cost Centres (P),Leicester City Council,OTHER LOCAL AUTHORITIES,9729-Suspense (Current Liability),"34,774.38"
04-NOV-2022,Public Health (P),Leicester City Football Club Trust Ltd T/A Leicester City Football In The Community,TRADE SUPPLIER,4908-Grants,700.00
04-NOV-2022,Public Health (P),Leicestershire Independent Pharmacy Co Ltd T/A LIPCO Healthcare,TRADE SUPPLIER,5448-Pharmacy,"3,694.98"
04-NOV-2022,Public Health (P),Leicestershire Independent Pharmacy Co Ltd T/A LIPCO Healthcare,TRADE SUPPLIER,5448-Pharmacy,"4,745.56"
04-NOV-2022,Chief Executives (P),Lextox,TRADE SUPPLIER,4905-Legal Expenses,"1,361.00"
04-NOV-2022,Chief Executives (P),Lextox,TRADE SUPPLIER,4905-Legal Expenses,673.00
04-NOV-2022,C&FS (P),REDACTED PERSONAL DATA,GENERAL,5621-Transfer Payments,568.26
04-NOV-2022,C&FS (P),REDACTED PERSONAL DATA,GENERAL,5621-Transfer Payments,733.83
04-NOV-2022,Corporate Resources (CR) (P),LJW Consultants Ltd,TRADE SUPPLIER,4504-Provisions Purchases,"1,973.87"
04-NOV-2022,Public Health (P),Loughborough University,TRADE SUPPLIER,4603-IT Software Licenses/Subscription,"1,417.50"
04-NOV-2022,C&FS (P),REDACTED PERSONAL DATA,GENERAL,5323-External SEN Providers Independent Sch,"1,842.38"
04-NOV-2022,C&FS (P),REDACTED PERSONAL DATA,GENERAL,5621-Transfer Payments,900.41
04-NOV-2022,Environment & Transport (P),M&M Cabs Ltd,TRADE SUPPLIER,3303-Taxi Hire,"2,457.00"
04-NOV-2022,Environment & Transport (P),M&M Cabs Ltd,TRADE SUPPLIER,3201-Pooled Transport Recharge Inhouse,"1,951.98"
04-NOV-2022,Environment & Transport (P),Marlene Reid Centre Community Action     1,TRADE SUPPLIER,3201-Pooled Transport Recharge Inhouse,644.50
04-NOV-2022,Environment & Transport (P),Matchtech Group (UK) Ltd,TRADE SUPPLIER,1201-Agency Costs,"11,369.75"
04-NOV-2022,Environment & Transport (P),Matchtech Group (UK) Ltd,TRADE SUPPLIER,1201-Agency Costs,"11,320.00"
04-NOV-2022,Environment & Transport (P),Matchtech Group (UK) Ltd,TRADE SUPPLIER,1201-Agency Costs,"5,206.93"
04-NOV-2022,Environment & Transport (P),Matchtech Group (UK) Ltd,TRADE SUPPLIER,1201-Agency Costs,"5,355.00"
04-NOV-2022,Environment & Transport (P),Matchtech Group (UK) Ltd,TRADE SUPPLIER,1201-Agency Costs,"6,440.00"
04-NOV-2022,C&FS (P),REDACTED PERSONAL DATA,GENERAL,5621-Transfer Payments,708.64
04-NOV-2022,C&FS (P),REDACTED PERSONAL DATA,GENERAL,5621-Transfer Payments,829.64
04-NOV-2022,C&FS (P),REDACTED PERSONAL DATA,GENERAL,5323-External SEN Providers Independent Sch,"2,304.62"
04-NOV-2022,Environment & Transport (P),Mertrux Ltd,TRADE SUPPLIER,3102-Vehicle & Plant Repairs & Maintenance,642.88
04-NOV-2022,C&FS (P),REDACTED PERSONAL DATA,GENERAL,5621-Transfer Payments,"1,055.06"
04-NOV-2022,C&FS (P),REDACTED PERSONAL DATA,GENERAL,5621-Transfer Payments,"1,394.48"
04-NOV-2022,Environment & Transport (P),Midland Red (South) Ltd T/A Stagecoach Midlands,TRADE SUPPLIER,5428-Minimum Cost Contracts,"10,679.68"
04-NOV-2022,C&FS (P),MOSAIC&&DPDP297880,GENERAL,5621-Transfer Payments,937.98
04-NOV-2022,C&FS (P),MOSAIC&&DPDP297880,GENERAL,5621-Transfer Payments,"1,805.50"
04-NOV-2022,C&FS (P),MOSAIC&&DPDP297880,GENERAL,5621-Transfer Payments,954.31
04-NOV-2022,C&FS (P),MOSAIC&&DPDP297880,GENERAL,5621-Transfer Payments,628.19
04-NOV-2022,C&FS (P),Moving Up Care Ltd,TRADE INDIVIDUAL,5451-LCT/LAC (Not Fostered),"13,125.00"
04-NOV-2022,Environment & Transport (P),REDACTED PERSONAL DATA,TRADE INDIVIDUAL,3303-Taxi Hire,"3,464.16"
04-NOV-2022,Environment & Transport (P),REDACTED PERSONAL DATA,TRADE INDIVIDUAL,3201-Pooled Transport Recharge Inhouse,"1,690.50"
04-NOV-2022,Environment & Transport (P),REDACTED PERSONAL DATA,TRADE INDIVIDUAL,3201-Pooled Transport Recharge Inhouse,753.96
04-NOV-2022,Chief Executives (P),National World Publishing Ltd,TRADE SUPPLIER,"4503-Advertising, Publicity & Marketing",626.62
04-NOV-2022,Public Health (P),NCHA Ltd,TRADE SUPPLIER,5314-Voluntary Associations Other,"22,500.00"
04-NOV-2022,C&FS (P),Network Ventures Ltd T/A Pertemps Professional Recruitment Ltd,TRADE SUPPLIER,1201-Agency Costs,"1,979.50"
04-NOV-2022,C&FS (P),REDACTED PERSONAL DATA,GENERAL,5323-External SEN Providers Independent Sch,"1,058.46"
04-NOV-2022,Corporate Resources (CR) (P),NJR Electrical Services Ltd,TRADE SUPPLIER,2105-Reactive Maintenance M&E,"1,294.00"
04-NOV-2022,Corporate Resources (CR) (P),NJR Electrical Services Ltd,TRADE SUPPLIER,2105-Reactive Maintenance M&E,"1,432.00"
04-NOV-2022,Corporate Resources (CR) (P),NJR Electrical Services Ltd,TRADE SUPPLIER,2105-Reactive Maintenance M&E,555.00
04-NOV-2022,Chief Executives (P),No 5 Chambers Ltd,TRADE SUPPLIER,4905-Legal Expenses,750.00
04-NOV-2022,C&FS (P),NonStop Consulting Ltd,TRADE SUPPLIER,1201-Agency Costs,"1,665.00"
04-NOV-2022,C&FS (P),NonStop Consulting Ltd,TRADE SUPPLIER,1201-Agency Costs,"1,535.50"
04-NOV-2022,Public Health (P),Nottingham University Hospitals NHS Trust,NON TRADE,5211-Other Local Authorities,"2,202.52"
04-NOV-2022,Central Items (NCS) (P),Nottinghamshire County Council Pension Fund (NCC Pension Fund),OTHER LOCAL AUTHORITIES,1707-Add Pension (Post LGR) Reoccuring,"1,414.18"
04-NOV-2022,Adults & Communities (P),Overdrive Global Ltd,TRADE SUPPLIER,4111-Books & Audio Visual,848.00
04-NOV-2022,Adults & Communities (P),Overdrive Global Ltd,TRADE SUPPLIER,4111-Books & Audio Visual,871.20
04-NOV-2022,Adults & Communities (P),Overdrive Global Ltd,TRADE SUPPLIER,4111-Books & Audio Visual,942.40
04-NOV-2022,Schools Revenue Cost Centres (P),Packington CE Primary School,GENERAL,6101-Support Services,"9,835.00"
04-NOV-2022,Capital - In Year Spend (P),Parish Council of Markfield,NON TRADE,941D-L&B - Building Costs,"5,004.75"
04-NOV-2022,Environment & Transport (P),Paynes Garages Ltd,TRADE SUPPLIER,3102-Vehicle & Plant Repairs & Maintenance,510.45
04-NOV-2022,Environment & Transport (P),Pearce Recruitment Services Ltd T/A Accept Recruitment,TRADE SUPPLIER,5443-Agency & Contracted Services,"2,647.41"
04-NOV-2022,Environment & Transport (P),Pearce Recruitment Services Ltd T/A Accept Recruitment,TRADE SUPPLIER,5443-Agency & Contracted Services,"2,039.81"
04-NOV-2022,Environment & Transport (P),Pearce Recruitment Services Ltd T/A Accept Recruitment,TRADE SUPPLIER,5443-Agency & Contracted Services,"2,837.28"
04-NOV-2022,C&FS (P),Platform Up Ltd,TRADE SUPPLIER,5451-LCT/LAC (Not Fostered),"1,400.00"
04-NOV-2022,Environment & Transport (P),REDACTED PERSONAL DATA,NON TRADE,3303-Taxi Hire,"2,190.00"
04-NOV-2022,Environment & Transport (P),REDACTED PERSONAL DATA,NON TRADE,3303-Taxi Hire,"3,451.14"
04-NOV-2022,Environment & Transport (P),REDACTED PERSONAL DATA,NON TRADE,3303-Taxi Hire,"3,113.04"
04-NOV-2022,Environment & Transport (P),REDACTED PERSONAL DATA,NON TRADE,3303-Taxi Hire,"2,320.92"
04-NOV-2022,Environment & Transport (P),REDACTED PERSONAL DATA,NON TRADE,3201-Pooled Transport Recharge Inhouse,768.00
04-NOV-2022,Environment & Transport (P),Premier Taxis Leicester Ltd,TRADE SUPPLIER,3303-Taxi Hire,"1,345.50"
04-NOV-2022,Environment & Transport (P),Premier Taxis Leicester Ltd,TRADE SUPPLIER,3303-Taxi Hire,"2,296.00"
04-NOV-2022,Environment & Transport (P),Premier Taxis Leicester Ltd,TRADE SUPPLIER,3303-Taxi Hire,"1,482.00"
04-NOV-2022,Environment & Transport (P),Premier Taxis Leicester Ltd,TRADE SUPPLIER,3303-Taxi Hire,"2,375.60"
04-NOV-2022,Environment & Transport (P),Premier Taxis Leicester Ltd,TRADE SUPPLIER,3303-Taxi Hire,"1,879.10"
04-NOV-2022,Environment & Transport (P),Premier Taxis Leicester Ltd,TRADE SUPPLIER,3203-Pooled Transport Recharge Contractors,"3,333.20"
04-NOV-2022,Environment & Transport (P),Premier Taxis Leicester Ltd,TRADE SUPPLIER,3303-Taxi Hire,"1,520.00"
04-NOV-2022,Environment & Transport (P),Premier Taxis Leicester Ltd,TRADE SUPPLIER,3303-Taxi Hire,"2,125.20"
04-NOV-2022,Environment & Transport (P),Premier Taxis Leicester Ltd,TRADE SUPPLIER,3303-Taxi Hire,"2,296.00"
04-NOV-2022,Environment & Transport (P),Premier Taxis Leicester Ltd,TRADE SUPPLIER,3303-Taxi Hire,"1,606.00"
04-NOV-2022,Environment & Transport (P),Premier Taxis Leicester Ltd,TRADE SUPPLIER,3303-Taxi Hire,"1,444.69"
04-NOV-2022,Environment & Transport (P),Premier Taxis Leicester Ltd,TRADE SUPPLIER,3303-Taxi Hire,"2,278.25"
04-NOV-2022,Adults & Communities (P),Progress Housing Association Ltd,TRADE SUPPLIER,5506-Supported Living,"5,317.60"
04-NOV-2022,Corporate Resources (CR) (P),Proudcastle Ltd,TRADE SUPPLIER,2105-Reactive Maintenance M&E,"3,150.00"
04-NOV-2022,Corporate Resources (CR) (P),Quadient UK Ltd,TRADE SUPPLIER,4607-Postal Services ,"1,807.57"
04-NOV-2022,C&FS (P),Quorn Hall School,OTHER LOCAL AUTHORITIES,5323-External SEN Providers Independent Sch,"31,322.00"
04-NOV-2022,C&FS (P),Quorn Hall School,OTHER LOCAL AUTHORITIES,5212-OLEA Recoupment,"20,916.00"
04-NOV-2022,Corporate Resources (CR) (P),R&H Technical Services Ltd,SUBCONTRACTOR,2105-Reactive Maintenance M&E,"1,842.00"
04-NOV-2022,Corporate Resources (CR) (P),R&H Technical Services Ltd,SUBCONTRACTOR,2105-Reactive Maintenance M&E,829.00
04-NOV-2022,Environment & Transport (P),REDACTED PERSONAL DATA,TRADE INDIVIDUAL,3112-Home to Sch Trans Contract Buses Prim,"2,058.00"
04-NOV-2022,Environment & Transport (P),REDACTED PERSONAL DATA,TRADE INDIVIDUAL,3113-Home to Sch Trans Contract Buses Sec,"2,016.00"
04-NOV-2022,Environment & Transport (P),REDACTED PERSONAL DATA,TRADE INDIVIDUAL,3201-Pooled Transport Recharge Inhouse,756.00
04-NOV-2022,Environment & Transport (P),REDACTED PERSONAL DATA,TRADE INDIVIDUAL,3303-Taxi Hire,"2,704.80"
04-NOV-2022,Environment & Transport (P),Reach Publishing Services Ltd,TRADE SUPPLIER,"4503-Advertising, Publicity & Marketing",587.88
04-NOV-2022,C&FS (P),REDACTED PERSONAL DATA,GENERAL,5621-Transfer Payments,802.22
04-NOV-2022,C&FS (P),Red Sector Recruitment Ltd,FACTOR,1201-Agency Costs,"1,707.50"
04-NOV-2022,C&FS (P),Red Sector Recruitment Ltd,FACTOR,1201-Agency Costs,"1,683.50"
04-NOV-2022,C&FS (P),Red Sector Recruitment Ltd,FACTOR,1201-Agency Costs,"1,787.60"
04-NOV-2022,Balance Sheet Cost Centres (P),Reed Specialist Recruitment Ltd,TRADE SUPPLIER,9728-Control Accounts (Current Liability),"208,193.39"
04-NOV-2022,Environment & Transport (P),Roberts Coaches Ltd,TRADE SUPPLIER,3113-Home to Sch Trans Contract Buses Sec,"10,500.25"
04-NOV-2022,Environment & Transport (P),Robinsons Coach Travel,TRADE SUPPLIER,3112-Home to Sch Trans Contract Buses Prim,"3,736.70"
04-NOV-2022,C&FS (P),REDACTED PERSONAL DATA,GENERAL,5621-Transfer Payments,520.95
04-NOV-2022,Balance Sheet Cost Centres (P),Rutland County Council,NON TRADE,9729-Suspense (Current Liability),"10,315.88"
04-NOV-2022,C&FS (P),REDACTED PERSONAL DATA,GENERAL,5621-Transfer Payments,696.93
04-NOV-2022,C&FS (P),REDACTED PERSONAL DATA,GENERAL,5621-Transfer Payments,708.61
04-NOV-2022,C&FS (P),REDACTED PERSONAL DATA,GENERAL,5323-External SEN Providers Independent Sch,"2,768.68"
04-NOV-2022,C&FS (P),REDACTED PERSONAL DATA,GENERAL,5323-External SEN Providers Independent Sch,"1,447.06"
04-NOV-2022,C&FS (P),REDACTED PERSONAL DATA,GENERAL,5621-Transfer Payments,"1,777.57"
04-NOV-2022,C&FS (P),REDACTED PERSONAL DATA,GENERAL,5621-Transfer Payments,954.29
04-NOV-2022,C&FS (P),REDACTED PERSONAL DATA,GENERAL,5323-External SEN Providers Independent Sch,"2,818.85"
04-NOV-2022,Environment & Transport (P),REDACTED PERSONAL DATA,TRADE INDIVIDUAL,3303-Taxi Hire,593.75
04-NOV-2022,Capital - In Year Spend (P),Smart Installation,TRADE SUPPLIER,943A-VPE - Vehicles Exp,941.45
04-NOV-2022,Environment & Transport (P),South Croxton Parish Council,OTHER LOCAL AUTHORITIES,4908-Grants,"5,716.80"
04-NOV-2022,Chief Executives (P),Speak Up,TRADE SUPPLIER,4908-Grants,"1,000.00"
04-NOV-2022,Schools Revenue Cost Centres (P),St Edwards C of E Primary School,GENERAL,6101-Support Services,"10,325.00"
04-NOV-2022,Environment & Transport (P),Stage Taxis Ltd,TRADE SUPPLIER,3303-Taxi Hire,"1,979.56"
04-NOV-2022,Environment & Transport (P),Stage Taxis Ltd,TRADE SUPPLIER,3201-Pooled Transport Recharge Inhouse,"1,427.86"
04-NOV-2022,Environment & Transport (P),Stage Taxis Ltd,TRADE SUPPLIER,3201-Pooled Transport Recharge Inhouse,809.60
04-NOV-2022,Environment & Transport (P),Stagecoach Services Ltd,TRADE SUPPLIER,3124-Other Transport Costs,"10,107.48"
04-NOV-2022,Environment & Transport (P),Stagecoach Services Ltd,TRADE SUPPLIER,3124-Other Transport Costs,"11,613.61"
04-NOV-2022,Adults & Communities (P),Stamford Town Council,OTHER LOCAL AUTHORITIES,5314-Voluntary Associations Other,"1,500.00"
04-NOV-2022,Environment & Transport (P),Stanair Industrial Door Services Ltd,TRADE SUPPLIER,2101-R&M Buildings,628.62
04-NOV-2022,Environment & Transport (P),Stanair Industrial Door Services Ltd,TRADE SUPPLIER,2101-R&M Buildings,744.45
04-NOV-2022,Environment & Transport (P),Suez Recycling & Recovery UK Ltd,TRADE SUPPLIER,5419-Private Contractors Green Waste,977.07
04-NOV-2022,Environment & Transport (P),Suez Recycling & Recovery UK Ltd,TRADE SUPPLIER,5419-Private Contractors Green Waste,"2,429.08"
04-NOV-2022,Environment & Transport (P),Suez Recycling & Recovery UK Ltd,TRADE SUPPLIER,5419-Private Contractors Green Waste,"1,417.99"
04-NOV-2022,Environment & Transport (P),Suez Recycling & Recovery UK Ltd,TRADE SUPPLIER,5411-Private Contractors - General,"1,031.10"
04-NOV-2022,Environment & Transport (P),Suez Recycling & Recovery UK Ltd,TRADE SUPPLIER,5419-Private Contractors Green Waste,860.82
04-NOV-2022,Environment & Transport (P),Suez Recycling & Recovery UK Ltd,TRADE SUPPLIER,5419-Private Contractors Green Waste,"2,265.21"
04-NOV-2022,Environment & Transport (P),Suez Recycling & Recovery UK Ltd,TRADE SUPPLIER,5419-Private Contractors Green Waste,"2,169.95"
04-NOV-2022,Environment & Transport (P),Suez Recycling & Recovery UK Ltd,TRADE SUPPLIER,5419-Private Contractors Green Waste,"30,782.75"
04-NOV-2022,Environment & Transport (P),Suez Recycling & Recovery UK Ltd,TRADE SUPPLIER,5419-Private Contractors Green Waste,"1,092.70"
04-NOV-2022,Environment & Transport (P),Suez Recycling & Recovery UK Ltd,TRADE SUPPLIER,5419-Private Contractors Green Waste,"27,941.13"
04-NOV-2022,Environment & Transport (P),Suez Recycling & Recovery UK Ltd,TRADE SUPPLIER,5419-Private Contractors Green Waste,"4,514.31"
04-NOV-2022,C&FS (P),REDACTED PERSONAL DATA,GENERAL,5621-Transfer Payments,"1,508.58"
04-NOV-2022,Environment & Transport (P),REDACTED PERSONAL DATA,NON TRADE,3303-Taxi Hire,"3,157.35"
04-NOV-2022,Environment & Transport (P),T H White Machinery Imports Ltd,TRADE SUPPLIER,3301-Vehicle & Plant Hire,"5,547.99"
04-NOV-2022,Environment & Transport (P),T H White Machinery Imports Ltd,TRADE SUPPLIER,3301-Vehicle & Plant Hire,"3,150.00"
04-NOV-2022,Environment & Transport (P),REDACTED PERSONAL DATA,TRADE INDIVIDUAL,3303-Taxi Hire,"2,703.00"
04-NOV-2022,Environment & Transport (P),Take Me (Group) Ltd T/A ADT Taxis,FACTOR,3303-Taxi Hire,"2,400.00"
04-NOV-2022,Environment & Transport (P),Take Me (Group) Ltd T/A ADT Taxis,FACTOR,3113-Home to Sch Trans Contract Buses Sec,819.18
04-NOV-2022,Environment & Transport (P),Take Me (Group) Ltd T/A ADT Taxis,FACTOR,3113-Home to Sch Trans Contract Buses Sec,559.72
04-NOV-2022,Environment & Transport (P),Take Me (Group) Ltd T/A ADT Taxis,FACTOR,3201-Pooled Transport Recharge Inhouse,"1,470.00"
04-NOV-2022,Environment & Transport (P),Take Me (Group) Ltd T/A ADT Taxis,FACTOR,3201-Pooled Transport Recharge Inhouse,"1,147.59"
04-NOV-2022,Environment & Transport (P),Take Me (Group) Ltd T/A ADT Taxis,FACTOR,3201-Pooled Transport Recharge Inhouse,513.00
04-NOV-2022,Environment & Transport (P),Take Me (Group) Ltd T/A ADT Taxis,FACTOR,3201-Pooled Transport Recharge Inhouse,"1,087.00"
04-NOV-2022,Environment & Transport (P),Take Me (Group) Ltd T/A ADT Taxis,FACTOR,3201-Pooled Transport Recharge Inhouse,"1,984.00"
04-NOV-2022,Environment & Transport (P),Take Me (Group) Ltd T/A ADT Taxis,FACTOR,3201-Pooled Transport Recharge Inhouse,699.74
04-NOV-2022,Environment & Transport (P),Take Me (Group) Ltd T/A ADT Taxis,FACTOR,3303-Taxi Hire,"1,679.58"
04-NOV-2022,Environment & Transport (P),Take Me (Group) Ltd T/A ADT Taxis,FACTOR,3303-Taxi Hire,"2,351.58"
04-NOV-2022,Environment & Transport (P),Take Me (Group) Ltd T/A ADT Taxis,FACTOR,3201-Pooled Transport Recharge Inhouse,790.00
04-NOV-2022,Environment & Transport (P),Take Me (Group) Ltd T/A ADT Taxis,FACTOR,3303-Taxi Hire,837.47
04-NOV-2022,Environment & Transport (P),Take Me (Group) Ltd T/A ADT Taxis,FACTOR,3113-Home to Sch Trans Contract Buses Sec,"1,301.16"
04-NOV-2022,Environment & Transport (P),Take Me (Group) Ltd T/A ADT Taxis,FACTOR,3303-Taxi Hire,"3,087.00"
04-NOV-2022,Environment & Transport (P),Take Me (Group) Ltd T/A ADT Taxis,FACTOR,3303-Taxi Hire,"1,310.40"
04-NOV-2022,Environment & Transport (P),Take Me (Group) Ltd T/A ADT Taxis,FACTOR,3113-Home to Sch Trans Contract Buses Sec,527.76
04-NOV-2022,Corporate Resources (CR) (P),Telefonica O2 Uk Ltd,TRADE SUPPLIER,4606-IT Telecommunications Line Rental,"11,162.94"
04-NOV-2022,C&FS (P),REDACTED PERSONAL DATA,GENERAL,5621-Transfer Payments,514.70
04-NOV-2022,C&FS (P),REDACTED PERSONAL DATA,GENERAL,5621-Transfer Payments,521.45
04-NOV-2022,Capital - In Year Spend (P),Thomas Cassie & Sons Leicester Ltd,TRADE SUPPLIER,941D-L&B - Building Costs,"52,945.50"
04-NOV-2022,Corporate Resources (CR) (P),Total Computer Networks Ltd,TRADE SUPPLIER,4601-IT Equipment Hardware,"3,752.00"
04-NOV-2022,Environment & Transport (P),Triple A Taxis,TRADE SUPPLIER,3303-Taxi Hire,"1,134.00"
04-NOV-2022,Environment & Transport (P),Triple A Taxis,TRADE SUPPLIER,3112-Home to Sch Trans Contract Buses Prim,"1,505.70"
04-NOV-2022,Environment & Transport (P),Triple A Taxis,TRADE SUPPLIER,3112-Home to Sch Trans Contract Buses Prim,831.60
04-NOV-2022,Environment & Transport (P),UKROEd Ltd,TRADE SUPPLIER,5411-Private Contractors - General,"10,976.00"
04-NOV-2022,Environment & Transport (P),UKROEd Ltd,TRADE SUPPLIER,5411-Private Contractors - General,"6,517.00"
04-NOV-2022,C&FS (P),University of Nottingham,NON TRADE,5691-Payments to Trainees,"16,950.00"
04-NOV-2022,Corporate Resources (CR) (P),Veg Factor,TRADE SUPPLIER,4504-Provisions Purchases,562.73
04-NOV-2022,Corporate Resources (CR) (P),Veg Factor,TRADE SUPPLIER,4504-Provisions Purchases,918.88
04-NOV-2022,C&FS (P),REDACTED PERSONAL DATA,GENERAL,5323-External SEN Providers Independent Sch,"3,192.11"
04-NOV-2022,Environment & Transport (P),REDACTED PERSONAL DATA,TRADE SUPPLIER,3303-Taxi Hire,"2,188.60"
04-NOV-2022,Environment & Transport (P),Volvo Group UK Limited,TRADE SUPPLIER,3102-Vehicle & Plant Repairs & Maintenance,673.25
04-NOV-2022,Schools Revenue Cost Centres (P),Water Leys Primary School,GENERAL,6101-Support Services,"11,428.00"
04-NOV-2022,Balance Sheet Cost Centres (P),Winvic Construction Ltd,TRADE SUPPLIER,9722-Reserved Creditors - Non Public Sector,"6,340.90"
04-NOV-2022,C&FS (P),REDACTED PERSONAL DATA,GENERAL,5621-Transfer Payments,661.82
04-NOV-2022,Schools Revenue Cost Centres (P),Witherley C E Primary School,GENERAL,6101-Support Services,"9,835.00"
04-NOV-2022,Environment & Transport (P),Yakub Taxis Ltd,TRADE SUPPLIER,3203-Pooled Transport Recharge Contractors,672.00
04-NOV-2022,Environment & Transport (P),Yakub Taxis Ltd,TRADE SUPPLIER,3201-Pooled Transport Recharge Inhouse,"2,856.00"
04-NOV-2022,Environment & Transport (P),Yakub Taxis Ltd,TRADE SUPPLIER,3201-Pooled Transport Recharge Inhouse,"4,098.60"
04-NOV-2022,Environment & Transport (P),Yakub Taxis Ltd,TRADE SUPPLIER,3201-Pooled Transport Recharge Inhouse,"1,904.00"
04-NOV-2022,Environment & Transport (P),Yakub Taxis Ltd,TRADE SUPPLIER,3201-Pooled Transport Recharge Inhouse,"2,478.00"
04-NOV-2022,Environment & Transport (P),Yakub Taxis Ltd,TRADE SUPPLIER,3201-Pooled Transport Recharge Inhouse,"2,032.00"
04-NOV-2022,Environment & Transport (P),Yakub Taxis Ltd,TRADE SUPPLIER,3303-Taxi Hire,"2,060.00"
04-NOV-2022,Environment & Transport (P),Yakub Taxis Ltd,TRADE SUPPLIER,3303-Taxi Hire,"2,556.00"
04-NOV-2022,Environment & Transport (P),Yakub Taxis Ltd,TRADE SUPPLIER,3201-Pooled Transport Recharge Inhouse,"2,808.00"
04-NOV-2022,Environment & Transport (P),Yakub Taxis Ltd,TRADE SUPPLIER,3201-Pooled Transport Recharge Inhouse,"1,545.60"
04-NOV-2022,Environment & Transport (P),Yakub Taxis Ltd,TRADE SUPPLIER,3201-Pooled Transport Recharge Inhouse,"1,396.10"
04-NOV-2022,Environment & Transport (P),Yakub Taxis Ltd,TRADE SUPPLIER,3303-Taxi Hire,"1,416.00"
04-NOV-2022,Environment & Transport (P),Yakub Taxis Ltd,TRADE SUPPLIER,3303-Taxi Hire,"3,948.00"
04-NOV-2022,Environment & Transport (P),Yakub Taxis Ltd,TRADE SUPPLIER,3303-Taxi Hire,"2,805.42"
04-NOV-2022,Environment & Transport (P),Yakub Taxis Ltd,TRADE SUPPLIER,3303-Taxi Hire,"2,877.30"
04-NOV-2022,Environment & Transport (P),Yakub Taxis Ltd,TRADE SUPPLIER,3303-Taxi Hire,"2,893.40"
04-NOV-2022,Environment & Transport (P),Yakub Taxis Ltd,TRADE SUPPLIER,3303-Taxi Hire,"3,528.00"
04-NOV-2022,Environment & Transport (P),Yakub Taxis Ltd,TRADE SUPPLIER,3303-Taxi Hire,"3,528.00"
04-NOV-2022,Environment & Transport (P),Yakub Taxis Ltd,TRADE SUPPLIER,3303-Taxi Hire,"3,738.00"
04-NOV-2022,Environment & Transport (P),Yakub Taxis Ltd,TRADE SUPPLIER,3303-Taxi Hire,"3,036.00"
04-NOV-2022,Environment & Transport (P),Yakub Taxis Ltd,TRADE SUPPLIER,3303-Taxi Hire,"4,926.60"
04-NOV-2022,Environment & Transport (P),Yakub Taxis Ltd,TRADE SUPPLIER,3303-Taxi Hire,"3,150.00"
04-NOV-2022,Environment & Transport (P),Yakub Taxis Ltd,TRADE SUPPLIER,3201-Pooled Transport Recharge Inhouse,579.60
04-NOV-2022,Environment & Transport (P),Yakub Taxis Ltd,TRADE SUPPLIER,3303-Taxi Hire,"3,489.10"
04-NOV-2022,Environment & Transport (P),Yakub Taxis Ltd,TRADE SUPPLIER,3303-Taxi Hire,"3,528.00"
04-NOV-2022,Environment & Transport (P),Yakub Taxis Ltd,TRADE SUPPLIER,3303-Taxi Hire,"1,496.00"
04-NOV-2022,Environment & Transport (P),Yakub Taxis Ltd,TRADE SUPPLIER,3201-Pooled Transport Recharge Inhouse,"2,816.00"
04-NOV-2022,Environment & Transport (P),Yakub Taxis Ltd,TRADE SUPPLIER,3201-Pooled Transport Recharge Inhouse,"1,545.60"
04-NOV-2022,Environment & Transport (P),Yakub Taxis Ltd,TRADE SUPPLIER,3201-Pooled Transport Recharge Inhouse,"1,090.00"
04-NOV-2022,Environment & Transport (P),Yakub Taxis Ltd,TRADE SUPPLIER,3201-Pooled Transport Recharge Inhouse,504.00
04-NOV-2022,Environment & Transport (P),Yakub Taxis Ltd,TRADE SUPPLIER,3201-Pooled Transport Recharge Inhouse,"3,906.00"
04-NOV-2022,Environment & Transport (P),Yakub Taxis Ltd,TRADE SUPPLIER,3303-Taxi Hire,"2,178.00"
04-NOV-2022,Environment & Transport (P),Yakub Taxis Ltd,TRADE SUPPLIER,3201-Pooled Transport Recharge Inhouse,891.00
07-NOV-2022,Environment & Transport (P),Access Hire Nationwide Ltd,TRADE SUPPLIER,3301-Vehicle & Plant Hire,"1,341.43"
07-NOV-2022,C&FS (P),Acorn ABA Ltd,TRADE SUPPLIER,5323-External SEN Providers Independent Sch,731.00
07-NOV-2022,Environment & Transport (P),Arco Ltd,TRADE SUPPLIER,4301-Protective Clothing & Uniforms,"1,180.12"
07-NOV-2022,Corporate Resources (CR) (P),Blitz Drainage Services (S F Wallace),SUBCONTRACTOR,2105-Reactive Maintenance M&E,945.00
07-NOV-2022,Balance Sheet Cost Centres (P),Certas Energy UK Ltd,TRADE SUPPLIER,"9634-Inventories - LHD Fuel White, Diesel","18,198.70"
07-NOV-2022,Environment & Transport (P),Colas Ltd,SUBCONTRACTOR,5411-Private Contractors - General,"3,221.60"
07-NOV-2022,Environment & Transport (P),Colas Ltd,SUBCONTRACTOR,3301-Vehicle & Plant Hire,533.98
07-NOV-2022,Environment & Transport (P),Colas Ltd,SUBCONTRACTOR,3301-Vehicle & Plant Hire,533.98
07-NOV-2022,Environment & Transport (P),Colas Ltd,SUBCONTRACTOR,3301-Vehicle & Plant Hire,"1,334.95"
07-NOV-2022,Environment & Transport (P),Colas Ltd,SUBCONTRACTOR,3301-Vehicle & Plant Hire,"1,368.27"
07-NOV-2022,Public Health (P),Cuttlefish Multimedia Ltd,TRADE SUPPLIER,4532-Other Services,585.00
07-NOV-2022,Environment & Transport (P),Enterprise Flex E Rent,TRADE SUPPLIER,3301-Vehicle & Plant Hire,594.00
07-NOV-2022,Environment & Transport (P),Exterior Lighting Solutions (UK) Ltd,TRADE SUPPLIER,4901-Other Expenditure,549.44
07-NOV-2022,Corporate Resources (CR) (P),First Response Training & Consultancy Services Ltd,TRADE SUPPLIER,1703-Training Expenses,995.00
07-NOV-2022,Environment & Transport (P),Go Plant Ltd T/A Go Plant Sweepers,TRADE SUPPLIER,3301-Vehicle & Plant Hire,504.00
07-NOV-2022,Environment & Transport (P),Go Plant Ltd T/A Go Plant Sweepers,TRADE SUPPLIER,4901-Other Expenditure,582.00
07-NOV-2022,Environment & Transport (P),Go Plant Ltd T/A Go Plant Sweepers,TRADE SUPPLIER,4901-Other Expenditure,630.00
07-NOV-2022,Environment & Transport (P),Go Plant Ltd T/A Go Plant Sweepers,TRADE SUPPLIER,4901-Other Expenditure,534.00
07-NOV-2022,Environment & Transport (P),Groby Parish Council,OTHER LOCAL AUTHORITIES,4901-Other Expenditure,"4,620.00"
07-NOV-2022,Environment & Transport (P),Idverde Ltd,TRADE SUPPLIER,5411-Private Contractors - General,850.00
07-NOV-2022,Environment & Transport (P),Idverde Ltd,TRADE SUPPLIER,5411-Private Contractors - General,850.00
07-NOV-2022,Chief Executives (P),KCH Barristers Ltd,TRADE SUPPLIER,4507-Consultants & Specialists,"1,600.00"
07-NOV-2022,Balance Sheet Cost Centres (P),LCC Customer Direct Payments A/C,OTHER LOCAL AUTHORITIES,9668-Cash - Floats,"6,879.21"
07-NOV-2022,Environment & Transport (P),Lee Brothers Ltd,TRADE SUPPLIER,5411-Private Contractors - General,"2,200.00"
07-NOV-2022,Adults & Communities (P),Liberty HSC Ltd,TRADE SUPPLIER,5411-Private Contractors - General,"6,589.60"
07-NOV-2022,Corporate Resources (CR) (P),Maintel Europe Ltd,TRADE SUPPLIER,4606-IT Telecommunications Line Rental,"1,778.22"
07-NOV-2022,Environment & Transport (P),Matrix Telematics Ltd,TRADE SUPPLIER,4102-General Equipment - Purchase & Repairs,"2,875.00"
07-NOV-2022,Corporate Resources (CR) (P),Midland Foods Ltd,TRADE SUPPLIER,4504-Provisions Purchases,"17,309.84"
07-NOV-2022,Environment & Transport (P),Midland Quarry Products Ltd,TRADE SUPPLIER,4109-Materials,681.47
07-NOV-2022,Environment & Transport (P),Midland Quarry Products Ltd,TRADE SUPPLIER,4109-Materials,607.15
07-NOV-2022,Public Health (P),Midlands Partnership NHS Foundation Trust,TRADE SUPPLIER,5221-Public Bodies Health,"19,143.25"
07-NOV-2022,Public Health (P),Midlands Partnership NHS Foundation Trust,TRADE SUPPLIER,5221-Public Bodies Health,"19,143.25"
07-NOV-2022,Public Health (P),Midlands Partnership NHS Foundation Trust,TRADE SUPPLIER,5221-Public Bodies Health,"19,143.25"
07-NOV-2022,C&FS (P),Millgate School,OTHER LOCAL AUTHORITIES,5212-OLEA Recoupment,"9,045.67"
07-NOV-2022,C&FS (P),Murphys Taxis Ltd,FACTOR,3106-Client / Volunteers Reimbursement,551.00
07-NOV-2022,Corporate Resources (CR) (P),NJR Electrical Services Ltd,TRADE SUPPLIER,2105-Reactive Maintenance M&E,823.00
07-NOV-2022,Corporate Resources (CR) (P),North West Leicestershire District Council,OTHER LOCAL AUTHORITIES,2311-Rates,"1,764.41"
07-NOV-2022,Corporate Resources (CR) (P),North West Leicestershire District Council,OTHER LOCAL AUTHORITIES,2311-Rates,"190,833.94"
07-NOV-2022,Corporate Resources (CR) (P),Oadby & Wigston Borough Council,OTHER LOCAL AUTHORITIES,2311-Rates,"98,732.00"
07-NOV-2022,C&FS (P),Platform Up Ltd,TRADE SUPPLIER,5411-Private Contractors - General,"1,443.40"
07-NOV-2022,C&FS (P),Praxis Care,TRADE SUPPLIER,5429-Community/Domiciliary,"3,776.60"
07-NOV-2022,C&FS (P),Praxis Care,TRADE SUPPLIER,5429-Community/Domiciliary,"3,448.20"
07-NOV-2022,C&FS (P),Praxis Care,TRADE SUPPLIER,5429-Community/Domiciliary,"4,105.00"
07-NOV-2022,Environment & Transport (P),Reach Publishing Services Ltd,TRADE SUPPLIER,"4503-Advertising, Publicity & Marketing","1,352.12"
07-NOV-2022,Environment & Transport (P),Reach Publishing Services Ltd,TRADE SUPPLIER,"4503-Advertising, Publicity & Marketing","1,293.33"
07-NOV-2022,C&FS (P),REAL Education Ltd,TRADE SUPPLIER,5323-External SEN Providers Independent Sch,"4,375.20"
07-NOV-2022,Corporate Resources (CR) (P),Redactive Publishing Ltd,TRADE SUPPLIER,1701-Recruitment,"1,848.00"
07-NOV-2022,Capital - In Year Spend (P),RG&P Ltd,TRADE SUPPLIER,941G-L&B - Design Fees - External,"12,961.40"
07-NOV-2022,Adults & Communities (P),REDACTED PERSONAL DATA,TRADE INDIVIDUAL,4508-Medical Fees & Treatment,975.40
07-NOV-2022,Adults & Communities (P),REDACTED PERSONAL DATA,TRADE INDIVIDUAL,4508-Medical Fees & Treatment,"2,980.20"
07-NOV-2022,Environment & Transport (P),Stewart Hill Associates Ltd T/A Guardian Angels,TRADE SUPPLIER,1703-Training Expenses,"1,490.00"
07-NOV-2022,Corporate Resources (CR) (P),Tanwood Construction Ltd,SUBCONTRACTOR,2105-Reactive Maintenance M&E,"9,027.80"
07-NOV-2022,Corporate Resources (CR) (P),Tanwood Construction Ltd,SUBCONTRACTOR,2106-Reactive Maint Buildings,"1,376.00"
07-NOV-2022,Capital - In Year Spend (P),Tanwood Construction Ltd,SUBCONTRACTOR,941D-L&B - Building Costs,"10,858.00"
07-NOV-2022,Capital - In Year Spend (P),Tanwood Construction Ltd,SUBCONTRACTOR,941D-L&B - Building Costs,"3,300.00"
07-NOV-2022,Capital - In Year Spend (P),Tanwood Construction Ltd,SUBCONTRACTOR,941D-L&B - Building Costs,"1,784.00"
07-NOV-2022,Capital - In Year Spend (P),Tanwood Construction Ltd,SUBCONTRACTOR,941D-L&B - Building Costs,"2,719.00"
07-NOV-2022,Corporate Resources (CR) (P),Tanwood Construction Ltd,SUBCONTRACTOR,2101-R&M Buildings,"5,458.00"
07-NOV-2022,Corporate Resources (CR) (P),Tanwood Construction Ltd,SUBCONTRACTOR,2112-Programmed Work,"3,869.00"
07-NOV-2022,Capital - In Year Spend (P),Tanwood Construction Ltd,SUBCONTRACTOR,941D-L&B - Building Costs,"13,151.70"
07-NOV-2022,Capital - In Year Spend (P),Tanwood Construction Ltd,SUBCONTRACTOR,941D-L&B - Building Costs,"14,559.00"
07-NOV-2022,C&FS (P),Teachers To Your Home,TRADE SUPPLIER,5323-External SEN Providers Independent Sch,690.00
07-NOV-2022,Corporate Resources (CR) (P),TEP The Environment Partnership Ltd,TRADE SUPPLIER,4507-Consultants & Specialists,"2,460.00"
07-NOV-2022,Environment & Transport (P),Waterman Aspen Ltd,TRADE SUPPLIER,1201-Agency Costs,535.50
07-NOV-2022,Capital - In Year Spend (P),Welland Park Community College Academy,OTHER LOCAL AUTHORITIES,941D-L&B - Building Costs,"207,177.62"
07-NOV-2022,C&FS (P),WHM Work Connections,NON TRADE,5323-External SEN Providers Independent Sch,"2,100.00"
07-NOV-2022,C&FS (P),WHM Work Connections,NON TRADE,5323-External SEN Providers Independent Sch,"2,100.00"
07-NOV-2022,Environment & Transport (P),WJ South Ltd,SUBCONTRACTOR,5411-Private Contractors - General,"60,541.83"
07-NOV-2022,Environment & Transport (P),WJ South Ltd,SUBCONTRACTOR,5411-Private Contractors - General,"4,242.21"
07-NOV-2022,Environment & Transport (P),Wrights of Twycross Ltd,TRADE SUPPLIER,5411-Private Contractors - General,669.39
08-NOV-2022,C&FS (P),AB Kettleby Community Primary School Academy,GENERAL,6101-Support Services,700.00
08-NOV-2022,C&FS (P),Acorn Care & Education Ltd (Sales),TRADE SUPPLIER,5411-Private Contractors - General,534.73
08-NOV-2022,C&FS (P),Acorn Care & Education Ltd (Sales),TRADE SUPPLIER,5323-External SEN Providers Independent Sch,"25,500.00"
08-NOV-2022,Corporate Resources (CR) (P),Andy Kirk Contractors Ltd,SUBCONTRACTOR,2101-R&M Buildings,"16,645.00"
08-NOV-2022,C&FS (P),Archway Learning Trust,GENERAL,6101-Support Services,700.00
08-NOV-2022,C&FS (P),Archway Learning Trust,GENERAL,6101-Support Services,552.00
08-NOV-2022,C&FS (P),Archway Learning Trust,GENERAL,6101-Support Services,552.00
08-NOV-2022,C&FS (P),Archway Learning Trust,GENERAL,6101-Support Services,552.00
08-NOV-2022,Corporate Resources (CR) (P),Avon Water Services,TRADE SUPPLIER,2105-Reactive Maintenance M&E,"1,100.00"
08-NOV-2022,C&FS (P),Baca Charity,TRADE SUPPLIER,5411-Private Contractors - General,"2,837.36"
08-NOV-2022,C&FS (P),Beacon Childcare Ltd,TRADE SUPPLIER,5411-Private Contractors - General,"15,500.00"
08-NOV-2022,C&FS (P),Birkett House School Academy,GENERAL,6101-Support Services,700.00
08-NOV-2022,C&FS (P),Blackwood School,GENERAL,6101-Support Services,"4,565.00"
08-NOV-2022,C&FS (P),Blackwood School,GENERAL,6101-Support Services,"4,418.00"
08-NOV-2022,C&FS (P),Blackwood School,GENERAL,6101-Support Services,700.00
08-NOV-2022,C&FS (P),Blackwood School,GENERAL,6101-Support Services,700.00
08-NOV-2022,C&FS (P),Blackwood School,GENERAL,6101-Support Services,"2,687.50"
08-NOV-2022,C&FS (P),Bradgate Education Partnership T/A Highgate Primary School,GENERAL,6101-Support Services,700.00
08-NOV-2022,C&FS (P),Bradgate Education Partnership T/A Highgate Primary School,GENERAL,6101-Support Services,700.00
08-NOV-2022,C&FS (P),Bradgate Education Partnership T/A Highgate Primary School,GENERAL,6101-Support Services,700.00
08-NOV-2022,C&FS (P),Brownlow School Academy,GENERAL,6101-Support Services,700.00
08-NOV-2022,C&FS (P),Cambian Childcare Ltd,TRADE SUPPLIER,5411-Private Contractors - General,"35,154.00"
08-NOV-2022,C&FS (P),Cambian Childcare Ltd,TRADE SUPPLIER,5411-Private Contractors - General,"23,692.86"
08-NOV-2022,C&FS (P),Cambian Childcare Ltd,TRADE SUPPLIER,5411-Private Contractors - General,"23,250.00"
08-NOV-2022,C&FS (P),Cambian Childcare Ltd,TRADE SUPPLIER,5411-Private Contractors - General,"24,135.67"
08-NOV-2022,C&FS (P),Cambian Childcare Ltd,TRADE SUPPLIER,5411-Private Contractors - General,"19,928.66"
08-NOV-2022,C&FS (P),Cambian Childcare Ltd,TRADE SUPPLIER,5411-Private Contractors - General,"28,121.43"
08-NOV-2022,C&FS (P),Cambian Childcare Ltd,TRADE SUPPLIER,5411-Private Contractors - General,"20,592.99"
08-NOV-2022,Adults & Communities (P),Cassa Assura Ltd,TRADE SUPPLIER,5411-Private Contractors - General,"15,591.40"
08-NOV-2022,Environment & Transport (P),Chris Johnson Ltd,TRADE SUPPLIER,5411-Private Contractors - General,"2,705.00"
08-NOV-2022,Adults & Communities (P),REDACTED PERSONAL DATA,TRADE INDIVIDUAL,4508-Medical Fees & Treatment,"1,123.50"
08-NOV-2022,C&FS (P),Compass Childrens Homes Ltd,TRADE SUPPLIER,5411-Private Contractors - General,"20,142.90"
08-NOV-2022,C&FS (P),Compass Childrens Homes Ltd,TRADE SUPPLIER,5411-Private Contractors - General,"20,814.33"
08-NOV-2022,C&FS (P),Compass Childrens Homes Ltd,TRADE SUPPLIER,5411-Private Contractors - General,"20,814.33"
08-NOV-2022,C&FS (P),Cornerstones Group Ltd,TRADE SUPPLIER,5411-Private Contractors - General,"5,479.03"
08-NOV-2022,C&FS (P),Cornerstones Group Ltd,TRADE SUPPLIER,5411-Private Contractors - General,"5,479.03"
08-NOV-2022,C&FS (P),Cornerstones Group Ltd,TRADE SUPPLIER,5622-Transfer Payments Pocket Money,694.92
08-NOV-2022,C&FS (P),Cornerstones Group Ltd,TRADE SUPPLIER,5411-Private Contractors - General,"5,479.03"
08-NOV-2022,C&FS (P),Cornerstones Group Ltd,TRADE SUPPLIER,5411-Private Contractors - General,"5,479.03"
08-NOV-2022,Environment & Transport (P),Denham Procurement & Sourcing Solutions Ltd,TRADE SUPPLIER,4109-Materials,"1,130.00"
08-NOV-2022,C&FS (P),DFD Care and Support Services Ltd,TRADE SUPPLIER,5411-Private Contractors - General,"1,038.96"
08-NOV-2022,Balance Sheet Cost Centres (P),Diners Club International,TRADE SUPPLIER,9729-Suspense (Current Liability),"1,959.01"
08-NOV-2022,C&FS (P),Enderby Danemill Primary School T/A Discovery Schools Academies Trust Ltd,GENERAL,6101-Support Services,700.00
08-NOV-2022,Environment & Transport (P),Enva England Ltd,TRADE SUPPLIER,5411-Private Contractors - General,"17,610.33"
08-NOV-2022,C&FS (P),Esland North Ltd,TRADE SUPPLIER,5411-Private Contractors - General,"19,707.14"
08-NOV-2022,C&FS (P),Esland North Ltd,TRADE SUPPLIER,5411-Private Contractors - General,"20,318.06"
08-NOV-2022,C&FS (P),Evergreen School,GENERAL,6101-Support Services,700.00
08-NOV-2022,Environment & Transport (P),Exterior Lighting Solutions (UK) Ltd,TRADE SUPPLIER,4901-Other Expenditure,"7,326.90"
08-NOV-2022,C&FS (P),Favour Health Ltd,TRADE SUPPLIER,5451-LCT/LAC (Not Fostered),"3,860.00"
08-NOV-2022,C&FS (P),Favour Health Ltd,TRADE SUPPLIER,5451-LCT/LAC (Not Fostered),"3,633.24"
08-NOV-2022,C&FS (P),Favour Health Ltd,TRADE SUPPLIER,5451-LCT/LAC (Not Fostered),"6,065.71"
08-NOV-2022,C&FS (P),First Class Tailored Solutions Ltd,TRADE SUPPLIER,5323-External SEN Providers Independent Sch,"8,174.00"
08-NOV-2022,C&FS (P),Hall Orchard CE Primary School Academy,GENERAL,6101-Support Services,700.00
08-NOV-2022,C&FS (P),Hall Orchard CE Primary School Academy,GENERAL,6101-Support Services,700.00
08-NOV-2022,Corporate Resources (CR) (P),Hays Specialist Recruitment Ltd,TRADE SUPPLIER,1701-Recruitment,"7,914.60"
08-NOV-2022,Corporate Resources (CR) (P),Hays Specialist Recruitment Ltd,TRADE SUPPLIER,1701-Recruitment,"5,434.65"
08-NOV-2022,Corporate Resources (CR) (P),Hopwells Ltd,TRADE SUPPLIER,4504-Provisions Purchases,"38,032.36"
08-NOV-2022,C&FS (P),Horizon Care & Education Group Ltd,TRADE SUPPLIER,5411-Private Contractors - General,"12,486.80"
08-NOV-2022,C&FS (P),Horizon Care & Education Group Ltd,TRADE SUPPLIER,5411-Private Contractors - General,"13,285.67"
08-NOV-2022,C&FS (P),Horizon Care & Education Group Ltd,TRADE SUPPLIER,5411-Private Contractors - General,"19,966.17"
08-NOV-2022,C&FS (P),Horizon Care & Education Group Ltd,TRADE SUPPLIER,5411-Private Contractors - General,"16,574.15"
08-NOV-2022,C&FS (P),Horizon Care & Education Group Ltd,TRADE SUPPLIER,5411-Private Contractors - General,"16,075.67"
08-NOV-2022,C&FS (P),Horizon Care & Education Group Ltd,TRADE SUPPLIER,5411-Private Contractors - General,"20,974.91"
08-NOV-2022,C&FS (P),Humphrey Perkins School Academy,GENERAL,6101-Support Services,700.00
08-NOV-2022,Corporate Resources (CR) (P),John Dwyer Bakery Ltd,TRADE SUPPLIER,4504-Provisions Purchases,716.47
08-NOV-2022,Adults & Communities (P),JW Care Services (UK) Ltd,TRADE SUPPLIER,5443-Agency & Contracted Services,"4,000.00"
08-NOV-2022,Adults & Communities (P),LCC Melton Supported Living & Short Breaks Imprest A/C,GENERAL,4504-Provisions Purchases,"1,025.04"
08-NOV-2022,Adults & Communities (P),LCC North West Leics Area Office Imprest A/C,GENERAL,4901-Other Expenditure,"1,595.00"
08-NOV-2022,Adults & Communities (P),Love Science Ltd,TRADE SUPPLIER,4508-Medical Fees & Treatment,"5,437.00"
08-NOV-2022,C&FS (P),REDACTED PERSONAL DATA,TRADE INDIVIDUAL,5445-Adoption Support,"2,160.00"
08-NOV-2022,C&FS (P),REDACTED PERSONAL DATA,TRADE INDIVIDUAL,4507-Consultants & Specialists,600.00
08-NOV-2022,C&FS (P),REDACTED PERSONAL DATA,TRADE INDIVIDUAL,5445-Adoption Support,750.00
08-NOV-2022,C&FS (P),Melton Mowbray Grove CP School Academy,GENERAL,6101-Support Services,700.00
08-NOV-2022,Environment & Transport (P),Mind Matters (Hinckley),NON TRADE,5314-Voluntary Associations Other,949.03
08-NOV-2022,Adults & Communities (P),REDACTED PERSONAL DATA,TRADE SUPPLIER,4508-Medical Fees & Treatment,954.95
08-NOV-2022,Adults & Communities (P),REDACTED PERSONAL DATA,TRADE SUPPLIER,4508-Medical Fees & Treatment,947.50
08-NOV-2022,Adults & Communities (P),REDACTED PERSONAL DATA,TRADE SUPPLIER,4508-Medical Fees & Treatment,945.00
08-NOV-2022,Adults & Communities (P),REDACTED PERSONAL DATA,TRADE SUPPLIER,4508-Medical Fees & Treatment,573.90
08-NOV-2022,C&FS (P),Network Ventures Ltd T/A Pertemps Professional Recruitment Ltd,TRADE SUPPLIER,1201-Agency Costs,"1,239.00"
08-NOV-2022,C&FS (P),Next Steps Supported Living Ltd,TRADE SUPPLIER,5411-Private Contractors - General,"5,488.24"
08-NOV-2022,C&FS (P),Next Steps Supported Living Ltd,TRADE SUPPLIER,5411-Private Contractors - General,"5,488.24"
08-NOV-2022,C&FS (P),Next Steps Supported Living Ltd,TRADE SUPPLIER,5411-Private Contractors - General,"5,830.48"
08-NOV-2022,C&FS (P),Next Steps Supported Living Ltd,TRADE SUPPLIER,5411-Private Contractors - General,"3,894.88"
08-NOV-2022,C&FS (P),Next Steps Supported Living Ltd,TRADE SUPPLIER,5411-Private Contractors - General,"5,488.24"
08-NOV-2022,Chief Executives (P),No 5 Chambers Ltd,TRADE SUPPLIER,4905-Legal Expenses,650.00
08-NOV-2022,C&FS (P),Parkland Primary School T/A Discovery Schools Academies Trust,GENERAL,6101-Support Services,600.00
08-NOV-2022,C&FS (P),Platform Childcare Ltd,TRADE SUPPLIER,5411-Private Contractors - General,"14,570.00"
08-NOV-2022,C&FS (P),Portland College,TRADE SUPPLIER,5325-External SEN Providers Top Up Fee,"247,155.00"
08-NOV-2022,Adults & Communities (P),Premier Mobility (UK) Ltd,SUBCONTRACTOR,4102-General Equipment - Purchase & Repairs,"1,171.00"
08-NOV-2022,C&FS (P),Prestige Adolescent Care & Education Ltd,TRADE SUPPLIER,5411-Private Contractors - General,"13,042.32"
08-NOV-2022,C&FS (P),Progressive Care Ltd,TRADE SUPPLIER,5411-Private Contractors - General,"1,819.28"
08-NOV-2022,C&FS (P),Progressive Care Ltd,TRADE SUPPLIER,5411-Private Contractors - General,"18,799.28"
08-NOV-2022,Corporate Resources (CR) (P),Proudcastle Ltd,TRADE SUPPLIER,2105-Reactive Maintenance M&E,"4,550.00"
08-NOV-2022,Corporate Resources (CR) (P),Proudcastle Ltd,TRADE SUPPLIER,2105-Reactive Maintenance M&E,"15,581.12"
08-NOV-2022,Capital - In Year Spend (P),Proudcastle Ltd,TRADE SUPPLIER,941D-L&B - Building Costs,"15,850.00"
08-NOV-2022,C&FS (P),Purple Heart Healthcare Agency,TRADE SUPPLIER,5411-Private Contractors - General,"12,876.00"
08-NOV-2022,C&FS (P),Purple Heart Healthcare Agency,TRADE SUPPLIER,5411-Private Contractors - General,"9,744.00"
08-NOV-2022,Environment & Transport (P),Q Free (Bristol) UK Ltd,TRADE SUPPLIER,4507-Consultants & Specialists,"33,896.00"
08-NOV-2022,Adults & Communities (P),R Soami Ltd,TRADE SUPPLIER,4508-Medical Fees & Treatment,943.45
08-NOV-2022,Adults & Communities (P),R Soami Ltd,TRADE SUPPLIER,4508-Medical Fees & Treatment,758.00
08-NOV-2022,Adults & Communities (P),R Soami Ltd,TRADE SUPPLIER,4508-Medical Fees & Treatment,579.30
08-NOV-2022,Environment & Transport (P),Reach Publishing Services Ltd,TRADE SUPPLIER,"4503-Advertising, Publicity & Marketing",646.67
08-NOV-2022,Environment & Transport (P),Reach Publishing Services Ltd,TRADE SUPPLIER,"4503-Advertising, Publicity & Marketing",646.67
08-NOV-2022,Environment & Transport (P),Reach Publishing Services Ltd,TRADE SUPPLIER,"4503-Advertising, Publicity & Marketing",646.67
